Service Area Categorisation,Service Division Categorisation,Responsible Unit,Expenses Type,Expenses sub-Type,Detailed Expenses Type,Capital/Revenue,Date,Transaction Number ,Amount,Supplier Name
Adult Social Care,Adlt u65 Learning Disabilities,LD Day Care Agency,Third Party Payments,Private Contractors,Miscellaneous Agency Services,Revenue,04/01/2011,1,8589.69,NAS SERVICES LIMITED
Cultural Env Reg&Plan Services,Culture & Heritage,River & Cloth Projects,Supplies and Services,Services,Consultants,Revenue,20/01/2011,2,8231.24,LECTURIS
Adult Social Care,Adlt u65 Learning Disabilities,LD Residential Care External,Third Party Payments,Private Contractors,Miscellaneous Agency Services,Revenue,18/01/2011,3,17897.81,BOSTON HIGASHI SCHOOL INC
,No FE Detail,LA Devolved Formula Capital,"New Const, Conv & Renvtion",Dsgn/Sprvsn-Other Expenses,Dsgn/Sprvsn-Other Expenses,Capital,18/01/2011,4,86345.96,RAYNES PARK HIGH SCHOOL
,No FE Detail,Payroll Summary Account,Fund Balances,,Extl Payees Monthly,Revenue,18/01/2011,5,733199.41,REDACTED
,No FE Detail,Wimbledon College,Fund Balances,,Extl Payees Monthly,Revenue,18/01/2011,6,59312.84,REDACTED
,No FE Detail,Ursuline  - Payroll Contract,Fund Balances,,Other Deductions,Revenue,18/01/2011,7,54126.15,TEACHERS PENSIONS AGENCY
,No FE Detail,Payroll Summary Account,Fund Balances,,Extl Payees Monthly,Revenue,18/01/2011,8,3390797.73,REDACTED
,No FE Detail,Ursuline  - Payroll Contract,Fund Balances,,Other Deductions,Revenue,18/01/2011,9,115508.4,THE COLLECTOR OF TAXES
,No FE Detail,Tiffin Boys,Fund Balances,,Other Deductions,Revenue,18/01/2011,10,96189,THE COLLECTOR OF TAXES
Childrens & Education Services,Schools Strategic Management,Parentng Strategy Supprt Grant,Employees,Indirect Employee Expenses,Misc Training Expenses (AP),Revenue,18/01/2011,11,1703.99,TRIPLE P INTERNATIONAL LTD
Housing Services,Homelessness,Homelessness Prevention,Transfer Payments,Housing Benefits,Rent Deposits,Revenue,10/01/2011,12,1365,KILOSTATE ESTATE AGENTS
Childrens & Education Services,Other Ch's & Family Services,CL Setting Up Home Allowance,Third Party Payments,Private Contractors,Miscellaneous Agency Services,Revenue,10/01/2011,13,634.81,REDACTED
,No FE Detail,Annual Season Ticket Loans,Fund Balances,,Payments X,Revenue,12/01/2011,14,1576,LONDON UNDERGROUND LTD
Central Services,Fully rechargeable Overheads,Legal Services,Supplies and Services,,Court Fees,Revenue,12/01/2011,15,4500,REDACTED
Central Services,Fully rechargeable Overheads,Legal Services,Supplies and Services,,Court Fees,Revenue,12/01/2011,16,2745,REDACTED
CS -Oth Operating Inc & Expend,Trading A/c Surpluses/Deficits,Transport-Contract Hire,Transport Related Expenditure,Contract Hire and Op Leasing,Plant Hire - Ad Hoc,Revenue,12/01/2011,17,1178.12,CITROEN CONTRACT MOTORING
,No FE Detail,Payroll Summary Account,Fund Balances,,Extl Payees Monthly,Revenue,25/01/2011,18,733606.34,REDACTED
,No FE Detail,Wimbledon College,Fund Balances,,Extl Payees Monthly,Revenue,25/01/2011,19,59301.05,REDACTED
,No FE Detail,Ursuline  - Payroll Contract,Fund Balances,,Other Deductions,Revenue,25/01/2011,20,51125.6,TEACHERS PENSIONS AGENCY
Housing Services,Homelessness,Homelessness Prevention,Transfer Payments,Housing Benefits,Rent Deposits,Revenue,12/01/2011,21,1242.72,ATLANTIC REALTY LTD
,No FE Detail,Targeted Capital Fund,"New Const, Conv & Renvtion",Dsgn/Sprvsn-Other Expenses,Dsgn/Sprvsn-Other Expenses,Capital,17/01/2011,22,895,MARSDEN RAWSTHORN SOLICITORS
,No FE Detail,Targeted Capital Fund,"New Const, Conv & Renvtion",Dsgn/Sprvsn-Other Expenses,Dsgn/Sprvsn-Other Expenses,Capital,17/01/2011,23,585,MARSDEN RAWSTHORN SOLICITORS
Childrens & Education Services,Other Ch's & Family Services,CL Setting Up Home Allowance,Third Party Payments,Private Contractors,Miscellaneous Agency Services,Revenue,17/01/2011,24,892.76,REDACTED
Adult Social Care,Asylum seekers,AS Child-Discret Pay (NoGrant),Third Party Payments,Private Contractors,Miscellaneous Agency Services,Revenue,17/01/2011,25,510.83,REDACTED
CS -Oth Operating Inc & Expend,Trading A/c Surpluses/Deficits,Transport-Contract Hire,Supplies and Services,Prntng Stnry Gen Off Exp,Stationery,Revenue,17/01/2011,26,1000,LLOYDS TSB
CS -Oth Operating Inc & Expend,Trading A/c Surpluses/Deficits,Transport-Workshop,Transport Related Expenditure,Direct Transport Costs,Vehicle MOTs,Revenue,17/01/2011,27,2000,V.O.S.A
Cultural Env Reg&Plan Services,Development Control,Development Control,Customer and client receipts,Fees,Application Fees X,Revenue,19/01/2011,28,670,REDACTED 
,No FE Detail,Broadway/St Georges Road SW19,Fund Balances,,Deposits Refunded,Revenue,19/01/2011,29,7236.01,WATES INTERIORS LTD
,No FE Detail,Tandem Way SW19,Fund Balances,,Deposits Refunded,Revenue,19/01/2011,30,50841.38,MAXWELL WINWARD LLP
,No FE Detail,Cash Received in Error Refunds,Fund Balances,,Amount Refunded,Revenue,19/01/2011,31,526,THE BLUE CROSS
Adult Social Care,Older People 65&Over inc OP-MH,HC Meals-in-the-Home,Customer and client receipts,Sales,Miscellaneous Sales  X,Revenue,27/01/2011,32,-18086.3,SODEXO HEALTHCARE SERVICES LT
Childrens & Education Services,Other Ch's & Family Services,Staying Put,Employees,Indirect Employee Expenses,Misc Training Expenses (AP),Revenue,19/01/2011,33,739,DIVERSE CUISINE TRAINING
Housing Services,Homelessness,Homelessness Prevention,Transfer Payments,Housing Benefits,Sanctuary Scheme Rent Rescue,Revenue,20/01/2011,34,3000,MERTON PRIORY HOMES
Childrens & Education Services,Children's Services - C & S W,CL Children Looked After Team1,Supplies and Services,,Misc Expenses,Revenue,24/01/2011,35,547.5,REDACTED
,No FE Detail,Joseph Hood Permanent Expansn,"New Const, Conv & Renvtion",Ste Wrks-Rn & Mt-Stat Undrtker,Ste Wrks-Rn & Mt-Stat Undrtker,Capital,20/01/2011,36,651.85,BRITISH GAS BUSINESS
Cultural Env Reg&Plan Services,Building Control,Building Control,Customer and client receipts,Fees,Building Regs Fees S,Revenue,20/01/2011,37,664.22,REDACTED
Childrens & Education Services,Other Ch's & Family Services,CL Setting Up Home Allowance,Third Party Payments,Private Contractors,Miscellaneous Agency Services,Revenue,24/01/2011,38,883.31,REDACTED
Housing Services,Homelessness,Homelessness Prevention,Transfer Payments,Housing Benefits,Sanctuary Scheme Rent Rescue,Revenue,25/01/2011,39,2545,KF & H LETTINGS
Housing Services,Homelessness,Homelessness Prevention,Transfer Payments,Housing Benefits,Rent Deposits,Revenue,26/01/2011,40,784.6,REDACTED
Housing Services,Housing Benefit Administration,Benefits Administration,Supplies and Services,Services,Miscellaneous Expenses,Revenue,26/01/2011,41,7096.48,INVESTING SOLUTIONS LTD
Housing Services,Homelessness,Homelessness Prevention,Transfer Payments,Housing Benefits,Rent Deposits,Revenue,26/01/2011,42,1250,B AND K ESTATES
,,LD JMC,Supplies and Services,Equip Furniture/Materials,Provisions - General,Revenue,26/01/2011,43,697.06,REDACTED
Housing Services,Homelessness,Homelessness Prevention,Transfer Payments,Housing Benefits,Rent Deposits,Revenue,26/01/2011,44,850,REDACTED
,No FE Detail,Cash Received in Error Refunds,Fund Balances,,Amount Refunded,Revenue,27/01/2011,45,1500,KELTBRAY LTD
Childrens & Education Services,Assuring Access To Schools,Stouthall,Premises Related Expenditure,RepairsAlterations&MtceOfBldgs,Security of Premises,Revenue,28/01/2011,46,9644,G.P HADEN ASSOCIATES
,No FE Detail,Agency Hays Contract A/c,Fund Balances,,Payments X,Revenue,25/01/2011,47,524388.27,HAYS EXECUTIVE
CS -Oth Operating Inc & Expend,Trading A/c Surpluses/Deficits,Transport-Operations,Transport Related Expenditure,Contract Hire and Op Leasing,Mini Cab Hire for Education,Revenue,18/01/2011,48,1045,REDACTED
,No FE Detail,Payroll Summary Account,Fund Balances,,Extl Payees Monthly,Revenue,07/01/2011,49,728952.37,REDACTED
,No FE Detail,Wimbledon College,Fund Balances,,Extl Payees Monthly,Revenue,07/01/2011,50,58986.46,REDACTED
,No FE Detail,Merton Coll - Payroll Contract,Fund Balances,,Other Deductions,Revenue,07/01/2011,51,54488.41,TEACHERS PENSIONS AGENCY
Central Services,Fully rechargeable Overheads,Chief Exec's Office,Premises Related Expenditure,Rents,Room/venue rental hire,Revenue,18/01/2011,52,1000,HILTON CROYDON
,No FE Detail,Payroll Summary Account,Fund Balances,,Extl Payees Monthly,Revenue,06/01/2011,53,726522.88,REDACTED
,No FE Detail,Wimbledon College,Fund Balances,,Extl Payees Monthly,Revenue,06/01/2011,54,58608.81,REDACTED
,No FE Detail,Ursuline  - Payroll Contract,Fund Balances,,Other Deductions,Revenue,06/01/2011,55,54393.17,TEACHERS PENSIONS AGENCY
,No FE Detail,Payroll Summary Account,Fund Balances,,Extl Payees Monthly,Revenue,06/01/2011,56,3387390.45,REDACTED
,No FE Detail,Ursuline  - Payroll Contract,Fund Balances,,Other Deductions,Revenue,06/01/2011,57,112325.55,THE COLLECTOR OF TAXES
,No FE Detail,Tiffin Boys,Fund Balances,,Other Deductions,Revenue,06/01/2011,58,97922.6,THE COLLECTOR OF TAXES
Highways & Transport Services,Traffic Mgt & Road Safety,SMILES Project,Supplies and Services,Services,Miscellaneous Expenses,Revenue,18/01/2011,59,824.33,TGA E-ADMINSTRATION
Childrens & Education Services,Supporting SEN,Non-Delegated Statements,Third Party Payments,Other Establishments,Ind Resid Schs Payments,Revenue,18/01/2011,60,33661.34,BOSTON HIGASHI SCHOOL INC
Highways & Transport Services,Traffic Mgt & Road Safety,SMILES Project,Supplies and Services,Services,Miscellaneous Expenses,Revenue,18/01/2011,61,832.71,TGA E-ADMINSTRATION
,No FE Detail,Agency Hays Contract A/c,Fund Balances,,Payments X,Revenue,18/01/2011,62,332683.55,HAYS EXECUTIVE
Highways & Transport Services,Public Transport,Concessionary Fares,Transfer Payments,Adult Soc Servs Clients,Older People,Revenue,06/01/2011,63,1465832,TRANSPORT TRADING LIMITED
,No FE Detail,Crossrail BRS,Fund Balances,,Payments X,Revenue,24/01/2011,64,206410,GREATER LONDON AUTHORITY
CS -Oth Operating Inc & Expend,Precepts and Levies,Lee Valley Regional Park,,,Expenditure,Revenue,18/01/2011,65,18879.11,LEE VALLEY REGIONAL PARK AUTH.
,No FE Detail,Payroll Summary Account,Fund Balances,,Salary Sacrifice,Revenue,13/01/2011,66,9616.67,ACCOR SERVICES
,No FE Detail,Payroll Summary Account,Fund Balances,,Salary Sacrifice,Revenue,13/01/2011,67,528.92,ACCOR SERVICES
,No FE Detail,Inland Revenue,Fund Balances,,Payments X,Revenue,13/01/2011,68,753.12,HM REVENUE & CUSTOMS
Central Services,Fully rechargeable Overheads,Strategic Personnel Management,Supplies and Services,Services,General Office Expenses,Revenue,13/01/2011,69,3400,MARKS AND SPENCER GIFT VOUCHER
Central Services,Fully rechargeable Overheads,Chief Exec's Office,Supplies and Services,,Prizes and Awards,Revenue,13/01/2011,70,850,MARKS AND SPENCER GIFT VOUCHER
Central Services,Fully rechargeable Overheads,Payroll,Supplies and Services,Services,General Office Expenses,Revenue,18/01/2011,71,2885.53,HASLEMERE PRIMARY SCHOOL
Childrens & Education Services,Delegated Ind Sec. Sch Budgets,Raynes Park High,Supplies and Services,,Advances,Revenue,21/01/2011,72,20000,RAYNES PARK HIGH SCHOOL
,No FE Detail,Payroll Summary Account,Fund Balances,,Extl Payees Monthly,Revenue,26/01/2011,73,10045.07,REDACTED
,No FE Detail,Ursuline  - Payroll Contract,Fund Balances,,Other Deductions,Revenue,26/01/2011,74,1004.93,PRUDENTIAL (TEACHERS)
,No FE Detail,Payroll Summary Account,Fund Balances,,Extl Payees Monthly,Revenue,26/01/2011,75,1059.5,REDACTED
,No FE Detail,Payroll Summary Account,Fund Balances,,Extl Payees Monthly,Revenue,26/01/2011,76,9534.85,REDACTED
,No FE Detail,Payroll Summary Account,Fund Balances,,Extl Payees Monthly,Revenue,26/01/2011,77,5328.41,REDACTED
,No FE Detail,Payroll Summary Account,Fund Balances,,Extl Payees Monthly,Revenue,26/01/2011,78,929.98,REDACTED
,No FE Detail,Payroll Summary Account,Fund Balances,,Extl Payees Monthly,Revenue,26/01/2011,79,8644.64,REDACTED
,No FE Detail,Payroll Summary Account,Fund Balances,,Extl Payees Monthly,Revenue,26/01/2011,80,595.71,REDACTED
,No FE Detail,Agency Hays Contract A/c,Fund Balances,,Payments X,Revenue,27/01/2011,81,381744.97,HAYS EXECUTIVE
,No FE Detail,Payroll Summary Account,Fund Balances,,Salary Sacrifice,Revenue,28/01/2011,82,1701,ACCOR SERVICES
,No FE Detail,Payroll Summary Account,Fund Balances,,Salary Sacrifice,Revenue,28/01/2011,83,12113.73,ACCOR SERVICES
,No FE Detail,Payroll Summary Account,Fund Balances,,Salary Sacrifice,Revenue,28/01/2011,84,666.26,ACCOR SERVICES
,No FE Detail,Tiffin Boys,Fund Balances,,Other Deductions,Revenue,28/01/2011,85,22593.21,LONDON BOROUGH OF KINGSTON
,No FE Detail,Tiffin Boys,Fund Balances,,Other Deductions,Revenue,28/01/2011,86,49852.3,ROYAL BOROUGH OF KINGSTON
,No FE Detail,Payroll Summary Account,Fund Balances,,Extl Payees Monthly,Revenue,28/01/2011,87,1679.35,REDACTED
Adult Social Care,Adult u65 Mental Health Needs,MH ResidentialCare Ext-Morden,Third Party Payments,Private Contractors,Miscellaneous Agency Services,Revenue,04/01/2011,88,6320.9,BROOKDALE HEALTH CARE
Adult Social Care,Other Adult Services,Fixed & Variable Client Paymen,Third Party Payments,Private Contractors,Miscellaneous Agency Services,Revenue,04/01/2011,89,39919.93,ABILITY HOUSING ASSOCIATION
Adult Social Care,Other Adult Services,Fixed & Variable Client Paymen,Third Party Payments,Private Contractors,Miscellaneous Agency Services,Revenue,04/01/2011,90,5833.33,AGE CONCERN (MERTON)
Adult Social Care,Other Adult Services,Fixed & Variable Client Paymen,Third Party Payments,Private Contractors,Miscellaneous Agency Services,Revenue,04/01/2011,91,3815.67,ANCHOR SP PAYMENT FROM SEP'03
Adult Social Care,Other Adult Services,Fixed & Variable Client Paymen,Third Party Payments,Private Contractors,Miscellaneous Agency Services,Revenue,04/01/2011,92,1815.5,CENTRAL & CECIL HOUSING TRUST
Adult Social Care,Other Adult Services,Fixed & Variable Client Paymen,Third Party Payments,Private Contractors,Miscellaneous Agency Services,Revenue,04/01/2011,93,1973.32,CROYDON CHURCHES HOUSING ASSOC
Adult Social Care,Other Adult Services,Fixed & Variable Client Paymen,Third Party Payments,Private Contractors,Miscellaneous Agency Services,Revenue,04/01/2011,94,11278.43,EQUINOX
Adult Social Care,Other Adult Services,Fixed & Variable Client Paymen,Third Party Payments,Private Contractors,Miscellaneous Agency Services,Revenue,04/01/2011,95,15898.03,FAMILY HOUSING ASSOCIATION
Adult Social Care,Other Adult Services,Fixed & Variable Client Paymen,Third Party Payments,Private Contractors,Miscellaneous Agency Services,Revenue,04/01/2011,96,22844.13,GRENFELL HOUSING ASSOCIATION
Adult Social Care,Other Adult Services,Fixed & Variable Client Paymen,Third Party Payments,Private Contractors,Miscellaneous Agency Services,Revenue,04/01/2011,97,2104.09,HANOVER HOUSING ASSOCIATION
Adult Social Care,Other Adult Services,Fixed & Variable Client Paymen,Third Party Payments,Private Contractors,Miscellaneous Agency Services,Revenue,04/01/2011,98,12073.1,HESTIA HOUSING AND SUPPORT
Adult Social Care,Other Adult Services,Fixed & Variable Client Paymen,Third Party Payments,Private Contractors,Miscellaneous Agency Services,Revenue,04/01/2011,99,1948,HORIZON HOUSING GROUP LIMITED
Adult Social Care,Other Adult Services,Fixed & Variable Client Paymen,Third Party Payments,Private Contractors,Miscellaneous Agency Services,Revenue,04/01/2011,100,1334.75,HOUSING21
Adult Social Care,Other Adult Services,Fixed & Variable Client Paymen,Third Party Payments,Private Contractors,Miscellaneous Agency Services,Revenue,04/01/2011,101,704.25,KINGSTON CHURCHES HSG ASSOC
Adult Social Care,Other Adult Services,Fixed & Variable Client Paymen,Third Party Payments,Private Contractors,Miscellaneous Agency Services,Revenue,04/01/2011,102,600.42,KINGSTON CHURCHES ACTION ON HO
Adult Social Care,Other Adult Services,Fixed & Variable Client Paymen,Third Party Payments,Private Contractors,Miscellaneous Agency Services,Revenue,04/01/2011,103,13256.54,MERTON ACT.FOR SINGLE HOMELESS
Adult Social Care,Other Adult Services,Fixed & Variable Client Paymen,Third Party Payments,Private Contractors,Miscellaneous Agency Services,Revenue,04/01/2011,104,9544.01,MERTON REFUGE
Adult Social Care,Other Adult Services,Fixed & Variable Client Paymen,Third Party Payments,Private Contractors,Miscellaneous Agency Services,Revenue,04/01/2011,105,8850.94,MERTON PRIORY HOMES
Adult Social Care,Other Adult Services,Fixed & Variable Client Paymen,Third Party Payments,Private Contractors,Miscellaneous Agency Services,Revenue,04/01/2011,106,2206.05,MERTON PRIORY HOMES
Adult Social Care,Other Adult Services,Fixed & Variable Client Paymen,Third Party Payments,Private Contractors,Miscellaneous Agency Services,Revenue,04/01/2011,107,9419.65,METROPOLITAN SUPPORT TRUST
Adult Social Care,Other Adult Services,Fixed & Variable Client Paymen,Third Party Payments,Private Contractors,Miscellaneous Agency Services,Revenue,04/01/2011,108,505.2,MILLAT ASIAN HOUSING ASSOC
Adult Social Care,Other Adult Services,Fixed & Variable Client Paymen,Third Party Payments,Private Contractors,Miscellaneous Agency Services,Revenue,04/01/2011,109,8281.2,NOTTING HILL HOUSING
Adult Social Care,Other Adult Services,Fixed & Variable Client Paymen,Third Party Payments,Private Contractors,Miscellaneous Agency Services,Revenue,04/01/2011,110,6912.15,SANCTUARY CARE
Adult Social Care,Other Adult Services,Fixed & Variable Client Paymen,Third Party Payments,Private Contractors,Miscellaneous Agency Services,Revenue,04/01/2011,111,9757.75,SERVITE HOUSES
Adult Social Care,Other Adult Services,Fixed & Variable Client Paymen,Third Party Payments,Private Contractors,Miscellaneous Agency Services,Revenue,04/01/2011,112,27435,COMFORT CARE SERVICES (UK) LTD
Adult Social Care,Other Adult Services,Fixed & Variable Client Paymen,Third Party Payments,Private Contractors,Miscellaneous Agency Services,Revenue,04/01/2011,113,849.93,SHAFTESBURY HOUSING ASSOC.
Adult Social Care,Other Adult Services,Fixed & Variable Client Paymen,Third Party Payments,Private Contractors,Miscellaneous Agency Services,Revenue,04/01/2011,114,2095.4,REDACTED
Adult Social Care,Other Adult Services,Fixed & Variable Client Paymen,Third Party Payments,Private Contractors,Miscellaneous Agency Services,Revenue,04/01/2011,115,709.45,THRESHOLD CENTRE LTD
Adult Social Care,Other Adult Services,Fixed & Variable Client Paymen,Third Party Payments,Private Contractors,Miscellaneous Agency Services,Revenue,04/01/2011,116,19895.2,WANDLE HOUSING ASSOCIATION LTD
Adult Social Care,Other Adult Services,Fixed & Variable Client Paymen,Third Party Payments,Private Contractors,Miscellaneous Agency Services,Revenue,04/01/2011,117,39749.19,WIMBLEDON & DISTRICT YMCA
Adult Social Care,Other Adult Services,Fixed & Variable Client Paymen,Third Party Payments,Private Contractors,Miscellaneous Agency Services,Revenue,04/01/2011,118,1691.66,ASIAN ELDERLY GROUP OF MERTON
Adult Social Care,Older People 65&Over inc OP-MH,OP East - Home Care External,Third Party Payments,Private Contractors,Miscellaneous Agency Services,Revenue,05/01/2011,119,1142.28,COMPASSIONATE CARING AGENCY UK
Adult Social Care,Older People 65&Over inc OP-MH,OP East - Home Care External,Third Party Payments,Private Contractors,Miscellaneous Agency Services,Revenue,05/01/2011,120,6784.27,HOUSING21
Adult Social Care,Older People 65&Over inc OP-MH,OP West - Home Care External,Third Party Payments,Private Contractors,Miscellaneous Agency Services,Revenue,05/01/2011,121,4073.75,HOUSING21
Adult Social Care,Adlt u65 Learning Disabilities,LD Home Care External,Third Party Payments,Private Contractors,Miscellaneous Agency Services,Revenue,05/01/2011,122,827.84,HOUSING21
Adult Social Care,Older People 65&Over inc OP-MH,OP East - Home Care External,Third Party Payments,Private Contractors,Miscellaneous Agency Services,Revenue,05/01/2011,123,5760.54,HOUSING21
Adult Social Care,Older People 65&Over inc OP-MH,OP West - Home Care External,Third Party Payments,Private Contractors,Miscellaneous Agency Services,Revenue,05/01/2011,124,4393.3,HOUSING21
Adult Social Care,Adlt u65 Learning Disabilities,LD Home Care External,Third Party Payments,Private Contractors,Miscellaneous Agency Services,Revenue,05/01/2011,125,920.59,HOUSING21
Adult Social Care,Older People 65&Over inc OP-MH,OP West - Home Care External,Third Party Payments,Private Contractors,Miscellaneous Agency Services,Revenue,05/01/2011,126,3321.36,HOUSING21
Adult Social Care,Adlt u65 Learning Disabilities,LD Residential Care External,Third Party Payments,Private Contractors,Miscellaneous Agency Services,Revenue,05/01/2011,127,135000,DIMENSIONS (UK) LTD.
Childrens & Education Services,Family Support Services,CS Direct Payments,Third Party Payments,Private Contractors,Direct Payments,Revenue,05/01/2011,128,958.5,REDACTED
Adult Social Care,Adlt u65 Learning Disabilities,LD Home Care External,Third Party Payments,Private Contractors,Miscellaneous Agency Services,Revenue,05/01/2011,129,7400.4,COMMUNITY HOME CARE PROVIDER
Adult Social Care,Older People 65&Over inc OP-MH,OP East - Home Care External,Third Party Payments,Private Contractors,Miscellaneous Agency Services,Revenue,05/01/2011,130,1734.82,COMMUNITY HOME CARE PROVIDER
Adult Social Care,Adult u65 Phys/Sensory Impair,PD EAST TEAM-Homecare,Third Party Payments,Private Contractors,Miscellaneous Agency Services,Revenue,05/01/2011,131,633.77,COMMUNITY HOME CARE PROVIDER
Adult Social Care,Older People 65&Over inc OP-MH,OP East - Carer Services,Third Party Payments,Private Contractors,Miscellaneous Agency Services,Revenue,05/01/2011,132,572.98,COMMUNITY HOME CARE PROVIDER
Adult Social Care,Older People 65&Over inc OP-MH,OP East - Home Care External,Third Party Payments,Private Contractors,Miscellaneous Agency Services,Revenue,05/01/2011,133,5739.93,HOUSING21
Adult Social Care,Older People 65&Over inc OP-MH,OP West - Home Care External,Third Party Payments,Private Contractors,Miscellaneous Agency Services,Revenue,05/01/2011,134,4953.22,HOUSING21
Adult Social Care,Adlt u65 Learning Disabilities,LD Home Care External,Third Party Payments,Private Contractors,Miscellaneous Agency Services,Revenue,05/01/2011,135,930.89,HOUSING21
Adult Social Care,Older People 65&Over inc OP-MH,OP Hosp - Residential Care Ext,Third Party Payments,Private Contractors,Miscellaneous Agency Services,Revenue,05/01/2011,136,1887.9,ABBEYGATE RESIDENTIAL HOME
Adult Social Care,Older People 65&Over inc OP-MH,OP Hosp - Residential Care Ext,Third Party Payments,Private Contractors,Miscellaneous Agency Services,Revenue,05/01/2011,137,1624,THE BEECHES
Adult Social Care,Older People 65&Over inc OP-MH,OP Hosp - Residential Care Ext,Third Party Payments,Private Contractors,Miscellaneous Agency Services,Revenue,05/01/2011,138,1624,THE BEECHES
Adult Social Care,Older People 65&Over inc OP-MH,OP East - Nursing Care,Third Party Payments,Private Contractors,Miscellaneous Agency Services,Revenue,05/01/2011,139,2254.92,BEVERLEY LODGE NURSING HOME
Adult Social Care,Older People 65&Over inc OP-MH,OP East - Nursing Care,Third Party Payments,Private Contractors,Miscellaneous Agency Services,Revenue,05/01/2011,140,2800,THE BRADBURY CENT.NURSING HOME
Adult Social Care,Older People 65&Over inc OP-MH,OP East - Nursing Care,Third Party Payments,Private Contractors,Miscellaneous Agency Services,Revenue,05/01/2011,141,1987.2,BRIDGE HOUSE CARE CENTRE
Adult Social Care,Older People 65&Over inc OP-MH,OP East - Nursing Care,Customer and client receipts,Charges,Bd&Acc-contrib coll by home X,Revenue,05/01/2011,142,-605.76,BRIDGE HOUSE CARE CENTRE
Adult Social Care,Older People 65&Over inc OP-MH,OP East - Nursing Care,Third Party Payments,Private Contractors,Miscellaneous Agency Services,Revenue,05/01/2011,143,1987.2,BRIDGE HOUSE CARE CENTRE
Adult Social Care,Older People 65&Over inc OP-MH,OP East - Nursing Care,Customer and client receipts,Charges,Bd&Acc-contrib coll by home X,Revenue,05/01/2011,144,-605.76,BRIDGE HOUSE CARE CENTRE
Adult Social Care,Adult u65 Phys/Sensory Impair,PD EAST TEAM-Nursing,Third Party Payments,Private Contractors,Miscellaneous Agency Services,Revenue,05/01/2011,145,5800,BUPA CARE HOMES
Adult Social Care,Adlt u65 Learning Disabilities,LD Residential Care External,Third Party Payments,Private Contractors,Miscellaneous Agency Services,Revenue,05/01/2011,146,4688.88,CRAEGMOOR FACILITIES CO LTD
Adult Social Care,Adlt u65 Learning Disabilities,LD Residential Care External,Third Party Payments,Private Contractors,Miscellaneous Agency Services,Revenue,05/01/2011,147,3210.36,CRAEGMOOR FACILITIES CO LTD
Adult Social Care,Older People 65&Over inc OP-MH,OP East - Residential Care Ext,Third Party Payments,Private Contractors,Miscellaneous Agency Services,Revenue,05/01/2011,148,6560.7,DONERAIL RESIDENTIAL HOME
Adult Social Care,Older People 65&Over inc OP-MH,OP Hosp - Residential Care Ext,Third Party Payments,Private Contractors,Miscellaneous Agency Services,Revenue,05/01/2011,149,-1035.9,DONERAIL RESIDENTIAL HOME
Adult Social Care,Older People 65&Over inc OP-MH,OP Mitcham-Residential CareExt,Third Party Payments,Private Contractors,Miscellaneous Agency Services,Revenue,05/01/2011,150,-4949.3,DONERAIL RESIDENTIAL HOME
Adult Social Care,Older People 65&Over inc OP-MH,OP East - Nursing Care,Third Party Payments,Private Contractors,Miscellaneous Agency Services,Revenue,05/01/2011,151,2332.36,ELMWOOD
Adult Social Care,Older People 65&Over inc OP-MH,OP West - Nursing Care,Third Party Payments,Private Contractors,Miscellaneous Agency Services,Revenue,05/01/2011,152,8293.41,GRACE MANOR NURSING HOME
Adult Social Care,Older People 65&Over inc OP-MH,OP Wimbledon - Nursing Care,Customer and client receipts,Charges,Bd&Acc-contrib coll by home X,Revenue,05/01/2011,153,1526.19,GRACE MANOR NURSING HOME
Adult Social Care,Older People 65&Over inc OP-MH,OP West - Nursing Care,Customer and client receipts,Charges,Bd&Acc-contrib coll by home X,Revenue,05/01/2011,154,-2088.47,GRACE MANOR NURSING HOME
Adult Social Care,Older People 65&Over inc OP-MH,OP Wimbledon - Nursing Care,Third Party Payments,Private Contractors,Miscellaneous Agency Services,Revenue,05/01/2011,155,-6060.57,GRACE MANOR NURSING HOME
Adult Social Care,Adult u65 Phys/Sensory Impair,PD EAST TEAM-Residential,Third Party Payments,Private Contractors,Miscellaneous Agency Services,Revenue,05/01/2011,156,4602.24,GRANGE COTTAGE LIMITED
Adult Social Care,Older People 65&Over inc OP-MH,OP West - Residential Care Ext,Third Party Payments,Private Contractors,Miscellaneous Agency Services,Revenue,05/01/2011,157,3612.76,GRANGE COTTAGE LIMITED
Adult Social Care,Older People 65&Over inc OP-MH,OP East - Residential Care Ext,Third Party Payments,Private Contractors,Miscellaneous Agency Services,Revenue,05/01/2011,158,1812.24,GRANGE COTTAGE LIMITED
Adult Social Care,Older People 65&Over inc OP-MH,OP East - Residential Care Ext,Third Party Payments,Private Contractors,Miscellaneous Agency Services,Revenue,05/01/2011,159,696.14,GRASMERE RESIDENTIAL HOME
Adult Social Care,Older People 65&Over inc OP-MH,OP Hosp - Nursing Care,Third Party Payments,Private Contractors,Miscellaneous Agency Services,Revenue,05/01/2011,160,2639,HERITAGE CARE CENTRE
Adult Social Care,Older People 65&Over inc OP-MH,OP East - Nursing Care,Third Party Payments,Private Contractors,Miscellaneous Agency Services,Revenue,05/01/2011,161,2406.6,HERITAGE CARE CENTRE
Adult Social Care,Older People 65&Over inc OP-MH,OP West - Nursing Care,Third Party Payments,Private Contractors,Miscellaneous Agency Services,Revenue,05/01/2011,162,2173.96,HERITAGE CARE CENTRE
Adult Social Care,Older People 65&Over inc OP-MH,OP West - Residential Care Ext,Third Party Payments,Private Contractors,Miscellaneous Agency Services,Revenue,05/01/2011,163,9448.29,KAL-TAN LTD
Adult Social Care,Older People 65&Over inc OP-MH,OP R/Park-Residential Care Ext,Third Party Payments,Private Contractors,Miscellaneous Agency Services,Revenue,05/01/2011,164,-7636.29,KAL-TAN LTD
Adult Social Care,Adult u65 Phys/Sensory Impair,PD WEST TEAM-Nursing,Third Party Payments,Private Contractors,Miscellaneous Agency Services,Revenue,05/01/2011,165,4254.28,LEONARD CHESHIRE
Adult Social Care,Adult u65 Phys/Sensory Impair,PD WEST TEAM-Nursing,Customer and client receipts,Charges,Bd&Acc-contrib coll by home X,Revenue,05/01/2011,166,-774,LEONARD CHESHIRE
Adult Social Care,Older People 65&Over inc OP-MH,OP East - Nursing Care,Third Party Payments,Private Contractors,Miscellaneous Agency Services,Revenue,05/01/2011,167,2577,SOUTHERN CROSS HEALTHCARE
Adult Social Care,Older People 65&Over inc OP-MH,OP Hosp - Residential Care Ext,Third Party Payments,Private Contractors,Miscellaneous Agency Services,Revenue,05/01/2011,168,1812.4,LINDEN HOUSE
Adult Social Care,Adlt u65 Learning Disabilities,LD Residential Care External,Third Party Payments,Private Contractors,Miscellaneous Agency Services,Revenue,05/01/2011,169,2087.64,LINKAGE COMMUNITY TR.LONG-STAY
Adult Social Care,Older People 65&Over inc OP-MH,OP East - Residential Care Ext,Third Party Payments,Private Contractors,Miscellaneous Agency Services,Revenue,05/01/2011,170,1827,MEDIHANDS CLIFTON CARE HOME
Adult Social Care,Older People 65&Over inc OP-MH,OP East - Residential Care Ext,Third Party Payments,Private Contractors,Miscellaneous Agency Services,Revenue,05/01/2011,171,1827,MEDIHANDS CLIFTON CARE HOME
Adult Social Care,Older People 65&Over inc OP-MH,OP West - Residential Care Ext,Third Party Payments,Private Contractors,Miscellaneous Agency Services,Revenue,05/01/2011,172,2288.84,OATLANDS CARE LIMITED
Adult Social Care,Older People 65&Over inc OP-MH,OP West - Residential Care Ext,Third Party Payments,Private Contractors,Miscellaneous Agency Services,Revenue,05/01/2011,173,1855.24,PORTELET LODGE
Adult Social Care,Older People 65&Over inc OP-MH,OP West - Nursing Care,Third Party Payments,Private Contractors,Miscellaneous Agency Services,Revenue,05/01/2011,174,2249.44,FAMILY STAR LTD
Adult Social Care,Older People 65&Over inc OP-MH,OP West - Nursing Care,Third Party Payments,Private Contractors,Miscellaneous Agency Services,Revenue,05/01/2011,175,2314.2,FAMILY STAR LTD
Adult Social Care,Older People 65&Over inc OP-MH,OP East - Nursing Care,Third Party Payments,Private Contractors,Miscellaneous Agency Services,Revenue,05/01/2011,176,2255.16,FAMILY STAR LTD
Adult Social Care,Older People 65&Over inc OP-MH,OP Hosp - Nursing Care,Third Party Payments,Private Contractors,Miscellaneous Agency Services,Revenue,05/01/2011,177,2842,SOUTHERN CROSS HEALTHCARE LTD
Adult Social Care,Older People 65&Over inc OP-MH,OP East - Residential Care Ext,Third Party Payments,Private Contractors,Miscellaneous Agency Services,Revenue,05/01/2011,178,1878.52,SOUTHERN CROSS HEALTHCARE LTD
Adult Social Care,Older People 65&Over inc OP-MH,OP Hosp - Residential Care Ext,Third Party Payments,Private Contractors,Miscellaneous Agency Services,Revenue,05/01/2011,179,1878.52,SOUTHERN CROSS HEALTHCARE LTD
Adult Social Care,Older People 65&Over inc OP-MH,OP Hosp - Residential Care Ext,Third Party Payments,Private Contractors,Miscellaneous Agency Services,Revenue,05/01/2011,180,1878.52,SOUTHERN CROSS HEALTHCARE LTD
Adult Social Care,Adult u65 Phys/Sensory Impair,PD EAST TEAM-Nursing,Third Party Payments,Private Contractors,Miscellaneous Agency Services,Revenue,05/01/2011,181,3096,SOUTHERN CROSS HEALTHCARE LTD
Adult Social Care,Older People 65&Over inc OP-MH,OP East - Residential Care Ext,Third Party Payments,Private Contractors,Miscellaneous Agency Services,Revenue,05/01/2011,182,1878.52,SOUTHERN CROSS HEALTHCARE LTD
Adult Social Care,Older People 65&Over inc OP-MH,OP East - Nursing Care,Third Party Payments,Private Contractors,Miscellaneous Agency Services,Revenue,05/01/2011,183,2237.64,SOUTHERN CROSS HEALTHCARE LTD
Adult Social Care,Older People 65&Over inc OP-MH,OP Hosp - Nursing Care,Third Party Payments,Private Contractors,Miscellaneous Agency Services,Revenue,05/01/2011,184,2237.64,SOUTHERN CROSS HEALTHCARE LTD
Adult Social Care,Older People 65&Over inc OP-MH,OP East - Residential Care Ext,Third Party Payments,Private Contractors,Miscellaneous Agency Services,Revenue,05/01/2011,185,1878.52,SOUTHERN CROSS HEALTHCARE LTD
Adult Social Care,Older People 65&Over inc OP-MH,OP East - Residential Care Ext,Third Party Payments,Private Contractors,Miscellaneous Agency Services,Revenue,05/01/2011,186,1878.52,SOUTHERN CROSS HEALTHCARE LTD
Adult Social Care,Older People 65&Over inc OP-MH,OP Hosp - Residential Care Ext,Third Party Payments,Private Contractors,Miscellaneous Agency Services,Revenue,05/01/2011,187,2840,SOUTHERN CROSS HEALTHCARE LTD
Adult Social Care,Older People 65&Over inc OP-MH,OP Hosp - Nursing Care,Third Party Payments,Private Contractors,Miscellaneous Agency Services,Revenue,05/01/2011,188,2237.64,SOUTHERN CROSS HEALTHCARE LTD
Adult Social Care,Older People 65&Over inc OP-MH,OP East - Residential Care Ext,Third Party Payments,Private Contractors,Miscellaneous Agency Services,Revenue,05/01/2011,189,939.26,SOUTHERN CROSS HEALTHCARE LTD
Adult Social Care,Older People 65&Over inc OP-MH,OP West - Residential Care Ext,Third Party Payments,Private Contractors,Miscellaneous Agency Services,Revenue,05/01/2011,190,1878.52,SOUTHERN CROSS HEALTHCARE LTD
Adult Social Care,Older People 65&Over inc OP-MH,OP Hosp - Nursing Care,Third Party Payments,Private Contractors,Miscellaneous Agency Services,Revenue,05/01/2011,191,2593,SOUTHERN CROSS HEALTHCARE LTD
Adult Social Care,Older People 65&Over inc OP-MH,OP West - Nursing Care,Third Party Payments,Private Contractors,Miscellaneous Agency Services,Revenue,05/01/2011,192,2593,SOUTHERN CROSS HEALTHCARE LTD
Adult Social Care,Older People 65&Over inc OP-MH,OP Hosp - Residential Care Ext,Third Party Payments,Private Contractors,Miscellaneous Agency Services,Revenue,05/01/2011,193,2200,THRESHFIELD CRT NURSING HOME
Adult Social Care,Adlt u65 Learning Disabilities,LD Residential Care External,Third Party Payments,Private Contractors,Miscellaneous Agency Services,Revenue,05/01/2011,194,2074.68,EL-SHADDAI
Adult Social Care,Older People 65&Over inc OP-MH,OP East - Residential Care Ext,Third Party Payments,Private Contractors,Miscellaneous Agency Services,Revenue,05/01/2011,195,1386.08,EL-SHADDAI
Adult Social Care,Adlt u65 Learning Disabilities,LD Residential Care External,Third Party Payments,Private Contractors,Miscellaneous Agency Services,Revenue,05/01/2011,196,1438.44,EL-SHADDAI
Adult Social Care,Adlt u65 Learning Disabilities,LD Residential Care External,Third Party Payments,Private Contractors,Miscellaneous Agency Services,Revenue,05/01/2011,197,1438.44,EL-SHADDAI
Adult Social Care,Older People 65&Over inc OP-MH,OP Hosp - Residential Care Ext,Third Party Payments,Private Contractors,Miscellaneous Agency Services,Revenue,05/01/2011,198,1812.4,WILLOW LODGE
Adult Social Care,Older People 65&Over inc OP-MH,OP West - Nursing Care,Third Party Payments,Private Contractors,Miscellaneous Agency Services,Revenue,05/01/2011,199,2341.84,WILLOW LODGE
Adult Social Care,Adult u65 Phys/Sensory Impair,PS Other Serv - NRTPF,Third Party Payments,Private Contractors,Miscellaneous Agency Services,Revenue,05/01/2011,200,800,REDACTED
Adult Social Care,Adult u65 Phys/Sensory Impair,PS Other Serv - NRTPF,Third Party Payments,Private Contractors,Miscellaneous Agency Services,Revenue,05/01/2011,201,800,REDACTED
Adult Social Care,Adlt u65 Learning Disabilities,LD Direct Payment Scheme,Third Party Payments,Private Contractors,Direct Payments,Revenue,05/01/2011,202,4975.56,REDACTED
Childrens & Education Services,Family Support Services,CS Day Care CWD,Third Party Payments,Private Contractors,Miscellaneous Agency Services,Revenue,05/01/2011,203,850,CHASE CHILDRENS HOSPICE SERVIC
Childrens & Education Services,Family Support Services,CS DayCare Facilities Children,Third Party Payments,Private Contractors,After School Care Group,Revenue,05/01/2011,204,655,HASLEMERE FIRST SCHOOL
Childrens & Education Services,Family Support Services,CS Day Care CWD,Third Party Payments,Private Contractors,Playscheme,Revenue,05/01/2011,205,632.5,ST HELIER OUT OF SCHOOL CLUB
Childrens & Education Services,Family Support Services,CS Day Care CWD,Third Party Payments,Private Contractors,Playscheme,Revenue,05/01/2011,206,1980,LINKS PRIMARY SCHOOL
Childrens & Education Services,Family Support Services,CS Day Care CWD,Third Party Payments,Private Contractors,Miscellaneous Agency Services,Revenue,05/01/2011,207,596.3,SUPREME CARE SERVICES LIMITED
Childrens & Education Services,Family Support Services,CS Day Care CWD,Third Party Payments,Private Contractors,After School Care Group,Revenue,05/01/2011,208,1788.4,KINGSTON & WIMBLEDON YMCA
Childrens & Education Services,Children Looked After (24hrs+),CL Secure Accommodation,Third Party Payments,Private Contractors,Miscellaneous Agency Services,Revenue,05/01/2011,209,5338,THE YOUTH JUSTICE BOARD
Adult Social Care,Asylum seekers,AS Child Res Care  (No Grant),Third Party Payments,Private Contractors,Private Tenant/Landlord,Revenue,05/01/2011,210,600,REDACTED
Childrens & Education Services,Other Ch's & Family Services,CL Leaving Care/Supp Lodgings,Third Party Payments,Private Contractors,Supported Lodgings,Revenue,05/01/2011,211,600,REDACTED
Childrens & Education Services,Other Ch's & Family Services,CL Leaving Care/Supp Lodgings,Third Party Payments,Private Contractors,Supported Lodgings,Revenue,05/01/2011,212,700,REDACTED
Adult Social Care,Older People 65&Over inc OP-MH,OP East - Residential Care Ext,Third Party Payments,Private Contractors,Miscellaneous Agency Services,Revenue,10/01/2011,213,2056.24,BOLTERS CORNER CARE HOME
Adult Social Care,Adlt u65 Learning Disabilities,LD Residential Care External,Third Party Payments,Private Contractors,Miscellaneous Agency Services,Revenue,07/01/2011,214,5680,BROADHAM CARE LTD
Adult Social Care,Older People 65&Over inc OP-MH,OP Hosp - Nursing Care,Third Party Payments,Private Contractors,Miscellaneous Agency Services,Revenue,10/01/2011,215,2341.84,REDACTED
Adult Social Care,Older People 65&Over inc OP-MH,OP East - Nursing Care,Third Party Payments,Private Contractors,Miscellaneous Agency Services,Revenue,10/01/2011,216,2221.84,REDACTED
Adult Social Care,Older People 65&Over inc OP-MH,OP Hosp - Nursing Care,Third Party Payments,Private Contractors,Miscellaneous Agency Services,Revenue,10/01/2011,217,2400,REDACTED
Adult Social Care,Older People 65&Over inc OP-MH,OP Hosp - Nursing Care,Third Party Payments,Private Contractors,Miscellaneous Agency Services,Revenue,10/01/2011,218,2341.84,REDACTED
Adult Social Care,Older People 65&Over inc OP-MH,OP Hosp - Residential Care Ext,Third Party Payments,Private Contractors,Miscellaneous Agency Services,Revenue,07/01/2011,219,1700,THE GARLAND REST HOME
Adult Social Care,Adlt u65 Learning Disabilities,LD Residential Care External,Third Party Payments,Private Contractors,Miscellaneous Agency Services,Revenue,07/01/2011,220,4780,GREENFIELD CARE HOMES LTD
Adult Social Care,Adlt u65 Learning Disabilities,LD Residential Care External,Third Party Payments,Private Contractors,Miscellaneous Agency Services,Revenue,07/01/2011,221,4624,GREENFIELD CARE HOMES LTD
Adult Social Care,Adlt u65 Learning Disabilities,LD Residential Care External,Third Party Payments,Private Contractors,Miscellaneous Agency Services,Revenue,07/01/2011,222,4780,GREENFIELD CARE HOMES LTD
Adult Social Care,Adlt u65 Learning Disabilities,LD Residential Care External,Third Party Payments,Private Contractors,Miscellaneous Agency Services,Revenue,07/01/2011,223,4732,GREENFIELD CARE HOMES LTD
Adult Social Care,Adlt u65 Learning Disabilities,LD Residential Care External,Third Party Payments,Private Contractors,Miscellaneous Agency Services,Revenue,07/01/2011,224,4868,GREENFIELD CARE HOMES LTD
Adult Social Care,Adlt u65 Learning Disabilities,LD Residential Care External,Third Party Payments,Private Contractors,Miscellaneous Agency Services,Revenue,07/01/2011,225,4744,GREENFIELD CARE HOMES LTD
Adult Social Care,Adlt u65 Learning Disabilities,LD Residential Care External,Third Party Payments,Private Contractors,Miscellaneous Agency Services,Revenue,07/01/2011,226,4780,GREENFIELD CARE HOMES LTD
Adult Social Care,Older People 65&Over inc OP-MH,OP East - Nursing Care,Third Party Payments,Private Contractors,Miscellaneous Agency Services,Revenue,10/01/2011,227,4349.13,HOPELIT UK LTD
Adult Social Care,Older People 65&Over inc OP-MH,OP Hosp - Nursing Care,Third Party Payments,Private Contractors,Miscellaneous Agency Services,Revenue,10/01/2011,228,-1421.83,HOPELIT UK LTD
Adult Social Care,Adlt u65 Learning Disabilities,LD Comm -Residential-Orch Hill,Third Party Payments,Private Contractors,Miscellaneous Agency Services,Revenue,07/01/2011,229,5699.48,PROSPECT HOUSING & SUPPORT SER
Adult Social Care,Adlt u65 Learning Disabilities,LD Comm -Residential-Orch Hill,Third Party Payments,Private Contractors,Miscellaneous Agency Services,Revenue,07/01/2011,230,5699.48,PROSPECT HOUSING & SUPPORT SER
Adult Social Care,Adlt u65 Learning Disabilities,LD Comm -Residential-Orch Hill,Third Party Payments,Private Contractors,Miscellaneous Agency Services,Revenue,07/01/2011,231,5699.48,PROSPECT HOUSING & SUPPORT SER
Adult Social Care,Older People 65&Over inc OP-MH,OP Hosp - Residential Care Ext,Third Party Payments,Private Contractors,Miscellaneous Agency Services,Revenue,10/01/2011,232,1812.4,ST MARY'S LODGE
Adult Social Care,Older People 65&Over inc OP-MH,OP Hosp - Residential Care Ext,Third Party Payments,Private Contractors,Miscellaneous Agency Services,Revenue,10/01/2011,233,1812.4,ST MARY'S LODGE
Adult Social Care,Older People 65&Over inc OP-MH,OP East - Residential Care Ext,Third Party Payments,Private Contractors,Miscellaneous Agency Services,Revenue,10/01/2011,234,1812.4,ST MARY'S LODGE
Adult Social Care,Older People 65&Over inc OP-MH,OP Hosp - Residential Care Ext,Third Party Payments,Private Contractors,Miscellaneous Agency Services,Revenue,10/01/2011,235,1812.4,ST MARY'S LODGE
Adult Social Care,Older People 65&Over inc OP-MH,OP Hosp - Residential Care Ext,Third Party Payments,Private Contractors,Miscellaneous Agency Services,Revenue,07/01/2011,236,1812.4,WHITECLIFF RESID. CARE HOME
Childrens & Education Services,Children Looked After (24hrs+),CL Fostering Services,Supplies and Services,Services,Task Based Fostering,Revenue,05/01/2011,237,780.44,REDACTED
Childrens & Education Services,Children Looked After (24hrs+),CL Fostering Services,Supplies and Services,Services,Task Based Fostering,Revenue,05/01/2011,238,1502.66,REDACTED
Childrens & Education Services,Children Looked After (24hrs+),CL Fostering Services,Supplies and Services,Services,Task Based Fostering,Revenue,05/01/2011,239,739.2,REDACTED
Childrens & Education Services,Children Looked After (24hrs+),CL Fostering Services,Supplies and Services,Services,Task Based Fostering,Revenue,05/01/2011,240,2300.08,REDACTED
Childrens & Education Services,Children Looked After (24hrs+),CL Fostering Services,Supplies and Services,Services,Task Based Fostering,Revenue,05/01/2011,241,2266.12,REDACTED
Childrens & Education Services,Children Looked After (24hrs+),CL Fostering Services,Supplies and Services,Services,Task Based Fostering,Revenue,05/01/2011,242,1519.64,REDACTED
Childrens & Education Services,Children Looked After (24hrs+),CL Fostering Services,Supplies and Services,Services,Task Based Fostering,Revenue,05/01/2011,243,780.44,REDACTED
Childrens & Education Services,Children Looked After (24hrs+),CL Fostering Services,Supplies and Services,Services,Task Based Fostering,Revenue,05/01/2011,244,739.2,REDACTED
Childrens & Education Services,Children Looked After (24hrs+),CL Fostering Services,Supplies and Services,Services,Task Based Fostering,Revenue,05/01/2011,245,739.2,REDACTED
Childrens & Education Services,Children Looked After (24hrs+),CL Fostering Services,Supplies and Services,Services,Task Based Fostering,Revenue,05/01/2011,246,2307.36,REDACTED
Childrens & Education Services,Children Looked After (24hrs+),CL Fostering Services,Supplies and Services,Services,Task Based Fostering,Revenue,05/01/2011,247,763.46,REDACTED
Childrens & Education Services,Children Looked After (24hrs+),CL Fostering Services,Supplies and Services,Services,Task Based Fostering,Revenue,05/01/2011,248,3226.38,REDACTED
Childrens & Education Services,Children Looked After (24hrs+),CL Fostering Services,Supplies and Services,Services,Task Based Fostering,Revenue,05/01/2011,249,1560.88,REDACTED
Childrens & Education Services,Children Looked After (24hrs+),CL Fostering Services,Supplies and Services,Services,Task Based Fostering,Revenue,05/01/2011,250,1478.4,REDACTED
Childrens & Education Services,Children Looked After (24hrs+),CL Fostering Services,Supplies and Services,Services,Task Based Fostering,Revenue,05/01/2011,251,1560.88,REDACTED
Childrens & Education Services,Children Looked After (24hrs+),CL Fostering Services,Supplies and Services,Services,Task Based Fostering,Revenue,05/01/2011,252,1937.58,REDACTED
Childrens & Education Services,Children Looked After (24hrs+),CL Fostering Services,Supplies and Services,Services,Task Based Fostering,Revenue,05/01/2011,253,1478.4,REDACTED
Childrens & Education Services,Children Looked After (24hrs+),CL Fostering Services,Supplies and Services,Services,Task Based Fostering,Revenue,05/01/2011,254,1478.4,REDACTED
Childrens & Education Services,Children Looked After (24hrs+),CL Fostering Services,Supplies and Services,Services,Task Based Fostering,Revenue,05/01/2011,255,780.44,REDACTED
Childrens & Education Services,Children Looked After (24hrs+),CL Fostering Services,Supplies and Services,Services,Task Based Fostering,Revenue,05/01/2011,256,1502.66,REDACTED
Childrens & Education Services,Children Looked After (24hrs+),CL Fostering Services,Supplies and Services,Services,Task Based Fostering,Revenue,05/01/2011,257,780.44,REDACTED
Childrens & Education Services,Children Looked After (24hrs+),CL Fostering Services,Supplies and Services,Services,Task Based Fostering,Revenue,05/01/2011,258,739.2,REDACTED
Childrens & Education Services,Children Looked After (24hrs+),CL Fostering Services,Supplies and Services,Services,Task Based Fostering,Revenue,05/01/2011,259,739.2,REDACTED
Childrens & Education Services,Children Looked After (24hrs+),CL Fostering Services,Supplies and Services,Services,Task Based Fostering,Revenue,05/01/2011,260,780.44,REDACTED
Childrens & Education Services,Children Looked After (24hrs+),CL Fostering Services,Supplies and Services,Services,Task Based Fostering,Revenue,05/01/2011,261,739.2,REDACTED
Childrens & Education Services,Children Looked After (24hrs+),CL Fostering Services,Supplies and Services,Services,Task Based Fostering,Revenue,05/01/2011,262,2217.6,REDACTED
Childrens & Education Services,Children Looked After (24hrs+),CL Fostering Services,Supplies and Services,Services,Task Based Fostering,Revenue,05/01/2011,263,780.44,REDACTED
Adult Social Care,Adlt u65 Learning Disabilities,LD Supported Housing,Third Party Payments,Private Contractors,Miscellaneous Agency Services,Revenue,07/01/2011,264,5699.48,PROSPECT HOUSING & SUPPORT SER
Childrens & Education Services,Family Support Services,CS Referral & Assessment Sec17,Transfer Payments,Adult Soc Servs Clients,Childr Act 1989 S17,Revenue,13/01/2011,265,2160,REDACTED
Adult Social Care,Adlt u65 Learning Disabilities,LD Day Care Agency,Third Party Payments,Private Contractors,Miscellaneous Agency Services,Revenue,07/01/2011,266,2953.44,ACT TOO
Adult Social Care,Adlt u65 Learning Disabilities,LD Home Care External,Third Party Payments,Private Contractors,Miscellaneous Agency Services,Revenue,07/01/2011,267,2488.48,ELIZABETH FITZROY HOMES
Adult Social Care,Adlt u65 Learning Disabilities,LD Day Care Agency,Third Party Payments,Private Contractors,Miscellaneous Agency Services,Revenue,07/01/2011,268,648.96,ELIZABETH FITZROY HOMES
Adult Social Care,Adult u65 Phys/Sensory Impair,PD EAST TEAM-Homecare,Third Party Payments,Private Contractors,Miscellaneous Agency Services,Revenue,07/01/2011,269,672,REDACTED
Adult Social Care,Adult u65 Phys/Sensory Impair,PD EAST TEAM-Homecare,Third Party Payments,Private Contractors,Miscellaneous Agency Services,Revenue,07/01/2011,270,867.6,RNIB REDHILL COLLEGE
Adult Social Care,Adult u65 Mental Health Needs,MH Home Care External-MitWest,Third Party Payments,Private Contractors,Miscellaneous Agency Services,Revenue,07/01/2011,271,871.36,COMFORT CARE SERVICES (UK) LTD
Adult Social Care,Adult u65 Mental Health Needs,MH Home Care External-MitWest,Third Party Payments,Private Contractors,Miscellaneous Agency Services,Revenue,07/01/2011,272,871.36,COMFORT CARE SERVICES (UK) LTD
Adult Social Care,Adlt u65 Learning Disabilities,LD Day Care Agency,Third Party Payments,Private Contractors,Miscellaneous Agency Services,Revenue,10/01/2011,273,986.2,THE SHEILING TRUST
Adult Social Care,Older People 65&Over inc OP-MH,OP East - Home Care External,Third Party Payments,Private Contractors,Miscellaneous Agency Services,Revenue,07/01/2011,274,32290.83,SUPREME CARE SERVICES LIMITED
Adult Social Care,Older People 65&Over inc OP-MH,OP West - Home Care External,Third Party Payments,Private Contractors,Miscellaneous Agency Services,Revenue,07/01/2011,275,24759.14,SUPREME CARE SERVICES LIMITED
Adult Social Care,Older People 65&Over inc OP-MH,OP West - Carer Services,Third Party Payments,Private Contractors,Miscellaneous Agency Services,Revenue,07/01/2011,276,4069.8,SUPREME CARE SERVICES LIMITED
Adult Social Care,Older People 65&Over inc OP-MH,OP Hosp - Home Care External,Third Party Payments,Private Contractors,Miscellaneous Agency Services,Revenue,07/01/2011,277,3202.31,SUPREME CARE SERVICES LIMITED
Adult Social Care,Adult u65 Phys/Sensory Impair,PD EAST TEAM-Homecare,Third Party Payments,Private Contractors,Miscellaneous Agency Services,Revenue,07/01/2011,278,2709.15,SUPREME CARE SERVICES LIMITED
Adult Social Care,Adult u65 Phys/Sensory Impair,PD WEST TEAM-Homecare,Third Party Payments,Private Contractors,Miscellaneous Agency Services,Revenue,07/01/2011,279,2106.53,SUPREME CARE SERVICES LIMITED
Adult Social Care,Older People 65&Over inc OP-MH,OP East - Carer Services,Third Party Payments,Private Contractors,Miscellaneous Agency Services,Revenue,07/01/2011,280,1321.53,SUPREME CARE SERVICES LIMITED
Adult Social Care,Adult u65 Mental Health Needs,MH Home Care External-MitWest,Third Party Payments,Private Contractors,Miscellaneous Agency Services,Revenue,07/01/2011,281,974.79,SUPREME CARE SERVICES LIMITED
Adult Social Care,Adlt u65 Learning Disabilities,LD Carer Services,Third Party Payments,Private Contractors,Miscellaneous Agency Services,Revenue,07/01/2011,282,833.47,SUPREME CARE SERVICES LIMITED
Adult Social Care,Adlt u65 Learning Disabilities,LD Home Care External,Third Party Payments,Private Contractors,Miscellaneous Agency Services,Revenue,07/01/2011,283,790.38,SUPREME CARE SERVICES LIMITED
Adult Social Care,Adult u65 Phys/Sensory Impair,PD EAST TEAM-Homecare,Third Party Payments,Private Contractors,Miscellaneous Agency Services,Revenue,07/01/2011,284,684,SWEET TREE HOME CARE SERVICES
Adult Social Care,Older People 65&Over inc OP-MH,OP East - Home Care External,Third Party Payments,Private Contractors,Miscellaneous Agency Services,Revenue,07/01/2011,285,1258,SYNERGY PERSONNEL SOLUTIONS LT
Adult Social Care,Older People 65&Over inc OP-MH,OP Hosp - Residential Care Ext,Third Party Payments,Private Contractors,Miscellaneous Agency Services,Revenue,07/01/2011,286,2094.4,ABBEYFIELD PEABODY S.LOND.LTD
Adult Social Care,Adult u65 Mental Health Needs,MH ResidentialCare Ext - Wim,Third Party Payments,Private Contractors,Miscellaneous Agency Services,Revenue,10/01/2011,287,1524.76,ALDWICK RESIDENTIAL CARE HOME
Adult Social Care,Adult u65 Mental Health Needs,MH ResidentialCare Ext - Wim,Third Party Payments,Private Contractors,Miscellaneous Agency Services,Revenue,10/01/2011,288,2756.36,ASRA G.LONDON HOUSING ASS.LTD
Adult Social Care,Adlt u65 Learning Disabilities,LD Residential Care External,Third Party Payments,Private Contractors,Miscellaneous Agency Services,Revenue,10/01/2011,289,1830.8,ASRA G.LONDON HOUSING ASS.LTD
Adult Social Care,Adult u65 Mental Health Needs,MH Hostels/B & B - NRTPF,Third Party Payments,Private Contractors,Miscellaneous Agency Services,Revenue,07/01/2011,290,1380.4,ASTRA HOMES
Adult Social Care,Adult u65 Mental Health Needs,MH Hostels/B & B - NRTPF,Third Party Payments,Private Contractors,Miscellaneous Agency Services,Revenue,07/01/2011,291,1380.4,ASTRA HOMES
Adult Social Care,Adult u65 Mental Health Needs,MH Hostels/ B & B - Wim,Third Party Payments,Private Contractors,Miscellaneous Agency Services,Revenue,07/01/2011,292,1222.04,ASTRA HOMES
Adult Social Care,Adult u65 Mental Health Needs,MH Hostels/ B & B - Wim,Third Party Payments,Private Contractors,Miscellaneous Agency Services,Revenue,07/01/2011,293,1222.04,ASTRA HOMES
Adult Social Care,Adult u65 Mental Health Needs,MH Hostels/ B & B - Wim,Third Party Payments,Private Contractors,Miscellaneous Agency Services,Revenue,07/01/2011,294,763.24,ASTRA HOMES
Adult Social Care,Adult u65 Mental Health Needs,MH Hostels/ B & B - Wim,Third Party Payments,Private Contractors,Miscellaneous Agency Services,Revenue,07/01/2011,295,763.24,ASTRA HOMES
Adult Social Care,Adult u65 Mental Health Needs,MH Res Care Ext- Mitcham West,Third Party Payments,Private Contractors,Miscellaneous Agency Services,Revenue,07/01/2011,296,2074.72,ASTRA HOMES
Adult Social Care,Adult u65 Mental Health Needs,MH Res Care Ext- Mitcham West,Third Party Payments,Private Contractors,Miscellaneous Agency Services,Revenue,07/01/2011,297,2074.72,ASTRA HOMES
Adult Social Care,Adlt u65 Learning Disabilities,LD Supported Housing,Third Party Payments,Private Contractors,Miscellaneous Agency Services,Revenue,07/01/2011,298,965.68,ASTRA HOMES
Adult Social Care,Adlt u65 Learning Disabilities,LD Supported Housing,Third Party Payments,Private Contractors,Miscellaneous Agency Services,Revenue,07/01/2011,299,965.68,ASTRA HOMES
Adult Social Care,Adlt u65 Learning Disabilities,LD Supported Housing,Third Party Payments,Private Contractors,Miscellaneous Agency Services,Revenue,07/01/2011,300,1287.68,ASTRA HOMES
Adult Social Care,Adlt u65 Learning Disabilities,LD Supported Housing,Third Party Payments,Private Contractors,Miscellaneous Agency Services,Revenue,07/01/2011,301,1287.68,ASTRA HOMES
Adult Social Care,Adlt u65 Learning Disabilities,LD Residential Care External,Third Party Payments,Private Contractors,Miscellaneous Agency Services,Revenue,10/01/2011,302,7094.57,CARRICKS BROOK
Adult Social Care,Adlt u65 Learning Disabilities,LD Residential Care External,Third Party Payments,Private Contractors,Miscellaneous Agency Services,Revenue,10/01/2011,303,2428.58,CARRICKS BROOK
Adult Social Care,Adult u65 Mental Health Needs,MH Nursing Care - Morden,Third Party Payments,Private Contractors,Miscellaneous Agency Services,Revenue,07/01/2011,304,2866.36,BROOME PARK NURSING HOME
Adult Social Care,Older People 65&Over inc OP-MH,OP East - Nursing Care,Third Party Payments,Private Contractors,Miscellaneous Agency Services,Revenue,07/01/2011,305,2691.12,BUPA CARE SERVICES
Adult Social Care,Older People 65&Over inc OP-MH,OP East - Nursing Care,Customer and client receipts,Charges,Miscellaneous Charges X,Revenue,07/01/2011,306,2521.14,BUPA CARE SERVICES
Adult Social Care,Older People 65&Over inc OP-MH,OP East - Nursing Care,Customer and client receipts,Charges,Bd&Acc-contrib coll by home X,Revenue,07/01/2011,307,-3300.84,BUPA CARE SERVICES
Adult Social Care,Older People 65&Over inc OP-MH,OP East - Residential Care Ext,Third Party Payments,Private Contractors,Miscellaneous Agency Services,Revenue,07/01/2011,308,1118.55,BUPA CARE HOMES
Adult Social Care,Adult u65 Phys/Sensory Impair,PD EAST TEAM-Nursing,Third Party Payments,Private Contractors,Miscellaneous Agency Services,Revenue,07/01/2011,309,5800,BUPA CARE HOMES
Adult Social Care,Adult u65 Phys/Sensory Impair,PD EAST TEAM-Nursing,Third Party Payments,Private Contractors,Miscellaneous Agency Services,Revenue,07/01/2011,310,7561.44,BUPA CARE SERVICES BACS RECEIP
Adult Social Care,Adlt u65 Learning Disabilities,LD Residential Care External,Third Party Payments,Private Contractors,Miscellaneous Agency Services,Revenue,10/01/2011,311,2928.72,CARE
Adult Social Care,Adlt u65 Learning Disabilities,LD Residential Care External,Third Party Payments,Private Contractors,Miscellaneous Agency Services,Revenue,07/01/2011,312,7182.16,CARE ASPIRATIONS LIMITED
Adult Social Care,Older People 65&Over inc OP-MH,OP East - Residential Care Ext,Third Party Payments,Private Contractors,Miscellaneous Agency Services,Revenue,07/01/2011,313,1992.85,CHASE HOUSE REST HOME
Adult Social Care,Older People 65&Over inc OP-MH,OP East - Nursing Care,Third Party Payments,Private Contractors,Miscellaneous Agency Services,Revenue,10/01/2011,314,2710.08,CLAREMONT CARE SVS LTD
Adult Social Care,Older People 65&Over inc OP-MH,OP East - Nursing Care,Customer and client receipts,Charges,Bd&Acc-contrib coll by home X,Revenue,10/01/2011,315,-512.44,CLAREMONT CARE SVS LTD
Adult Social Care,Older People 65&Over inc OP-MH,OP West - Nursing Care,Third Party Payments,Private Contractors,Miscellaneous Agency Services,Revenue,07/01/2011,316,2354.8,GALLEON CARE HOMES LTD
Adult Social Care,Adlt u65 Learning Disabilities,LD Comm-Residential-Surrey Oak,Third Party Payments,Private Contractors,Miscellaneous Agency Services,Revenue,07/01/2011,317,4610.56,COTTISBRAINE HOUSE
Adult Social Care,Adlt u65 Learning Disabilities,LD Residential Care External,Third Party Payments,Private Contractors,Miscellaneous Agency Services,Revenue,07/01/2011,318,10116.86,DANESWOOD
Adult Social Care,Older People 65&Over inc OP-MH,OP West - Residential Care Ext,Third Party Payments,Private Contractors,Miscellaneous Agency Services,Revenue,07/01/2011,319,1825.16,DEEPDENE CARE LIMITED
Adult Social Care,Adult u65 Mental Health Needs,MH ResidentialCare Ext - Wim,Third Party Payments,Private Contractors,Miscellaneous Agency Services,Revenue,07/01/2011,320,1825.16,DEEPDENE CARE LIMITED
Adult Social Care,Older People 65&Over inc OP-MH,OP East - Residential Care Ext,Third Party Payments,Private Contractors,Miscellaneous Agency Services,Revenue,07/01/2011,321,9968.75,ELM LODGE
Adult Social Care,Older People 65&Over inc OP-MH,OP Morden-Residential Care Ext,Third Party Payments,Private Contractors,Miscellaneous Agency Services,Revenue,07/01/2011,322,-7735.75,ELM LODGE
Adult Social Care,Older People 65&Over inc OP-MH,OP East - Residential Care Ext,Third Party Payments,Private Contractors,Miscellaneous Agency Services,Revenue,07/01/2011,323,1526.6,FAIRFIELDS HOUSE LTD
Adult Social Care,Adult u65 Phys/Sensory Impair,PD WEST TEAM-Residential Care,Third Party Payments,Private Contractors,Miscellaneous Agency Services,Revenue,07/01/2011,324,3399.76,THE FRANCES TAYLOR FOUNDATION
Adult Social Care,Older People 65&Over inc OP-MH,OP West - Nursing Care,Third Party Payments,Private Contractors,Miscellaneous Agency Services,Revenue,07/01/2011,325,9493.14,GARTH HOUSE NURSING HOME
Adult Social Care,Older People 65&Over inc OP-MH,OP Wimbledon - Nursing Care,Customer and client receipts,Charges,Bd&Acc-contrib coll by home X,Revenue,07/01/2011,326,1413.1,GARTH HOUSE NURSING HOME
Adult Social Care,Older People 65&Over inc OP-MH,OP West - Nursing Care,Customer and client receipts,Charges,Bd&Acc-contrib coll by home X,Revenue,07/01/2011,327,-1847.9,GARTH HOUSE NURSING HOME
Adult Social Care,Older People 65&Over inc OP-MH,OP Wimbledon - Nursing Care,Third Party Payments,Private Contractors,Miscellaneous Agency Services,Revenue,07/01/2011,328,-7259.46,GARTH HOUSE NURSING HOME
Adult Social Care,Older People 65&Over inc OP-MH,OP West - Nursing Care,Third Party Payments,Private Contractors,Miscellaneous Agency Services,Revenue,10/01/2011,329,9622.06,GOFFS PARK NURSING HOME
Adult Social Care,Older People 65&Over inc OP-MH,OP Wimbledon - Nursing Care,Customer and client receipts,Charges,Bd&Acc-contrib coll by home X,Revenue,10/01/2011,330,1397.57,GOFFS PARK NURSING HOME
Adult Social Care,Older People 65&Over inc OP-MH,OP West - Nursing Care,Customer and client receipts,Charges,Bd&Acc-contrib coll by home X,Revenue,10/01/2011,331,-1832.37,GOFFS PARK NURSING HOME
Adult Social Care,Older People 65&Over inc OP-MH,OP Wimbledon - Nursing Care,Third Party Payments,Private Contractors,Miscellaneous Agency Services,Revenue,10/01/2011,332,-7338.86,GOFFS PARK NURSING HOME
Adult Social Care,Adlt u65 Learning Disabilities,LD Residential Care External,Third Party Payments,Private Contractors,Miscellaneous Agency Services,Revenue,10/01/2011,333,2853.92,THE GRANGE & WALTON COTTAGE
Adult Social Care,Older People 65&Over inc OP-MH,OP Hosp - Residential Care Ext,Third Party Payments,Private Contractors,Miscellaneous Agency Services,Revenue,07/01/2011,334,1732,GROVE HOUSE
Adult Social Care,Adult u65 Phys/Sensory Impair,PD WEST TEAM-Nursing,Third Party Payments,Private Contractors,Miscellaneous Agency Services,Revenue,07/01/2011,335,4800,HAVERING COURT NURSING HOME
Adult Social Care,Older People 65&Over inc OP-MH,OP West - Nursing Care,Third Party Payments,Private Contractors,Miscellaneous Agency Services,Revenue,07/01/2011,336,3496.27,HEADINGTON NURSING HOME
Adult Social Care,Adult u65 Phys/Sensory Impair,PD EAST TEAM-Residential,Third Party Payments,Private Contractors,Miscellaneous Agency Services,Revenue,07/01/2011,337,5314.33,HIGHVIEW CARE SERVICES LTD
Adult Social Care,Adult u65 Mental Health Needs,MH Res Care Ext- Mitcham West,Third Party Payments,Private Contractors,Miscellaneous Agency Services,Revenue,07/01/2011,338,1399.96,HILLDALE AND NORTHVIEW
Adult Social Care,Older People 65&Over inc OP-MH,OP East - Nursing Care,Third Party Payments,Private Contractors,Miscellaneous Agency Services,Revenue,10/01/2011,339,2268.72,JESMUND NURSING HOME
Adult Social Care,Adult u65 Mental Health Needs,MH Nursing Care - Wim,Third Party Payments,Private Contractors,Miscellaneous Agency Services,Revenue,10/01/2011,340,2175.16,JESMUND NURSING HOME
Adult Social Care,Adlt u65 Learning Disabilities,LD Residential Care External,Third Party Payments,Private Contractors,Miscellaneous Agency Services,Revenue,10/01/2011,341,5288.83,KENT AUTISTIC TRUST
Adult Social Care,Adlt u65 Learning Disabilities,LD Residential Care External,Third Party Payments,Private Contractors,Miscellaneous Agency Services,Revenue,10/01/2011,342,5288.83,KENT AUTISTIC TRUST
Adult Social Care,Older People 65&Over inc OP-MH,OP East - Residential Care Ext,Third Party Payments,Private Contractors,Miscellaneous Agency Services,Revenue,07/01/2011,343,1664.6,KINGSDALE NURSING HOME
Adult Social Care,Adlt u65 Learning Disabilities,LD Residential Care External,Third Party Payments,Private Contractors,Miscellaneous Agency Services,Revenue,10/01/2011,344,3021.84,L'ARCHE
Adult Social Care,Adlt u65 Learning Disabilities,LD Residential Care External,Third Party Payments,Private Contractors,Miscellaneous Agency Services,Revenue,10/01/2011,345,5931.68,THE LEO TRUST
Adult Social Care,Adult u65 Phys/Sensory Impair,PD WEST TEAM-Nursing,Third Party Payments,Private Contractors,Miscellaneous Agency Services,Revenue,07/01/2011,346,2801.4,MEADBANK NURSING CENTRE
Adult Social Care,Adlt u65 Learning Disabilities,LD Supported Housing,Third Party Payments,Private Contractors,Miscellaneous Agency Services,Revenue,07/01/2011,347,4186.88,ROYAL MENCAP SOCIETY
Adult Social Care,Adult u65 Mental Health Needs,MH ResidentialCare Ext - Wim,Third Party Payments,Private Contractors,Miscellaneous Agency Services,Revenue,07/01/2011,348,3171.08,MENTAL HEALTH CARE (UK) LTD
Adult Social Care,Older People 65&Over inc OP-MH,OP West - Residential Care Ext,Third Party Payments,Private Contractors,Miscellaneous Agency Services,Revenue,07/01/2011,349,1692,METHODIST HOMES FOR THE AGED
Adult Social Care,Adult u65 Mental Health Needs,MH ResidentialCare Ext - Wim,Third Party Payments,Private Contractors,Miscellaneous Agency Services,Revenue,07/01/2011,350,4495.04,QUALITY CARE CHOICE LTD
Adult Social Care,Adult u65 Phys/Sensory Impair,PD EAST TEAM-Nursing,Third Party Payments,Private Contractors,Miscellaneous Agency Services,Revenue,07/01/2011,351,3800,QUEEN ALEXANDRA HOSPITAL HOME
Adult Social Care,Adlt u65 Learning Disabilities,LD Residential Care External,Third Party Payments,Private Contractors,Miscellaneous Agency Services,Revenue,07/01/2011,352,5535.52,THE REGARD PARTNERSHIP LTD
Adult Social Care,Adlt u65 Learning Disabilities,LD Supported Housing,Third Party Payments,Private Contractors,Miscellaneous Agency Services,Revenue,07/01/2011,353,4140,THE REGARD PARTNERSHIP LTD
Adult Social Care,Adlt u65 Learning Disabilities,LD Residential Care External,Third Party Payments,Private Contractors,Miscellaneous Agency Services,Revenue,07/01/2011,354,5536,THE REGARD PARTNERSHIP LTD
Adult Social Care,Adlt u65 Learning Disabilities,LD Residential Care External,Third Party Payments,Private Contractors,Miscellaneous Agency Services,Revenue,07/01/2011,355,5200,THE REGARD PARTNERSHIP LTD
Adult Social Care,Adlt u65 Learning Disabilities,LD Residential Care External,Third Party Payments,Private Contractors,Miscellaneous Agency Services,Revenue,07/01/2011,356,4417.92,THE REGARD PARTNERSHIP LTD
Adult Social Care,Adlt u65 Learning Disabilities,LD Residential Care External,Third Party Payments,Private Contractors,Miscellaneous Agency Services,Revenue,07/01/2011,357,4832,THE REGARD PARTNERSHIP LTD
Adult Social Care,Adlt u65 Learning Disabilities,LD Supported Housing,Third Party Payments,Private Contractors,Miscellaneous Agency Services,Revenue,07/01/2011,358,4186.88,THE REGARD PARTNERSHIP LTD
Adult Social Care,Adult u65 Phys/Sensory Impair,PD EAST TEAM-Residential,Third Party Payments,Private Contractors,Miscellaneous Agency Services,Revenue,07/01/2011,359,8311.5,THE RICHARDSON PARTNERSHIP FOR
Adult Social Care,Adlt u65 Learning Disabilities,LD Supported Housing,Third Party Payments,Private Contractors,Miscellaneous Agency Services,Revenue,07/01/2011,360,1835.12,ROYAL MENCAP SOCIETY
Adult Social Care,Adlt u65 Learning Disabilities,LD Supported Housing,Third Party Payments,Private Contractors,Miscellaneous Agency Services,Revenue,07/01/2011,361,6284.04,ROYAL MENCAP SOCIETY
Adult Social Care,Adlt u65 Learning Disabilities,LD Supported Housing,Third Party Payments,Private Contractors,Miscellaneous Agency Services,Revenue,07/01/2011,362,1906.56,ROYAL MENCAP SOCIETY
Adult Social Care,Adlt u65 Learning Disabilities,LD Supported Housing,Third Party Payments,Private Contractors,Miscellaneous Agency Services,Revenue,07/01/2011,363,2120.96,ROYAL MENCAP SOCIETY
Adult Social Care,Adult u65 Phys/Sensory Impair,PD EAST TEAM-Residential,Third Party Payments,Private Contractors,Miscellaneous Agency Services,Revenue,07/01/2011,364,5068.72,RNIB REDHILL COLLEGE
Adult Social Care,Adult u65 Mental Health Needs,MH Hostels/ B & B - Wim,Third Party Payments,Private Contractors,Miscellaneous Agency Services,Revenue,07/01/2011,365,1475.1,RNIB REDHILL COLLEGE
Adult Social Care,Adult u65 Phys/Sensory Impair,PD EAST TEAM-Residential,Third Party Payments,Private Contractors,Miscellaneous Agency Services,Revenue,07/01/2011,366,600,RNIB REDHILL COLLEGE
Adult Social Care,Adlt u65 Learning Disabilities,LD Residential Care External,Third Party Payments,Private Contractors,Miscellaneous Agency Services,Revenue,07/01/2011,367,7505.56,SOLAR CARE GROUP LTD - ROBINIA
Adult Social Care,Adlt u65 Learning Disabilities,LD Residential Care External,Third Party Payments,Private Contractors,Miscellaneous Agency Services,Revenue,07/01/2011,368,5192,SOLAR CARE GROUP LTD - ROBINIA
Adult Social Care,Adlt u65 Learning Disabilities,LD Residential Care External,Third Party Payments,Private Contractors,Miscellaneous Agency Services,Revenue,07/01/2011,369,6657.12,SOLAR CARE GROUP LTD - ROBINIA
Adult Social Care,Older People 65&Over inc OP-MH,OP East - Residential Care Ext,Third Party Payments,Private Contractors,Miscellaneous Agency Services,Revenue,07/01/2011,370,3032.24,SCOPE
Adult Social Care,Adlt u65 Learning Disabilities,LD Residential Care External,Third Party Payments,Private Contractors,Miscellaneous Agency Services,Revenue,07/01/2011,371,3487.92,SCOPE
Adult Social Care,Adult u65 Phys/Sensory Impair,PD WEST TEAM-Residential Care,Third Party Payments,Private Contractors,Miscellaneous Agency Services,Revenue,07/01/2011,372,3300.96,SCOPE
Adult Social Care,Adult u65 Phys/Sensory Impair,PD EAST TEAM-Residential,Third Party Payments,Private Contractors,Miscellaneous Agency Services,Revenue,07/01/2011,373,3249.68,SCOPE
Adult Social Care,Older People 65&Over inc OP-MH,OP East - Residential Care Ext,Third Party Payments,Private Contractors,Miscellaneous Agency Services,Revenue,07/01/2011,374,1776.2,VIRIDIAN HOUSING
Adult Social Care,Older People 65&Over inc OP-MH,OP Hosp - Residential Care Ext,Third Party Payments,Private Contractors,Miscellaneous Agency Services,Revenue,07/01/2011,375,1812.16,SHANGRI-LA
Adult Social Care,Older People 65&Over inc OP-MH,OP West - Nursing Care,Third Party Payments,Private Contractors,Miscellaneous Agency Services,Revenue,10/01/2011,376,2842,TRINITY COURT NURSING HOME
Adult Social Care,Older People 65&Over inc OP-MH,OP West - Nursing Care,Third Party Payments,Private Contractors,Miscellaneous Agency Services,Revenue,07/01/2011,377,3440,WIMBLEDON GUILD
Adult Social Care,Older People 65&Over inc OP-MH,OP West - Residential Care Ext,Third Party Payments,Private Contractors,Miscellaneous Agency Services,Revenue,07/01/2011,378,1154.62,WIMBLEDON GUILD
Adult Social Care,Older People 65&Over inc OP-MH,OP West - Nursing Care,Third Party Payments,Private Contractors,Miscellaneous Agency Services,Revenue,07/01/2011,379,2255.16,WIMBLEDON GUILD
Adult Social Care,Older People 65&Over inc OP-MH,OP West - Nursing Care,Third Party Payments,Private Contractors,Miscellaneous Agency Services,Revenue,07/01/2011,380,2996,WIMBLEDON GUILD
Adult Social Care,Older People 65&Over inc OP-MH,OP Hosp - Residential Care Ext,Third Party Payments,Private Contractors,Miscellaneous Agency Services,Revenue,07/01/2011,381,2044.56,WIMBLEDON GUILD
Adult Social Care,Older People 65&Over inc OP-MH,OP West - Nursing Care,Third Party Payments,Private Contractors,Miscellaneous Agency Services,Revenue,07/01/2011,382,2864.64,WIMBLEDON GUILD
Adult Social Care,Older People 65&Over inc OP-MH,OP West - Nursing Care,Third Party Payments,Private Contractors,Miscellaneous Agency Services,Revenue,07/01/2011,383,3085.6,WIMBLEDON GUILD
Adult Social Care,Adult u65 Mental Health Needs,MH Adult Placement Cont-Wim,Third Party Payments,Private Contractors,Accommodation Based Support,Revenue,07/01/2011,384,2000,REDACTED
Adult Social Care,Adult u65 Mental Health Needs,MH Adult Placement Cont-Wim,Third Party Payments,Private Contractors,Accommodation Based Support,Revenue,07/01/2011,385,14029.5,SW LONDON ST GEORGES NHS TRUST
Childrens & Education Services,Other Ch's & Family Services,CL Leaving Care/Supp Lodgings,Third Party Payments,Private Contractors,Miscellaneous Agency Services,Revenue,07/01/2011,386,3180,KEYA SUPPORT LTD
Childrens & Education Services,Other Ch's & Family Services,CL Leaving Care/Supp Lodgings,Third Party Payments,Private Contractors,Miscellaneous Agency Services,Revenue,07/01/2011,387,1280,KEYA SUPPORT LTD
Childrens & Education Services,Family Support Services,CS DayCare Facilities Children,Third Party Payments,Private Contractors,After School Care Group,Revenue,07/01/2011,388,518,THE PENGUIN OUT OF SCHOOL CLUB
Childrens & Education Services,Other Ch's & Family Services,CL Setting Up Home Allowance,Third Party Payments,Private Contractors,Miscellaneous Agency Services,Revenue,07/01/2011,389,1050,REDACTED
Childrens & Education Services,Family Support Services,CS DayCare Facilities Children,Third Party Payments,Private Contractors,Daily Childminding,Revenue,10/01/2011,390,1515,REDACTED 
Adult Social Care,Adult u65 Phys/Sensory Impair,PD WEST TEAM-Residential Care,Third Party Payments,Private Contractors,Miscellaneous Agency Services,Revenue,11/01/2011,391,3300.96,SCOPE
Adult Social Care,Adult u65 Phys/Sensory Impair,PD WEST TEAM-Residential Care,Third Party Payments,Private Contractors,Miscellaneous Agency Services,Revenue,11/01/2011,392,3300.96,SCOPE
Adult Social Care,Adult u65 Phys/Sensory Impair,PD WEST TEAM-Residential Care,Third Party Payments,Private Contractors,Miscellaneous Agency Services,Revenue,11/01/2011,393,3300.96,SCOPE
Adult Social Care,Adlt u65 Learning Disabilities,LD Direct Payment Scheme,Third Party Payments,Private Contractors,Direct Payments,Revenue,11/01/2011,394,639,REDACTED
Adult Social Care,Older People 65&Over inc OP-MH,OP East -Direct Payment Scheme,Third Party Payments,Private Contractors,Direct Payments,Revenue,11/01/2011,395,685.32,REDACTED
Adult Social Care,Older People 65&Over inc OP-MH,OP East -Direct Payment Scheme,Third Party Payments,Private Contractors,Direct Payments,Revenue,11/01/2011,396,975,REDACTED
Adult Social Care,Adult u65 Phys/Sensory Impair,PD EAST TEAM-Direct Payment,Third Party Payments,Private Contractors,Direct Payments,Revenue,11/01/2011,397,686.91,REDACTED
Adult Social Care,Older People 65&Over inc OP-MH,OP East -Direct Payment Scheme,Third Party Payments,Private Contractors,Direct Payments,Revenue,11/01/2011,398,2540.01,REDACTED
Adult Social Care,Older People 65&Over inc OP-MH,OP East -Direct Payment Scheme,Third Party Payments,Private Contractors,Direct Payments,Revenue,11/01/2011,399,1577.85,REDACTED
Adult Social Care,Older People 65&Over inc OP-MH,OP East -Direct Payment Scheme,Third Party Payments,Private Contractors,Direct Payments,Revenue,11/01/2011,400,556.62,REDACTED
Adult Social Care,Adult u65 Phys/Sensory Impair,PD EAST TEAM-Direct Payment,Third Party Payments,Private Contractors,Direct Payments,Revenue,11/01/2011,401,989.4,REDACTED
Adult Social Care,Adult u65 Mental Health Needs,MH Direct Payment Scheme-MSAOR,Third Party Payments,Private Contractors,Direct Payments,Revenue,11/01/2011,402,538.86,REDACTED
Adult Social Care,Older People 65&Over inc OP-MH,OP West -Direct Payment Scheme,Third Party Payments,Private Contractors,Direct Payments,Revenue,11/01/2011,403,1378.8,REDACTED
Adult Social Care,Adult u65 Phys/Sensory Impair,PD EAST TEAM-Direct Payment,Third Party Payments,Private Contractors,Direct Payments,Revenue,11/01/2011,404,3424.5,REDACTED
Adult Social Care,Adult u65 Mental Health Needs,MH Direct Payment Scheme- West,Third Party Payments,Private Contractors,Direct Payments,Revenue,11/01/2011,405,628.5,REDACTED
Adult Social Care,Adult u65 Phys/Sensory Impair,PD WEST TEAM-Direct Payment,Third Party Payments,Private Contractors,Direct Payments,Revenue,11/01/2011,406,1092.3,REDACTED
Adult Social Care,Adult u65 Phys/Sensory Impair,PD WEST TEAM-Direct Payment,Third Party Payments,Private Contractors,Direct Payments,Revenue,11/01/2011,407,533.97,REDACTED
Adult Social Care,Older People 65&Over inc OP-MH,OP East -Direct Payment Scheme,Third Party Payments,Private Contractors,Direct Payments,Revenue,11/01/2011,408,1076.58,REDACTED
Adult Social Care,Older People 65&Over inc OP-MH,OP East -Direct Payment Scheme,Third Party Payments,Private Contractors,Direct Payments,Revenue,11/01/2011,409,1052.22,REDACTED
Adult Social Care,Adult u65 Phys/Sensory Impair,PD WEST TEAM-Direct Payment,Third Party Payments,Private Contractors,Direct Payments,Revenue,11/01/2011,410,933.03,REDACTED
Adult Social Care,Older People 65&Over inc OP-MH,OP East -Direct Payment Scheme,Third Party Payments,Private Contractors,Direct Payments,Revenue,11/01/2011,411,1789.2,REDACTED
Adult Social Care,Older People 65&Over inc OP-MH,OP East -Direct Payment Scheme,Third Party Payments,Private Contractors,Direct Payments,Revenue,11/01/2011,412,2198.28,REDACTED
Adult Social Care,Adlt u65 Learning Disabilities,LD Direct Payment Scheme,Third Party Payments,Private Contractors,Direct Payments,Revenue,11/01/2011,413,668.58,REDACTED
Adult Social Care,Older People 65&Over inc OP-MH,OP East -Direct Payment Scheme,Third Party Payments,Private Contractors,Direct Payments,Revenue,11/01/2011,414,1278,REDACTED
Adult Social Care,Adult u65 Phys/Sensory Impair,PD EAST TEAM-Direct Payment,Third Party Payments,Private Contractors,Direct Payments,Revenue,11/01/2011,415,670.95,REDACTED
Adult Social Care,Older People 65&Over inc OP-MH,OP East -Direct Payment Scheme,Third Party Payments,Private Contractors,Direct Payments,Revenue,11/01/2011,416,624.9,REDACTED
Adult Social Care,Older People 65&Over inc OP-MH,OP West -Direct Payment Scheme,Third Party Payments,Private Contractors,Direct Payments,Revenue,11/01/2011,417,670.95,REDACTED
Adult Social Care,Older People 65&Over inc OP-MH,OP West -Direct Payment Scheme,Third Party Payments,Private Contractors,Direct Payments,Revenue,11/01/2011,418,718.86,REDACTED
Adult Social Care,Adult u65 Phys/Sensory Impair,PD EAST TEAM-Direct Payment,Third Party Payments,Private Contractors,Direct Payments,Revenue,11/01/2011,419,618.69,REDACTED
Adult Social Care,Older People 65&Over inc OP-MH,OP East -Direct Payment Scheme,Third Party Payments,Private Contractors,Direct Payments,Revenue,11/01/2011,420,848.07,REDACTED
Adult Social Care,Older People 65&Over inc OP-MH,OP West -Direct Payment Scheme,Third Party Payments,Private Contractors,Direct Payments,Revenue,11/01/2011,421,879.48,REDACTED
Adult Social Care,Older People 65&Over inc OP-MH,OP East -Direct Payment Scheme,Third Party Payments,Private Contractors,Direct Payments,Revenue,11/01/2011,422,958.5,REDACTED
Adult Social Care,Older People 65&Over inc OP-MH,OP Hosp -Direct Payment Scheme,Third Party Payments,Private Contractors,Direct Payments,Revenue,11/01/2011,423,3029.01,REDACTED
Adult Social Care,Adlt u65 Learning Disabilities,LD Direct Payment Scheme,Third Party Payments,Private Contractors,Direct Payments,Revenue,11/01/2011,424,4014.39,REDACTED
Adult Social Care,Older People 65&Over inc OP-MH,OP West -Direct Payment Scheme,Third Party Payments,Private Contractors,Direct Payments,Revenue,11/01/2011,425,559.11,REDACTED
Adult Social Care,Older People 65&Over inc OP-MH,OP West -Direct Payment Scheme,Third Party Payments,Private Contractors,Direct Payments,Revenue,11/01/2011,426,574.86,REDACTED
Adult Social Care,Older People 65&Over inc OP-MH,OP East -Direct Payment Scheme,Third Party Payments,Private Contractors,Direct Payments,Revenue,11/01/2011,427,641.19,REDACTED
Adult Social Care,Adult u65 Phys/Sensory Impair,PD WEST TEAM-Direct Payment,Third Party Payments,Private Contractors,Direct Payments,Revenue,11/01/2011,428,2528.7,REDACTED
Adult Social Care,Adult u65 Phys/Sensory Impair,PD EAST TEAM-Direct Payment,Third Party Payments,Private Contractors,Direct Payments,Revenue,11/01/2011,429,766.8,REDACTED
Adult Social Care,Adlt u65 Learning Disabilities,LD Direct Payment Scheme,Third Party Payments,Private Contractors,Direct Payments,Revenue,11/01/2011,430,1136.67,REDACTED
Adult Social Care,Adult u65 Mental Health Needs,MH Direct Payment Sche -Morden,Third Party Payments,Private Contractors,Direct Payments,Revenue,11/01/2011,431,894.6,REDACTED
Adult Social Care,Adult u65 Phys/Sensory Impair,PD WEST TEAM-Direct Payment,Third Party Payments,Private Contractors,Direct Payments,Revenue,11/01/2011,432,650.28,REDACTED
Adult Social Care,Older People 65&Over inc OP-MH,OP West -Direct Payment Scheme,Third Party Payments,Private Contractors,Direct Payments,Revenue,11/01/2011,433,519.18,REDACTED
Adult Social Care,Older People 65&Over inc OP-MH,OP West -Direct Payment Scheme,Third Party Payments,Private Contractors,Direct Payments,Revenue,11/01/2011,434,966.39,REDACTED
Adult Social Care,Adult u65 Phys/Sensory Impair,PD WEST TEAM-Direct Payment,Third Party Payments,Private Contractors,Direct Payments,Revenue,11/01/2011,435,971.15,REDACTED
Adult Social Care,Adult u65 Phys/Sensory Impair,PD WEST TEAM-Direct Payment,Third Party Payments,Private Contractors,Direct Payments,Revenue,11/01/2011,436,2236.5,REDACTED
Adult Social Care,Adult u65 Phys/Sensory Impair,PD WEST TEAM-Direct Payment,Third Party Payments,Private Contractors,Direct Payments,Revenue,11/01/2011,437,1228.53,REDACTED
Adult Social Care,Older People 65&Over inc OP-MH,OP East -Direct Payment Scheme,Third Party Payments,Private Contractors,Direct Payments,Revenue,11/01/2011,438,663,REDACTED
Adult Social Care,Older People 65&Over inc OP-MH,OP West -Direct Payment Scheme,Third Party Payments,Private Contractors,Direct Payments,Revenue,11/01/2011,439,1285.98,REDACTED
Adult Social Care,Older People 65&Over inc OP-MH,OP West -Direct Payment Scheme,Third Party Payments,Private Contractors,Direct Payments,Revenue,11/01/2011,440,1037.31,REDACTED
Adult Social Care,Adult u65 Phys/Sensory Impair,PD WEST TEAM-Direct Payment,Third Party Payments,Private Contractors,Direct Payments,Revenue,11/01/2011,441,830.7,REDACTED
Adult Social Care,Older People 65&Over inc OP-MH,OP Hosp -Direct Payment Scheme,Third Party Payments,Private Contractors,Direct Payments,Revenue,11/01/2011,442,1092.27,REDACTED
Adult Social Care,Adlt u65 Learning Disabilities,LD Direct Payment Scheme,Third Party Payments,Private Contractors,Direct Payments,Revenue,12/01/2011,443,543.15,REDACTED
Adult Social Care,Adult u65 Phys/Sensory Impair,PD EAST TEAM-Direct Payment,Third Party Payments,Private Contractors,Direct Payments,Revenue,11/01/2011,444,1118.25,REDACTED
Adult Social Care,Adult u65 Phys/Sensory Impair,PD WEST TEAM-Direct Payment,Third Party Payments,Private Contractors,Direct Payments,Revenue,11/01/2011,445,2092.71,REDACTED
Adult Social Care,Older People 65&Over inc OP-MH,OP West -Direct Payment Scheme,Third Party Payments,Private Contractors,Direct Payments,Revenue,11/01/2011,446,862.11,REDACTED
Adult Social Care,Older People 65&Over inc OP-MH,OP Hosp -Direct Payment Scheme,Third Party Payments,Private Contractors,Direct Payments,Revenue,11/01/2011,447,654.96,REDACTED
Adult Social Care,Adlt u65 Learning Disabilities,LD Direct Payment Scheme,Third Party Payments,Private Contractors,Direct Payments,Revenue,11/01/2011,448,717.9,REDACTED
Adult Social Care,Older People 65&Over inc OP-MH,OP West -Direct Payment Scheme,Third Party Payments,Private Contractors,Direct Payments,Revenue,11/01/2011,449,1263.36,REDACTED
Adult Social Care,Older People 65&Over inc OP-MH,OP East -Direct Payment Scheme,Third Party Payments,Private Contractors,Direct Payments,Revenue,11/01/2011,450,671.43,REDACTED
Adult Social Care,Older People 65&Over inc OP-MH,OP West -Direct Payment Scheme,Third Party Payments,Private Contractors,Direct Payments,Revenue,11/01/2011,451,887.43,REDACTED
Adult Social Care,Older People 65&Over inc OP-MH,OP East -Direct Payment Scheme,Third Party Payments,Private Contractors,Direct Payments,Revenue,11/01/2011,452,581.1,REDACTED
Adult Social Care,Older People 65&Over inc OP-MH,OP West -Direct Payment Scheme,Third Party Payments,Private Contractors,Direct Payments,Revenue,11/01/2011,453,556.17,REDACTED
Adult Social Care,Older People 65&Over inc OP-MH,OP East - Other services,Third Party Payments,Private Contractors,Miscellaneous Agency Services,Revenue,12/01/2011,454,900,THE PHOENIX HOTEL
Adult Social Care,Older People 65&Over inc OP-MH,OP West -Direct Payment Scheme,Third Party Payments,Private Contractors,Direct Payments,Revenue,11/01/2011,455,1330.08,REDACTED
Adult Social Care,Adult u65 Phys/Sensory Impair,PD WEST TEAM-Direct Payment,Third Party Payments,Private Contractors,Direct Payments,Revenue,11/01/2011,456,1333.92,REDACTED
Adult Social Care,Adult u65 Phys/Sensory Impair,PD EAST TEAM-Direct Payment,Third Party Payments,Private Contractors,Direct Payments,Revenue,11/01/2011,457,600.6,REDACTED
Adult Social Care,Older People 65&Over inc OP-MH,OP East -Direct Payment Scheme,Third Party Payments,Private Contractors,Direct Payments,Revenue,11/01/2011,458,741.72,REDACTED
Adult Social Care,Older People 65&Over inc OP-MH,OP East -Direct Payment Scheme,Third Party Payments,Private Contractors,Direct Payments,Revenue,11/01/2011,459,702.9,REDACTED
Adult Social Care,Older People 65&Over inc OP-MH,OP Hosp -Direct Payment Scheme,Third Party Payments,Private Contractors,Direct Payments,Revenue,11/01/2011,460,892.05,REDACTED
Adult Social Care,Older People 65&Over inc OP-MH,OP East -Direct Payment Scheme,Third Party Payments,Private Contractors,Direct Payments,Revenue,11/01/2011,461,543.15,REDACTED
Adult Social Care,Older People 65&Over inc OP-MH,OP East -Direct Payment Scheme,Third Party Payments,Private Contractors,Direct Payments,Revenue,11/01/2011,462,1206.54,REDACTED
Adult Social Care,Older People 65&Over inc OP-MH,OP Hosp -Direct Payment Scheme,Third Party Payments,Private Contractors,Direct Payments,Revenue,11/01/2011,463,887.31,REDACTED
Adult Social Care,Adult u65 Phys/Sensory Impair,PD EAST TEAM-Direct Payment,Third Party Payments,Private Contractors,Direct Payments,Revenue,11/01/2011,464,1461.81,REDACTED
Adult Social Care,Older People 65&Over inc OP-MH,OP Hosp -Direct Payment Scheme,Third Party Payments,Private Contractors,Direct Payments,Revenue,11/01/2011,465,1207.11,REDACTED
Adult Social Care,Adult u65 Phys/Sensory Impair,PD EAST TEAM-Direct Payment,Third Party Payments,Private Contractors,Direct Payments,Revenue,11/01/2011,466,648.84,REDACTED
Adult Social Care,Adult u65 Phys/Sensory Impair,PD WEST TEAM-Direct Payment,Third Party Payments,Private Contractors,Direct Payments,Revenue,11/01/2011,467,575.1,REDACTED
Adult Social Care,Older People 65&Over inc OP-MH,OP East -Direct Payment Scheme,Third Party Payments,Private Contractors,Direct Payments,Revenue,11/01/2011,468,519.18,REDACTED
Adult Social Care,Adlt u65 Learning Disabilities,LD Direct Payment Scheme,Third Party Payments,Private Contractors,Direct Payments,Revenue,11/01/2011,469,670.95,REDACTED
Adult Social Care,Adult u65 Phys/Sensory Impair,PD EAST TEAM-Direct Payment,Third Party Payments,Private Contractors,Direct Payments,Revenue,11/01/2011,470,718.86,REDACTED
Adult Social Care,Older People 65&Over inc OP-MH,OP West -Direct Payment Scheme,Third Party Payments,Private Contractors,Direct Payments,Revenue,11/01/2011,471,1174.17,REDACTED
Adult Social Care,Adult u65 Phys/Sensory Impair,PD EAST TEAM-Direct Payment,Third Party Payments,Private Contractors,Direct Payments,Revenue,11/01/2011,472,543.15,REDACTED
Adult Social Care,Older People 65&Over inc OP-MH,OP East -Direct Payment Scheme,Third Party Payments,Private Contractors,Direct Payments,Revenue,11/01/2011,473,559.14,REDACTED
Adult Social Care,Adlt u65 Learning Disabilities,LD Direct Payment Scheme,Third Party Payments,Private Contractors,Direct Payments,Revenue,11/01/2011,474,1814.91,REDACTED
Adult Social Care,Adult u65 Mental Health Needs,MH Direct Payment Scheme- West,Third Party Payments,Private Contractors,Direct Payments,Revenue,11/01/2011,475,739.95,REDACTED
Adult Social Care,Adult u65 Phys/Sensory Impair,PD EAST TEAM-Direct Payment,Third Party Payments,Private Contractors,Direct Payments,Revenue,11/01/2011,476,522.36,REDACTED
Adult Social Care,Older People 65&Over inc OP-MH,OP West -Direct Payment Scheme,Third Party Payments,Private Contractors,Direct Payments,Revenue,11/01/2011,477,838.74,REDACTED
Adult Social Care,Older People 65&Over inc OP-MH,OP East -Direct Payment Scheme,Third Party Payments,Private Contractors,Direct Payments,Revenue,11/01/2011,478,2423.07,REDACTED
Adult Social Care,Older People 65&Over inc OP-MH,OP Hosp -Direct Payment Scheme,Third Party Payments,Private Contractors,Direct Payments,Revenue,11/01/2011,479,535.14,REDACTED
Adult Social Care,Older People 65&Over inc OP-MH,OP Hosp -Direct Payment Scheme,Third Party Payments,Private Contractors,Direct Payments,Revenue,11/01/2011,480,535.17,REDACTED
Adult Social Care,Older People 65&Over inc OP-MH,OP East -Direct Payment Scheme,Third Party Payments,Private Contractors,Direct Payments,Revenue,11/01/2011,481,1360.05,REDACTED
Adult Social Care,Older People 65&Over inc OP-MH,OP East -Direct Payment Scheme,Third Party Payments,Private Contractors,Direct Payments,Revenue,11/01/2011,482,1006.41,REDACTED
Childrens & Education Services,Other Ch's & Family Services,CL Leaving Care/Supp Lodgings,Third Party Payments,Private Contractors,Supported Lodgings,Revenue,11/01/2011,483,836.64,REDACTED
Childrens & Education Services,Other Ch's & Family Services,CL Leaving Care/Supp Lodgings,Third Party Payments,Private Contractors,Miscellaneous Agency Services,Revenue,11/01/2011,484,680,ON BEHALF SP HOMES LTD NO2 ACC
Childrens & Education Services,Children Looked After (24hrs+),CL Fostering Services,Supplies and Services,Services,Task Based Fostering,Revenue,11/01/2011,485,780.44,REDACTED
Childrens & Education Services,Children Looked After (24hrs+),CL Fostering Services,Supplies and Services,Services,Task Based Fostering,Revenue,11/01/2011,486,780.44,REDACTED
Childrens & Education Services,Children Looked After (24hrs+),CL Fostering Services,Supplies and Services,Services,Task Based Fostering,Revenue,11/01/2011,487,1502.66,REDACTED
Childrens & Education Services,Children Looked After (24hrs+),CL Fostering Services,Supplies and Services,Services,Task Based Fostering,Revenue,11/01/2011,488,739.2,REDACTED
Childrens & Education Services,Children Looked After (24hrs+),CL Fostering Services,Supplies and Services,Services,Task Based Fostering,Revenue,11/01/2011,489,2300.08,REDACTED
Childrens & Education Services,Children Looked After (24hrs+),CL Fostering Services,Supplies and Services,Services,Task Based Fostering,Revenue,11/01/2011,490,2266.12,REDACTED
Childrens & Education Services,Children Looked After (24hrs+),CL Fostering Services,Supplies and Services,Services,Task Based Fostering,Revenue,11/01/2011,491,1519.64,REDACTED
Childrens & Education Services,Children Looked After (24hrs+),CL Fostering Services,Supplies and Services,Services,Task Based Fostering,Revenue,11/01/2011,492,739.2,REDACTED
Childrens & Education Services,Children Looked After (24hrs+),CL Fostering Services,Supplies and Services,Services,Task Based Fostering,Revenue,11/01/2011,493,2548.36,REDACTED
Childrens & Education Services,Children Looked After (24hrs+),CL Fostering Services,Supplies and Services,Services,Task Based Fostering,Revenue,11/01/2011,494,763.46,REDACTED
Childrens & Education Services,Children Looked After (24hrs+),CL Fostering Services,Supplies and Services,Services,Task Based Fostering,Revenue,11/01/2011,495,780.44,REDACTED
Childrens & Education Services,Children Looked After (24hrs+),CL Fostering Services,Supplies and Services,Services,Task Based Fostering,Revenue,11/01/2011,496,2290.38,REDACTED
Childrens & Education Services,Children Looked After (24hrs+),CL Fostering Services,Supplies and Services,Services,Task Based Fostering,Revenue,11/01/2011,497,1560.88,REDACTED
Childrens & Education Services,Children Looked After (24hrs+),CL Fostering Services,Supplies and Services,Services,Task Based Fostering,Revenue,11/01/2011,498,1519.64,REDACTED
Childrens & Education Services,Children Looked After (24hrs+),CL Fostering Services,Supplies and Services,Services,Task Based Fostering,Revenue,11/01/2011,499,739.2,REDACTED
Childrens & Education Services,Children Looked After (24hrs+),CL Fostering Services,Supplies and Services,Services,Task Based Fostering,Revenue,11/01/2011,500,1560.88,REDACTED
Childrens & Education Services,Children Looked After (24hrs+),CL Fostering Services,Supplies and Services,Services,Task Based Fostering,Revenue,11/01/2011,501,1080.44,REDACTED
Childrens & Education Services,Children Looked After (24hrs+),CL Fostering Services,Supplies and Services,Services,Task Based Fostering,Revenue,11/01/2011,502,1478.4,REDACTED
Childrens & Education Services,Children Looked After (24hrs+),CL Fostering Services,Supplies and Services,Services,Task Based Fostering,Revenue,11/01/2011,503,1478.4,REDACTED
Childrens & Education Services,Children Looked After (24hrs+),CL Fostering Services,Supplies and Services,Services,Task Based Fostering,Revenue,11/01/2011,504,780.44,REDACTED
Childrens & Education Services,Children Looked After (24hrs+),CL Fostering Services,Supplies and Services,Services,Task Based Fostering,Revenue,11/01/2011,505,1502.66,REDACTED
Childrens & Education Services,Children Looked After (24hrs+),CL Fostering Services,Supplies and Services,Services,Task Based Fostering,Revenue,11/01/2011,506,780.44,REDACTED
Childrens & Education Services,Children Looked After (24hrs+),CL Fostering Services,Supplies and Services,Services,Task Based Fostering,Revenue,11/01/2011,507,739.2,REDACTED
Childrens & Education Services,Children Looked After (24hrs+),CL Fostering Services,Supplies and Services,Services,Task Based Fostering,Revenue,11/01/2011,508,739.2,REDACTED
Childrens & Education Services,Children Looked After (24hrs+),CL Fostering Services,Supplies and Services,Services,Task Based Fostering,Revenue,11/01/2011,509,780.44,REDACTED
Childrens & Education Services,Children Looked After (24hrs+),CL Fostering Services,Supplies and Services,Services,Task Based Fostering,Revenue,11/01/2011,510,739.2,REDACTED
Childrens & Education Services,Children Looked After (24hrs+),CL Fostering Services,Supplies and Services,Services,Task Based Fostering,Revenue,11/01/2011,511,2217.6,REDACTED
Childrens & Education Services,Children Looked After (24hrs+),CL Fostering Services,Supplies and Services,Services,Task Based Fostering,Revenue,11/01/2011,512,780.44,REDACTED
Adult Social Care,Adult u65 Mental Health Needs,HS Adult Placements,Third Party Payments,Private Contractors,Accommodation Based Support,Revenue,12/01/2011,513,1556.8,REDACTED
Adult Social Care,Adult u65 Mental Health Needs,HS Adult Placements,Third Party Payments,Private Contractors,Accommodation Based Support,Revenue,12/01/2011,514,636.72,REDACTED
Adult Social Care,Adult u65 Mental Health Needs,MH Adult Placement Cont-Morden,Third Party Payments,Private Contractors,Accommodation Based Support,Revenue,12/01/2011,515,848.96,EL-SHADDAI
Adult Social Care,Adult u65 Mental Health Needs,MH Adult PlacementCont-MitWest,Third Party Payments,Private Contractors,Accommodation Based Support,Revenue,12/01/2011,516,848.96,EL-SHADDAI
Adult Social Care,Adlt u65 Learning Disabilities,LD Home Care External,Third Party Payments,Private Contractors,Miscellaneous Agency Services,Revenue,12/01/2011,517,2365.68,ABLE COMMUNITY CARE
Adult Social Care,Adult u65 Phys/Sensory Impair,PD EAST TEAM-Day Care,Third Party Payments,Private Contractors,Miscellaneous Agency Services,Revenue,12/01/2011,518,1066.4,ACTION FOR BLIND PEOPLE
Adult Social Care,Adlt u65 Learning Disabilities,LD Home Care External,Third Party Payments,Private Contractors,Miscellaneous Agency Services,Revenue,12/01/2011,519,655.3,BEECH HOME CARE SERVICES
Adult Social Care,Older People 65&Over inc OP-MH,OP East - Home Care External,Third Party Payments,Private Contractors,Miscellaneous Agency Services,Revenue,12/01/2011,520,1138.02,COMPASSIONATE CARING AGENCY UK
Adult Social Care,Older People 65&Over inc OP-MH,OP East - Home Care External,Third Party Payments,Private Contractors,Miscellaneous Agency Services,Revenue,12/01/2011,521,2170.88,COMPASSIONATE CARING AGENCY UK
Adult Social Care,Older People 65&Over inc OP-MH,OP West - Home Care External,Third Party Payments,Private Contractors,Miscellaneous Agency Services,Revenue,12/01/2011,522,547.92,COMPASSIONATE CARING AGENCY UK
Adult Social Care,Adult u65 Phys/Sensory Impair,PD WEST TEAM-Homecare,Third Party Payments,Private Contractors,Miscellaneous Agency Services,Revenue,12/01/2011,523,1630.84,COMPASSIONATE CARING AGENCY UK
Adult Social Care,Older People 65&Over inc OP-MH,OP East - Home Care External,Third Party Payments,Private Contractors,Miscellaneous Agency Services,Revenue,12/01/2011,524,1523.96,COMPASSIONATE CARING AGENCY UK
Adult Social Care,Adult u65 Phys/Sensory Impair,PD EAST TEAM-Homecare,Third Party Payments,Private Contractors,Miscellaneous Agency Services,Revenue,12/01/2011,525,1828.72,COMPASSIONATE CARING AGENCY UK
Adult Social Care,Older People 65&Over inc OP-MH,OP West - Home Care External,Third Party Payments,Private Contractors,Miscellaneous Agency Services,Revenue,12/01/2011,526,2032.8,COMPASSIONATE CARING AGENCY UK
Adult Social Care,Older People 65&Over inc OP-MH,OP West - Home Care External,Third Party Payments,Private Contractors,Miscellaneous Agency Services,Revenue,12/01/2011,527,660.52,COMPASSIONATE CARING AGENCY UK
Adult Social Care,Older People 65&Over inc OP-MH,OP West - Home Care External,Third Party Payments,Private Contractors,Miscellaneous Agency Services,Revenue,12/01/2011,528,2476.38,COMPASSIONATE CARING AGENCY UK
Adult Social Care,Older People 65&Over inc OP-MH,OP West - Home Care External,Third Party Payments,Private Contractors,Miscellaneous Agency Services,Revenue,12/01/2011,529,1256.94,COMPASSIONATE CARING AGENCY UK
Adult Social Care,Adult u65 Phys/Sensory Impair,PD EAST TEAM-Homecare,Third Party Payments,Private Contractors,Miscellaneous Agency Services,Revenue,12/01/2011,530,2270.4,COMPASSIONATE CARING AGENCY UK
Adult Social Care,Older People 65&Over inc OP-MH,OP West - Home Care External,Third Party Payments,Private Contractors,Miscellaneous Agency Services,Revenue,12/01/2011,531,2171.68,COMPASSIONATE CARING AGENCY UK
Adult Social Care,Older People 65&Over inc OP-MH,OP East - Home Care External,Third Party Payments,Private Contractors,Miscellaneous Agency Services,Revenue,12/01/2011,532,1972.88,COMPASSIONATE CARING AGENCY UK
Adult Social Care,Older People 65&Over inc OP-MH,OP East - Home Care External,Third Party Payments,Private Contractors,Miscellaneous Agency Services,Revenue,12/01/2011,533,2580.28,COMPASSIONATE CARING AGENCY UK
Adult Social Care,Older People 65&Over inc OP-MH,OP East - Daycare,Third Party Payments,Private Contractors,Miscellaneous Agency Services,Revenue,12/01/2011,534,740.62,ENTERPRISE CARE SUPPORT LTD
Adult Social Care,Older People 65&Over inc OP-MH,OP West - Daycare,Third Party Payments,Private Contractors,Miscellaneous Agency Services,Revenue,12/01/2011,535,740.62,ENTERPRISE CARE SUPPORT LTD
Adult Social Care,Adult u65 Mental Health Needs,MH Day Care - Morden,Third Party Payments,Private Contractors,Miscellaneous Agency Services,Revenue,12/01/2011,536,623.68,ENTERPRISE CARE SUPPORT LTD
Adult Social Care,Older People 65&Over inc OP-MH,OP East - Daycare,Third Party Payments,Private Contractors,Miscellaneous Agency Services,Revenue,12/01/2011,537,740.62,ENTERPRISE CARE SUPPORT LTD
Adult Social Care,Older People 65&Over inc OP-MH,OP West - Daycare,Third Party Payments,Private Contractors,Miscellaneous Agency Services,Revenue,12/01/2011,538,701.64,ENTERPRISE CARE SUPPORT LTD
Adult Social Care,Older People 65&Over inc OP-MH,OP East - Daycare,Third Party Payments,Private Contractors,Miscellaneous Agency Services,Revenue,12/01/2011,539,740.62,ENTERPRISE CARE SUPPORT LTD
Adult Social Care,Older People 65&Over inc OP-MH,OP East - Daycare,Third Party Payments,Private Contractors,Miscellaneous Agency Services,Revenue,12/01/2011,540,740.62,ENTERPRISE CARE SUPPORT LTD
Adult Social Care,Older People 65&Over inc OP-MH,OP East - Daycare,Third Party Payments,Private Contractors,Miscellaneous Agency Services,Revenue,12/01/2011,541,740.62,ENTERPRISE CARE SUPPORT LTD
Adult Social Care,Adlt u65 Learning Disabilities,LD Transport External,Transport Related Expenditure,Recharge frm Transport Holding,Transport SLA/Rech-Dir Non Std,Revenue,12/01/2011,542,500,ST GEORGES RES. CARE HOME
Adult Social Care,Adlt u65 Learning Disabilities,LD Day Care Agency,Third Party Payments,Private Contractors,Miscellaneous Agency Services,Revenue,12/01/2011,543,618.2,HIGH HURLANDS HOMES
Adult Social Care,Adult u65 Phys/Sensory Impair,PD EAST TEAM-Homecare,Third Party Payments,Private Contractors,Miscellaneous Agency Services,Revenue,12/01/2011,544,3714.92,HOMECARE SERVICES LTD
Childrens & Education Services,Children Looked After (24hrs+),CL Residential Care Homes CLA,Third Party Payments,Private Contractors,Miscellaneous Agency Services,Revenue,12/01/2011,545,11148,REDACTED
Childrens & Education Services,Children Looked After (24hrs+),CL Independent Fostering,Supplies and Services,Services,Task Based Fostering,Revenue,12/01/2011,546,7214.94,BANYA
Childrens & Education Services,Children Looked After (24hrs+),CL Independent Fostering,Supplies and Services,Services,Task Based Fostering,Revenue,12/01/2011,547,5520,CHILDREN OF COLOUR
Childrens & Education Services,Children Looked After (24hrs+),CL Independent Fostering,Supplies and Services,Services,Task Based Fostering,Revenue,12/01/2011,548,6400,CHILDREN OF COLOUR
Childrens & Education Services,Children Looked After (24hrs+),CL Independent Fostering,Supplies and Services,Services,Task Based Fostering,Revenue,12/01/2011,549,6560,CHILDREN OF COLOUR
Childrens & Education Services,Children Looked After (24hrs+),CL Independent Fostering,Supplies and Services,Services,Task Based Fostering,Revenue,12/01/2011,550,6560,CHILDREN OF COLOUR
Childrens & Education Services,Children Looked After (24hrs+),CL Independent Fostering,Supplies and Services,Services,Task Based Fostering,Revenue,12/01/2011,551,3296.64,CROHAM SERV.FOR CHILDREN LTD
Childrens & Education Services,Children Looked After (24hrs+),CL Independent Fostering,Supplies and Services,Services,Long Term Fostering,Revenue,12/01/2011,552,3710.92,ETHELBERT SPECIALIST HOMES LTD
Childrens & Education Services,Children Looked After (24hrs+),CL Independent Fostering,Supplies and Services,Services,Long Term Fostering,Revenue,12/01/2011,553,2905.01,FOSTER CARE ASSOCIATES LTD
Childrens & Education Services,Other Ch's & Family Services,CL Leaving Care/Supp Lodgings,Third Party Payments,Private Contractors,Supported Lodgings,Revenue,12/01/2011,554,600,REDACTED
Childrens & Education Services,Children Looked After (24hrs+),CL Independent Fostering,Supplies and Services,Services,Task Based Fostering,Revenue,12/01/2011,555,14861.28,HEATH FARM FAMILY SVS LTD.
Childrens & Education Services,Children Looked After (24hrs+),CL Independent Fostering,Supplies and Services,Services,Task Based Fostering,Revenue,12/01/2011,556,6913.62,HILLCREST CARE LTD
Childrens & Education Services,Children Looked After (24hrs+),CL Independent Fostering,Supplies and Services,Services,Task Based Fostering,Revenue,12/01/2011,557,7185.8,HILLCREST CARE LTD
Childrens & Education Services,Children Looked After (24hrs+),CL Independent Fostering,Supplies and Services,Services,Task Based Fostering,Revenue,12/01/2011,558,4384.02,HILLCREST CARE LTD
Childrens & Education Services,Children Looked After (24hrs+),CL Independent Fostering,Supplies and Services,Services,Task Based Fostering,Revenue,12/01/2011,559,4384.02,HILLCREST CARE LTD
Childrens & Education Services,Children Looked After (24hrs+),CL Independent Fostering,Supplies and Services,Services,Task Based Fostering,Revenue,12/01/2011,560,6946.48,LLOYDS TSB COMMERCIAL FINANCE
Childrens & Education Services,Children Looked After (24hrs+),CL Independent Fostering,Supplies and Services,Services,Long Term Fostering,Revenue,12/01/2011,561,3126.04,LLOYDS TSB COMMERCIAL FINANCE
Childrens & Education Services,Children Looked After (24hrs+),CL Independent Fostering,Supplies and Services,Services,Task Based Fostering,Revenue,12/01/2011,562,7610.5,LLOYDS TSB COMMERCIAL FINANCE
Childrens & Education Services,Children Looked After (24hrs+),CL Independent Fostering,Supplies and Services,Services,Long Term Fostering,Revenue,12/01/2011,563,3473.24,LLOYDS TSB COMMERCIAL FINANCE
Childrens & Education Services,Children Looked After (24hrs+),CL Independent Fostering,Supplies and Services,Services,Task Based Fostering,Revenue,12/01/2011,564,6252.08,LLOYDS TSB COMMERCIAL FINANCE
Adult Social Care,Asylum seekers,AS Child Res Care  (No Grant),Third Party Payments,Private Contractors,Miscellaneous Agency Services,Revenue,12/01/2011,565,1114.28,LIVINGSTONE SUPPORTED HOUSING
Childrens & Education Services,Children Looked After (24hrs+),CL Independent Fostering,Supplies and Services,Services,Task Based Fostering,Revenue,12/01/2011,566,9600,NEXT STEP FOSTERING SERV'S LTD
Childrens & Education Services,Children Looked After (24hrs+),CL Independent Fostering,Supplies and Services,Services,Task Based Fostering,Revenue,12/01/2011,567,1569.26,CORNERWAYS FOSTERING SERV.LTD
Childrens & Education Services,Children Looked After (24hrs+),CL Independent Fostering,Supplies and Services,Services,Long Term Fostering,Revenue,12/01/2011,568,4800,SANKOFA CARE LTD
Childrens & Education Services,Other Ch's & Family Services,CL Leaving Care/Supp Lodgings,Third Party Payments,Private Contractors,Supported Lodgings,Revenue,12/01/2011,569,800,REDACTED
Childrens & Education Services,Other Ch's & Family Services,CL Leaving Care/Supp Lodgings,Third Party Payments,Private Contractors,Supported Lodgings,Revenue,12/01/2011,570,800,REDACTED
Childrens & Education Services,Children Looked After (24hrs+),CL Residential Care Homes CLA,Third Party Payments,Private Contractors,Miscellaneous Agency Services,Revenue,12/01/2011,571,13751.58,REDACTED
Childrens & Education Services,Children Looked After (24hrs+),CL Residential Care Homes CLA,Third Party Payments,Private Contractors,Miscellaneous Agency Services,Revenue,12/01/2011,572,13285.71,REDACTED
Childrens & Education Services,Children Looked After (24hrs+),CL Independent Fostering,Supplies and Services,Services,Task Based Fostering,Revenue,12/01/2011,573,6288,ST CHRISTOPHERS FELLOWSHIP
Childrens & Education Services,Other Ch's & Family Services,CL Leaving Care/Supp Lodgings,Third Party Payments,Private Contractors,Supported Lodgings,Revenue,12/01/2011,574,700,REDACTED
Childrens & Education Services,Other Ch's & Family Services,CL Leaving Care/Supp Lodgings,Third Party Payments,Private Contractors,Supported Lodgings,Revenue,12/01/2011,575,700,REDACTED
Childrens & Education Services,Other Ch's & Family Services,CL Leaving Care/Supp Lodgings,Third Party Payments,Private Contractors,Supported Lodgings,Revenue,12/01/2011,576,700,REDACTED
Adult Social Care,Adlt u65 Learning Disabilities,LD Residential Care External,Third Party Payments,Private Contractors,Miscellaneous Agency Services,Revenue,12/01/2011,577,4157.24,ASHINGTON HOUSE
Adult Social Care,Adlt u65 Learning Disabilities,LD Residential Care External,Third Party Payments,Private Contractors,Miscellaneous Agency Services,Revenue,12/01/2011,578,4299.88,ASHCROFT CARE SERVICES
Adult Social Care,Adlt u65 Learning Disabilities,LD Residential Care External,Third Party Payments,Private Contractors,Miscellaneous Agency Services,Revenue,12/01/2011,579,5374.92,ASHCROFT CARE SERVICES
Adult Social Care,Older People 65&Over inc OP-MH,OP Hosp - Nursing Care,Third Party Payments,Private Contractors,Miscellaneous Agency Services,Revenue,12/01/2011,580,1612.68,BUPA CARE HOMES
Adult Social Care,Older People 65&Over inc OP-MH,OP West - Nursing Care,Third Party Payments,Private Contractors,Miscellaneous Agency Services,Revenue,12/01/2011,581,19470.92,BUPA CARE HOMES
Adult Social Care,Older People 65&Over inc OP-MH,OP Hosp - Nursing Care,Third Party Payments,Private Contractors,Miscellaneous Agency Services,Revenue,12/01/2011,582,16846.2,BUPA CARE HOMES
Adult Social Care,Adult u65 Phys/Sensory Impair,PD WEST TEAM-Residential Care,Third Party Payments,Private Contractors,Miscellaneous Agency Services,Revenue,12/01/2011,583,3300,BUPA CARE HOMES
Adult Social Care,Adult u65 Phys/Sensory Impair,PD WEST TEAM-Nursing,Third Party Payments,Private Contractors,Miscellaneous Agency Services,Revenue,12/01/2011,584,2720,BUPA CARE HOMES
Adult Social Care,Adlt u65 Learning Disabilities,LD Residential Care External,Third Party Payments,Private Contractors,Miscellaneous Agency Services,Revenue,12/01/2011,585,3400,BURGH HEATH LODGE
Adult Social Care,Older People 65&Over inc OP-MH,OP Hosp - Nursing Care,Third Party Payments,Private Contractors,Miscellaneous Agency Services,Revenue,12/01/2011,586,2957.1,CARE UK
Adult Social Care,Older People 65&Over inc OP-MH,OP East - Nursing Care,Third Party Payments,Private Contractors,Miscellaneous Agency Services,Revenue,12/01/2011,587,2805.19,CARE UK
Adult Social Care,Older People 65&Over inc OP-MH,OP West - Nursing Care,Third Party Payments,Private Contractors,Miscellaneous Agency Services,Revenue,12/01/2011,588,2805.19,CARE UK
Adult Social Care,Older People 65&Over inc OP-MH,OP East - Nursing Care,Third Party Payments,Private Contractors,Miscellaneous Agency Services,Revenue,12/01/2011,589,10315.86,CARE UK
Adult Social Care,Older People 65&Over inc OP-MH,OP Mitcham - Nursing Care,Third Party Payments,Private Contractors,Miscellaneous Agency Services,Revenue,12/01/2011,590,-7510.67,CARE UK
Adult Social Care,Older People 65&Over inc OP-MH,OP Hosp - Nursing Care,Third Party Payments,Private Contractors,Miscellaneous Agency Services,Revenue,12/01/2011,591,2805.19,CARE UK
Adult Social Care,Older People 65&Over inc OP-MH,OP East - Nursing Care,Third Party Payments,Private Contractors,Miscellaneous Agency Services,Revenue,12/01/2011,592,2805.19,CARE UK
Adult Social Care,Older People 65&Over inc OP-MH,OP Hosp - Nursing Care,Third Party Payments,Private Contractors,Miscellaneous Agency Services,Revenue,12/01/2011,593,3257.64,CARE UK
Adult Social Care,Older People 65&Over inc OP-MH,OP West - Nursing Care,Third Party Payments,Private Contractors,Miscellaneous Agency Services,Revenue,12/01/2011,594,2805.19,CARE UK
Adult Social Care,Adult u65 Mental Health Needs,MH Res Care Ext- Mitcham West,Third Party Payments,Private Contractors,Miscellaneous Agency Services,Revenue,12/01/2011,595,5681.56,COMMUNITY CARE SOLUTIONS LTD
Adult Social Care,Adlt u65 Learning Disabilities,LD Supported Housing,Third Party Payments,Private Contractors,Miscellaneous Agency Services,Revenue,12/01/2011,596,3160,CRUSOE CARE RESIDENTIAL HOME
Adult Social Care,Adult u65 Mental Health Needs,MH Res Care Ext- Mitcham West,Third Party Payments,Private Contractors,Miscellaneous Agency Services,Revenue,12/01/2011,597,1497.04,ENNIS REST HOME
Adult Social Care,Adlt u65 Learning Disabilities,LD Residential Care External,Third Party Payments,Private Contractors,Miscellaneous Agency Services,Revenue,12/01/2011,598,4113.72,ESTHER CARE HOMES LIMITED
Adult Social Care,Adlt u65 Learning Disabilities,LD Residential Care External,Third Party Payments,Private Contractors,Miscellaneous Agency Services,Revenue,12/01/2011,599,4200,ST GEORGES RES. CARE HOME
Adult Social Care,Adlt u65 Learning Disabilities,LD Residential Care External,Third Party Payments,Private Contractors,Miscellaneous Agency Services,Revenue,12/01/2011,600,3800,ST GEORGES RES. CARE HOME
Adult Social Care,Adlt u65 Learning Disabilities,LD Residential Care External,Third Party Payments,Private Contractors,Miscellaneous Agency Services,Revenue,12/01/2011,601,3800,ST GEORGES RES. CARE HOME
Adult Social Care,Older People 65&Over inc OP-MH,OP East - Residential Care Ext,Third Party Payments,Private Contractors,Miscellaneous Agency Services,Revenue,12/01/2011,602,1772,GRASMERE RESIDENTIAL HOME
Adult Social Care,Adlt u65 Learning Disabilities,LD Nursing Care,Third Party Payments,Private Contractors,Miscellaneous Agency Services,Revenue,12/01/2011,603,5405.68,HIGH HURLANDS HOMES
Adult Social Care,Adult u65 Phys/Sensory Impair,PD EAST TEAM-Residential,Third Party Payments,Private Contractors,Miscellaneous Agency Services,Revenue,12/01/2011,604,5314.33,HIGHVIEW CARE SERVICES LTD
Adult Social Care,Adult u65 Phys/Sensory Impair,PD WEST TEAM-Residential Care,Third Party Payments,Private Contractors,Miscellaneous Agency Services,Revenue,12/01/2011,605,4149.44,HOTHFIELD MANOR FSHC
Adult Social Care,Adlt u65 Learning Disabilities,LD Residential Care External,Third Party Payments,Private Contractors,Miscellaneous Agency Services,Revenue,12/01/2011,606,7308,INDEPENDENCE HOMES LTD
Adult Social Care,Older People 65&Over inc OP-MH,OP East - Residential Care Ext,Third Party Payments,Private Contractors,Miscellaneous Agency Services,Revenue,12/01/2011,607,1611.43,'LA LUZ'
Adult Social Care,Adult u65 Mental Health Needs,MH ResidentialCare Ext-Morden,Third Party Payments,Private Contractors,Miscellaneous Agency Services,Revenue,12/01/2011,608,3248,THE MEATH
Adult Social Care,Adult u65 Mental Health Needs,MH ResidentialCare Ext-Morden,Customer and client receipts,Charges,Bd&Acc-contrib coll by home X,Revenue,12/01/2011,609,-1056.04,THE MEATH
Adult Social Care,Adlt u65 Learning Disabilities,LD Residential Care External,Third Party Payments,Private Contractors,Miscellaneous Agency Services,Revenue,12/01/2011,610,3175.44,ODYSSEY CARE SOLUTIONS
Adult Social Care,Adlt u65 Learning Disabilities,LD Residential Care External,Third Party Payments,Private Contractors,Miscellaneous Agency Services,Revenue,12/01/2011,611,4984.6,ODYSSEY CARE SOLUTIONS
Adult Social Care,Older People 65&Over inc OP-MH,OP East - Residential Care Ext,Third Party Payments,Private Contractors,Miscellaneous Agency Services,Revenue,12/01/2011,612,3308.92,RNID
Adult Social Care,Adlt u65 Learning Disabilities,LD Residential Care External,Third Party Payments,Private Contractors,Miscellaneous Agency Services,Revenue,12/01/2011,613,7505.56,SOLAR CARE GROUP LTD - ROBINIA
Adult Social Care,Adlt u65 Learning Disabilities,LD Residential Care External,Third Party Payments,Private Contractors,Miscellaneous Agency Services,Revenue,12/01/2011,614,5192,SOLAR CARE GROUP LTD - ROBINIA
Adult Social Care,Adlt u65 Learning Disabilities,LD Residential Care External,Third Party Payments,Private Contractors,Miscellaneous Agency Services,Revenue,12/01/2011,615,6657.12,SOLAR CARE GROUP LTD - ROBINIA
Adult Social Care,Older People 65&Over inc OP-MH,OP East - Residential Care Ext,Third Party Payments,Private Contractors,Miscellaneous Agency Services,Revenue,12/01/2011,616,3032.24,SCOPE
Adult Social Care,Older People 65&Over inc OP-MH,OP East - Residential Care Ext,Third Party Payments,Private Contractors,Miscellaneous Agency Services,Revenue,31/01/2011,617,3032.24,SCOPE
Adult Social Care,Adlt u65 Learning Disabilities,LD Residential Care External,Third Party Payments,Private Contractors,Miscellaneous Agency Services,Revenue,12/01/2011,618,3487.92,SCOPE
Adult Social Care,Adlt u65 Learning Disabilities,LD Residential Care External,Third Party Payments,Private Contractors,Miscellaneous Agency Services,Revenue,31/01/2011,619,3487.92,SCOPE
Adult Social Care,Adult u65 Phys/Sensory Impair,PD WEST TEAM-Residential Care,Third Party Payments,Private Contractors,Miscellaneous Agency Services,Revenue,31/01/2011,620,3300.96,SCOPE
Adult Social Care,Adult u65 Phys/Sensory Impair,PD EAST TEAM-Residential,Third Party Payments,Private Contractors,Miscellaneous Agency Services,Revenue,12/01/2011,621,3249.68,SCOPE
Adult Social Care,Adult u65 Phys/Sensory Impair,PD EAST TEAM-Residential,Third Party Payments,Private Contractors,Miscellaneous Agency Services,Revenue,31/01/2011,622,3249.68,SCOPE
Adult Social Care,Older People 65&Over inc OP-MH,OP West - Nursing Care,Third Party Payments,Private Contractors,Miscellaneous Agency Services,Revenue,12/01/2011,623,2237.64,SOUTHERN CROSS HEALTHCARE LTD
Adult Social Care,Older People 65&Over inc OP-MH,OP East - Residential Care Ext,Third Party Payments,Private Contractors,Miscellaneous Agency Services,Revenue,12/01/2011,624,737.99,SOUTHERN CROSS HEALTHCARE LTD
Adult Social Care,Older People 65&Over inc OP-MH,OP East - Residential Care Ext,Third Party Payments,Private Contractors,Miscellaneous Agency Services,Revenue,12/01/2011,625,25762.56,SOUTHERN CROSS HEALTHCARE LTD
Adult Social Care,Older People 65&Over inc OP-MH,OP Hosp - Residential Care Ext,Third Party Payments,Private Contractors,Miscellaneous Agency Services,Revenue,12/01/2011,626,13149.64,SOUTHERN CROSS HEALTHCARE LTD
Adult Social Care,Older People 65&Over inc OP-MH,OP East - Nursing Care,Third Party Payments,Private Contractors,Miscellaneous Agency Services,Revenue,12/01/2011,627,11188.2,SOUTHERN CROSS HEALTHCARE LTD
Adult Social Care,Older People 65&Over inc OP-MH,OP West - Nursing Care,Third Party Payments,Private Contractors,Miscellaneous Agency Services,Revenue,12/01/2011,628,11188.2,SOUTHERN CROSS HEALTHCARE LTD
Adult Social Care,Older People 65&Over inc OP-MH,OP Hosp - Nursing Care,Third Party Payments,Private Contractors,Miscellaneous Agency Services,Revenue,12/01/2011,629,6712.92,SOUTHERN CROSS HEALTHCARE LTD
Adult Social Care,Older People 65&Over inc OP-MH,OP West - Residential Care Ext,Third Party Payments,Private Contractors,Miscellaneous Agency Services,Revenue,12/01/2011,630,3757.04,SOUTHERN CROSS HEALTHCARE LTD
Adult Social Care,Adlt u65 Learning Disabilities,LD Residential Care External,Third Party Payments,Private Contractors,Miscellaneous Agency Services,Revenue,12/01/2011,631,29881.6,ST LUKE'S HOSPITAL- OLD LEIGH
Adult Social Care,Older People 65&Over inc OP-MH,OP West - Nursing Care,Third Party Payments,Private Contractors,Miscellaneous Agency Services,Revenue,12/01/2011,632,2341.84,SUTTON COURT CARE CENTRE
Adult Social Care,Older People 65&Over inc OP-MH,OP Hosp - Nursing Care,Third Party Payments,Private Contractors,Miscellaneous Agency Services,Revenue,12/01/2011,633,2341.84,SUTTON COURT CARE CENTRE
Adult Social Care,Older People 65&Over inc OP-MH,OP Hosp - Nursing Care,Third Party Payments,Private Contractors,Miscellaneous Agency Services,Revenue,12/01/2011,634,2341.84,SUTTON COURT CARE CENTRE
Adult Social Care,Older People 65&Over inc OP-MH,OP East - Nursing Care,Third Party Payments,Private Contractors,Miscellaneous Agency Services,Revenue,12/01/2011,635,2341.84,SUTTON COURT CARE CENTRE
Adult Social Care,Older People 65&Over inc OP-MH,OP Hosp - Nursing Care,Third Party Payments,Private Contractors,Miscellaneous Agency Services,Revenue,12/01/2011,636,2341.84,SUTTON COURT CARE CENTRE
Adult Social Care,Older People 65&Over inc OP-MH,OP Hosp - Nursing Care,Third Party Payments,Private Contractors,Miscellaneous Agency Services,Revenue,12/01/2011,637,2341.84,SUTTON COURT CARE CENTRE
Adult Social Care,Older People 65&Over inc OP-MH,OP Hosp - Nursing Care,Third Party Payments,Private Contractors,Miscellaneous Agency Services,Revenue,12/01/2011,638,2341.84,SUTTON COURT CARE CENTRE
Adult Social Care,Older People 65&Over inc OP-MH,OP West - Nursing Care,Third Party Payments,Private Contractors,Miscellaneous Agency Services,Revenue,12/01/2011,639,2341.84,SUTTON COURT CARE CENTRE
Adult Social Care,Older People 65&Over inc OP-MH,OP West - Residential Care Ext,Third Party Payments,Private Contractors,Miscellaneous Agency Services,Revenue,12/01/2011,640,2341.84,SUTTON COURT CARE CENTRE
Adult Social Care,Adult u65 Phys/Sensory Impair,PS Nursing Care - NRTPF,Third Party Payments,Private Contractors,Miscellaneous Agency Services,Revenue,12/01/2011,641,2341.84,SUTTON COURT CARE CENTRE
Adult Social Care,Older People 65&Over inc OP-MH,OP Hosp - Nursing Care,Third Party Payments,Private Contractors,Miscellaneous Agency Services,Revenue,12/01/2011,642,2341.84,SUTTON COURT CARE CENTRE
Adult Social Care,Older People 65&Over inc OP-MH,OP West - Nursing Care,Third Party Payments,Private Contractors,Miscellaneous Agency Services,Revenue,12/01/2011,643,2341.84,SUTTON COURT CARE CENTRE
Adult Social Care,Older People 65&Over inc OP-MH,OP East - Nursing Care,Third Party Payments,Private Contractors,Miscellaneous Agency Services,Revenue,12/01/2011,644,2341.84,SUTTON COURT CARE CENTRE
Adult Social Care,Older People 65&Over inc OP-MH,OP Hosp - Nursing Care,Third Party Payments,Private Contractors,Miscellaneous Agency Services,Revenue,12/01/2011,645,2341.84,SUTTON COURT CARE CENTRE
Adult Social Care,Older People 65&Over inc OP-MH,OP Hosp - Nursing Care,Third Party Payments,Private Contractors,Miscellaneous Agency Services,Revenue,12/01/2011,646,2341.84,SUTTON COURT CARE CENTRE
Adult Social Care,Older People 65&Over inc OP-MH,OP Hosp - Residential Care Ext,Third Party Payments,Private Contractors,Miscellaneous Agency Services,Revenue,12/01/2011,647,1960,THE VALE RESIDENTIAL HOME
Adult Social Care,Older People 65&Over inc OP-MH,OP West - Residential Care Ext,Third Party Payments,Private Contractors,Miscellaneous Agency Services,Revenue,12/01/2011,648,1812.4,WESTMINSTER HEALTHCARE LTD
Adult Social Care,Older People 65&Over inc OP-MH,OP West - Nursing Care,Third Party Payments,Private Contractors,Miscellaneous Agency Services,Revenue,12/01/2011,649,2312.36,WESTMINSTER HEALTHCARE LTD
Adult Social Care,Adult u65 Phys/Sensory Impair,PD WEST TEAM-Nursing,Third Party Payments,Private Contractors,Miscellaneous Agency Services,Revenue,12/01/2011,650,4540,WESTMINSTER HEALTHCARE LTD
Adult Social Care,Adlt u65 Learning Disabilities,LD Nursing Care,Third Party Payments,Private Contractors,Miscellaneous Agency Services,Revenue,12/01/2011,651,5121.84,WINGREACH LIMITED
Adult Social Care,Adlt u65 Learning Disabilities,LD Residential Care External,Third Party Payments,Private Contractors,Miscellaneous Agency Services,Revenue,12/01/2011,652,5717.76,WINSLOW COURT
Adult Social Care,Adult u65 Mental Health Needs,MH Other Servs - Mitcham West,Third Party Payments,Private Contractors,Miscellaneous Agency Services,Revenue,12/01/2011,653,919.6,RNID
Adult Social Care,Adlt u65 Learning Disabilities,LD Comm-Residential-Surrey Oak,Third Party Payments,Private Contractors,Miscellaneous Agency Services,Revenue,13/01/2011,654,13334,LONDON BOROUGH OF SUTTON
Adult Social Care,Older People 65&Over inc OP-MH,OP West - Nursing Care,Third Party Payments,Private Contractors,Miscellaneous Agency Services,Revenue,13/01/2011,655,2341.84,SUTTON COURT CARE CENTRE
Adult Social Care,Older People 65&Over inc OP-MH,OP Hosp - Nursing Care,Third Party Payments,Private Contractors,Miscellaneous Agency Services,Revenue,13/01/2011,656,2341.84,SUTTON COURT CARE CENTRE
Adult Social Care,Older People 65&Over inc OP-MH,OP Hosp - Nursing Care,Third Party Payments,Private Contractors,Miscellaneous Agency Services,Revenue,13/01/2011,657,2341.84,SUTTON COURT CARE CENTRE
Adult Social Care,Older People 65&Over inc OP-MH,OP East - Nursing Care,Third Party Payments,Private Contractors,Miscellaneous Agency Services,Revenue,13/01/2011,658,2341.84,SUTTON COURT CARE CENTRE
Adult Social Care,Older People 65&Over inc OP-MH,OP Hosp - Nursing Care,Third Party Payments,Private Contractors,Miscellaneous Agency Services,Revenue,13/01/2011,659,2341.84,SUTTON COURT CARE CENTRE
Adult Social Care,Older People 65&Over inc OP-MH,OP Hosp - Nursing Care,Third Party Payments,Private Contractors,Miscellaneous Agency Services,Revenue,13/01/2011,660,2341.84,SUTTON COURT CARE CENTRE
Adult Social Care,Older People 65&Over inc OP-MH,OP Hosp - Nursing Care,Third Party Payments,Private Contractors,Miscellaneous Agency Services,Revenue,13/01/2011,661,2341.84,SUTTON COURT CARE CENTRE
Adult Social Care,Older People 65&Over inc OP-MH,OP West - Nursing Care,Third Party Payments,Private Contractors,Miscellaneous Agency Services,Revenue,13/01/2011,662,2341.84,SUTTON COURT CARE CENTRE
Adult Social Care,Older People 65&Over inc OP-MH,OP West - Residential Care Ext,Third Party Payments,Private Contractors,Miscellaneous Agency Services,Revenue,13/01/2011,663,2341.84,SUTTON COURT CARE CENTRE
Adult Social Care,Adult u65 Phys/Sensory Impair,PS Nursing Care - NRTPF,Third Party Payments,Private Contractors,Miscellaneous Agency Services,Revenue,13/01/2011,664,2341.84,SUTTON COURT CARE CENTRE
Adult Social Care,Older People 65&Over inc OP-MH,OP Hosp - Nursing Care,Third Party Payments,Private Contractors,Miscellaneous Agency Services,Revenue,13/01/2011,665,2341.84,SUTTON COURT CARE CENTRE
Adult Social Care,Older People 65&Over inc OP-MH,OP West - Nursing Care,Third Party Payments,Private Contractors,Miscellaneous Agency Services,Revenue,13/01/2011,666,2341.84,SUTTON COURT CARE CENTRE
Adult Social Care,Older People 65&Over inc OP-MH,OP East - Nursing Care,Third Party Payments,Private Contractors,Miscellaneous Agency Services,Revenue,13/01/2011,667,2341.84,SUTTON COURT CARE CENTRE
Adult Social Care,Older People 65&Over inc OP-MH,OP Hosp - Nursing Care,Third Party Payments,Private Contractors,Miscellaneous Agency Services,Revenue,13/01/2011,668,2341.84,SUTTON COURT CARE CENTRE
Adult Social Care,Older People 65&Over inc OP-MH,OP Hosp - Nursing Care,Third Party Payments,Private Contractors,Miscellaneous Agency Services,Revenue,13/01/2011,669,2341.84,SUTTON COURT CARE CENTRE
Adult Social Care,Older People 65&Over inc OP-MH,OP West - Nursing Care,Third Party Payments,Private Contractors,Miscellaneous Agency Services,Revenue,13/01/2011,670,2173.96,THE WHITE HOUSE NURSING HOME
Adult Social Care,Older People 65&Over inc OP-MH,OP West - Nursing Care,Third Party Payments,Private Contractors,Miscellaneous Agency Services,Revenue,13/01/2011,671,2233,THE WHITE HOUSE NURSING HOME
Childrens & Education Services,Other Ch's & Family Services,CL Adoption Allowances,Transfer Payments,Adult Soc Servs Clients,Adodption Allowances,Revenue,13/01/2011,672,553.84,REDACTED
Childrens & Education Services,Other Ch's & Family Services,CL Adoption Allowances,Transfer Payments,Adult Soc Servs Clients,Adodption Allowances,Revenue,13/01/2011,673,562.88,REDACTED
Childrens & Education Services,Other Ch's & Family Services,CL Adoption Allowances,Transfer Payments,Adult Soc Servs Clients,Adodption Allowances,Revenue,13/01/2011,674,607.08,REDACTED
Childrens & Education Services,Family Support Services,CL Residence Orders,Supplies and Services,Grants and Subscriptions,Residence Orders,Revenue,13/01/2011,675,606.9,REDACTED
Childrens & Education Services,Other Ch's & Family Services,CL Adoption Allowances,Transfer Payments,Adult Soc Servs Clients,Adodption Allowances,Revenue,13/01/2011,676,1368.6,REDACTED
Childrens & Education Services,Family Support Services,CL Residence Orders,Supplies and Services,Grants and Subscriptions,Residence Orders,Revenue,13/01/2011,677,779.02,REDACTED
Adult Social Care,Older People 65&Over inc OP-MH,OP East - Residential Care Ext,Third Party Payments,Private Contractors,Miscellaneous Agency Services,Revenue,13/01/2011,678,10614.14,LINK HOUSE
Adult Social Care,Asylum seekers,AS Child Res Care  (No Grant),Third Party Payments,Private Contractors,Private Tenant/Landlord,Revenue,13/01/2011,679,692.28,REDACTED
Adult Social Care,Older People 65&Over inc OP-MH,OP - Hosp Misc Services,Third Party Payments,Private Contractors,Miscellaneous Agency Services,Revenue,13/01/2011,680,1280,TOTAL PROPERTY SERVICES
Adult Social Care,Adult u65 Phys/Sensory Impair,PD EAST TEAM-Other Services,Third Party Payments,Private Contractors,Miscellaneous Agency Services,Revenue,13/01/2011,681,900,TOTAL PROPERTY SERVICES
Adult Social Care,Adult u65 Mental Health Needs,MH Adult Placement Cont-Wim,Third Party Payments,Private Contractors,Accommodation Based Support,Revenue,14/01/2011,682,2000,REDACTED
Adult Social Care,Adult u65 Mental Health Needs,MH Adult PlacementCont-MitWest,Third Party Payments,Private Contractors,Accommodation Based Support,Revenue,14/01/2011,683,1000,REDACTED
Adult Social Care,Older People 65&Over inc OP-MH,OP East - Residential Care Ext,Third Party Payments,Private Contractors,Miscellaneous Agency Services,Revenue,14/01/2011,684,6612.28,CARTER HOUSE
Adult Social Care,Adlt u65 Learning Disabilities,LD AdultPlacementCont,Third Party Payments,Private Contractors,Accommodation Based Support,Revenue,14/01/2011,685,5850,PROVIDENCE CARE UK LTD
Adult Social Care,Older People 65&Over inc OP-MH,OP West - Home Care External,Third Party Payments,Private Contractors,Miscellaneous Agency Services,Revenue,14/01/2011,686,3697.87,ALPENBEST LIMITED
Adult Social Care,Older People 65&Over inc OP-MH,OP East - Home Care External,Third Party Payments,Private Contractors,Miscellaneous Agency Services,Revenue,14/01/2011,687,2228.96,ALPENBEST LIMITED
Adult Social Care,Adult u65 Phys/Sensory Impair,PD WEST TEAM-Homecare,Third Party Payments,Private Contractors,Miscellaneous Agency Services,Revenue,14/01/2011,688,743.48,ALPENBEST LIMITED
Adult Social Care,Older People 65&Over inc OP-MH,OP West - Home Care External,Third Party Payments,Private Contractors,Miscellaneous Agency Services,Revenue,14/01/2011,689,3705.77,ALPENBEST LIMITED
Adult Social Care,Older People 65&Over inc OP-MH,OP East - Home Care External,Third Party Payments,Private Contractors,Miscellaneous Agency Services,Revenue,14/01/2011,690,2228.96,ALPENBEST LIMITED
Adult Social Care,Adult u65 Phys/Sensory Impair,PD WEST TEAM-Homecare,Third Party Payments,Private Contractors,Miscellaneous Agency Services,Revenue,14/01/2011,691,893.34,ALPENBEST LIMITED
Adult Social Care,Older People 65&Over inc OP-MH,OP West - Home Care External,Third Party Payments,Private Contractors,Miscellaneous Agency Services,Revenue,14/01/2011,692,4077.19,ALPENBEST LIMITED
Adult Social Care,Older People 65&Over inc OP-MH,OP East - Home Care External,Third Party Payments,Private Contractors,Miscellaneous Agency Services,Revenue,14/01/2011,693,2657.04,ALPENBEST LIMITED
Adult Social Care,Adult u65 Phys/Sensory Impair,PD WEST TEAM-Homecare,Third Party Payments,Private Contractors,Miscellaneous Agency Services,Revenue,14/01/2011,694,752.22,ALPENBEST LIMITED
Adult Social Care,Older People 65&Over inc OP-MH,OP West - Home Care External,Third Party Payments,Private Contractors,Miscellaneous Agency Services,Revenue,14/01/2011,695,3816.16,ALPENBEST LIMITED
Adult Social Care,Older People 65&Over inc OP-MH,OP East - Home Care External,Third Party Payments,Private Contractors,Miscellaneous Agency Services,Revenue,14/01/2011,696,2668.34,ALPENBEST LIMITED
Adult Social Care,Adult u65 Phys/Sensory Impair,PD WEST TEAM-Homecare,Third Party Payments,Private Contractors,Miscellaneous Agency Services,Revenue,14/01/2011,697,800.54,ALPENBEST LIMITED
Adult Social Care,Adlt u65 Learning Disabilities,LD Home Care External,Third Party Payments,Private Contractors,Miscellaneous Agency Services,Revenue,14/01/2011,698,655.3,BEECH HOME CARE SERVICES
Adult Social Care,Older People 65&Over inc OP-MH,OP East - Home Care External,Third Party Payments,Private Contractors,Miscellaneous Agency Services,Revenue,14/01/2011,699,34857.9,GOLDSBOROUGH HOMECARE
Adult Social Care,Older People 65&Over inc OP-MH,OP West - Home Care External,Third Party Payments,Private Contractors,Miscellaneous Agency Services,Revenue,14/01/2011,700,17031.36,GOLDSBOROUGH HOMECARE
Adult Social Care,Older People 65&Over inc OP-MH,OP Hosp - Home Care External,Third Party Payments,Private Contractors,Miscellaneous Agency Services,Revenue,14/01/2011,701,2278.77,GOLDSBOROUGH HOMECARE
Adult Social Care,Older People 65&Over inc OP-MH,OP East - Carer Services,Third Party Payments,Private Contractors,Miscellaneous Agency Services,Revenue,14/01/2011,702,2060.91,GOLDSBOROUGH HOMECARE
Adult Social Care,Adult u65 Phys/Sensory Impair,PD EAST TEAM-Homecare,Third Party Payments,Private Contractors,Miscellaneous Agency Services,Revenue,14/01/2011,703,2050.02,GOLDSBOROUGH HOMECARE
Adult Social Care,Older People 65&Over inc OP-MH,OP West - Carer Services,Third Party Payments,Private Contractors,Miscellaneous Agency Services,Revenue,14/01/2011,704,1617.18,GOLDSBOROUGH HOMECARE
Adult Social Care,Adult u65 Phys/Sensory Impair,PD WEST TEAM-Homecare,Third Party Payments,Private Contractors,Miscellaneous Agency Services,Revenue,14/01/2011,705,959.97,GOLDSBOROUGH HOMECARE
Adult Social Care,Adult u65 Mental Health Needs,MH Home Care External-MitWest,Third Party Payments,Private Contractors,Miscellaneous Agency Services,Revenue,14/01/2011,706,793.04,GOLDSBOROUGH HOMECARE
Adult Social Care,Older People 65&Over inc OP-MH,RT ReviewTeam-HomecareExternal,Third Party Payments,Private Contractors,Miscellaneous Agency Services,Revenue,14/01/2011,707,507.45,GOLDSBOROUGH HOMECARE
Adult Social Care,Adlt u65 Learning Disabilities,LD Comm -Home Care-Campus Hm,Third Party Payments,Private Contractors,Miscellaneous Agency Services,Revenue,14/01/2011,708,8449.68,THE AVENUES TRUST GROUP
Adult Social Care,Adlt u65 Learning Disabilities,LD Day Care Agency,Third Party Payments,Private Contractors,Miscellaneous Agency Services,Revenue,14/01/2011,709,696.28,UNITED RESPONSE
Adult Social Care,Older People 65&Over inc OP-MH,OP Hosp - Residential Care Ext,Third Party Payments,Private Contractors,Miscellaneous Agency Services,Revenue,14/01/2011,710,3850,ABBEY HOUSE RESIDENTIAL HOMES
Adult Social Care,Adult u65 Phys/Sensory Impair,PD WEST TEAM-Residential Care,Third Party Payments,Private Contractors,Miscellaneous Agency Services,Revenue,14/01/2011,711,3310.72,ABBEY HOUSE RESIDENTIAL HOMES
Adult Social Care,Adult u65 Mental Health Needs,MH ResidentialCare Ext-Morden,Third Party Payments,Private Contractors,Miscellaneous Agency Services,Revenue,14/01/2011,712,2400,ABBEY HOUSE RESIDENTIAL HOMES
Adult Social Care,Older People 65&Over inc OP-MH,OP West - Residential Care Ext,Third Party Payments,Private Contractors,Miscellaneous Agency Services,Revenue,14/01/2011,713,3434.68,ABBEY HOUSE RESIDENTIAL HOMES
Adult Social Care,Adult u65 Mental Health Needs,MH ResidentialCare Ext - Wim,Third Party Payments,Private Contractors,Miscellaneous Agency Services,Revenue,17/01/2011,714,2756.36,ASRA G.LONDON HOUSING ASS.LTD
Adult Social Care,Adult u65 Mental Health Needs,MH ResidentialCare Ext - Wim,Third Party Payments,Private Contractors,Miscellaneous Agency Services,Revenue,17/01/2011,715,2756.36,ASRA G.LONDON HOUSING ASS.LTD
Adult Social Care,Adlt u65 Learning Disabilities,LD Residential Care External,Third Party Payments,Private Contractors,Miscellaneous Agency Services,Revenue,17/01/2011,716,1830.8,ASRA G.LONDON HOUSING ASS.LTD
Adult Social Care,Adult u65 Mental Health Needs,MH Hostels/B & B - NRTPF,Third Party Payments,Private Contractors,Miscellaneous Agency Services,Revenue,14/01/2011,717,1380.4,ASTRA HOMES
Adult Social Care,Adult u65 Mental Health Needs,MH Hostels/ B & B - Wim,Third Party Payments,Private Contractors,Miscellaneous Agency Services,Revenue,14/01/2011,718,1222.04,ASTRA HOMES
Adult Social Care,Adult u65 Mental Health Needs,MH Hostels/ B & B - Wim,Third Party Payments,Private Contractors,Miscellaneous Agency Services,Revenue,14/01/2011,719,763.24,ASTRA HOMES
Adult Social Care,Older People 65&Over inc OP-MH,OP West - Nursing Care,Third Party Payments,Private Contractors,Miscellaneous Agency Services,Revenue,14/01/2011,720,2294.12,BEACH LAWNS
Adult Social Care,Older People 65&Over inc OP-MH,OP East - Residential Care Ext,Third Party Payments,Private Contractors,Miscellaneous Agency Services,Revenue,14/01/2011,721,1873.2,BETHUNE COURT
Adult Social Care,Older People 65&Over inc OP-MH,OP East - Nursing Care,Third Party Payments,Private Contractors,Miscellaneous Agency Services,Revenue,14/01/2011,722,2800,THE BRADBURY CENT.NURSING HOME
Adult Social Care,Adult u65 Mental Health Needs,MH Nursing Care - Morden,Third Party Payments,Private Contractors,Miscellaneous Agency Services,Revenue,14/01/2011,723,2866.36,BROOME PARK NURSING HOME
Adult Social Care,Older People 65&Over inc OP-MH,OP West - Residential Care Ext,Third Party Payments,Private Contractors,Miscellaneous Agency Services,Revenue,14/01/2011,724,2200,CARTER HOUSE
Adult Social Care,Older People 65&Over inc OP-MH,OP Hosp - Residential Care Ext,Third Party Payments,Private Contractors,Miscellaneous Agency Services,Revenue,14/01/2011,725,2000,CARTER HOUSE
Adult Social Care,Older People 65&Over inc OP-MH,OP West - Residential Care Ext,Third Party Payments,Private Contractors,Miscellaneous Agency Services,Revenue,14/01/2011,726,25098.16,CARTER HOUSE
Adult Social Care,Older People 65&Over inc OP-MH,OP West - Nursing Care,Third Party Payments,Private Contractors,Miscellaneous Agency Services,Revenue,14/01/2011,727,11761.48,CARTER HOUSE
Adult Social Care,Older People 65&Over inc OP-MH,OP East - Residential Care Ext,Third Party Payments,Private Contractors,Miscellaneous Agency Services,Revenue,14/01/2011,728,8021.84,CARTER HOUSE
Adult Social Care,Older People 65&Over inc OP-MH,OP East - Nursing Care,Third Party Payments,Private Contractors,Miscellaneous Agency Services,Revenue,14/01/2011,729,7658.64,CARTER HOUSE
Adult Social Care,Older People 65&Over inc OP-MH,OP Hosp - Residential Care Ext,Third Party Payments,Private Contractors,Miscellaneous Agency Services,Revenue,14/01/2011,730,6133.68,CARTER HOUSE
Adult Social Care,Older People 65&Over inc OP-MH,OP Hosp - Nursing Care,Third Party Payments,Private Contractors,Miscellaneous Agency Services,Revenue,14/01/2011,731,5105.76,CARTER HOUSE
Adult Social Care,Older People 65&Over inc OP-MH,OP West - Residential Care Ext,Customer and client receipts,Charges,Bd&Acc-contrib coll by home X,Revenue,14/01/2011,732,-975.92,CARTER HOUSE
Adult Social Care,Older People 65&Over inc OP-MH,OP East - Residential Care Ext,Third Party Payments,Private Contractors,Miscellaneous Agency Services,Revenue,17/01/2011,733,1812.4,CENTRAL & CECIL
Adult Social Care,Older People 65&Over inc OP-MH,OP East - Residential Care Ext,Third Party Payments,Private Contractors,Miscellaneous Agency Services,Revenue,14/01/2011,734,2086.84,CHURCH FARM RESIDENTIAL HOME
Adult Social Care,Adlt u65 Learning Disabilities,LD Residential Care External,Third Party Payments,Private Contractors,Miscellaneous Agency Services,Revenue,14/01/2011,735,4760,CARE MANAGEMENT GROUP
Adult Social Care,Adlt u65 Learning Disabilities,LD Residential Care External,Third Party Payments,Private Contractors,Miscellaneous Agency Services,Revenue,14/01/2011,736,5380,CARE MANAGEMENT GROUP
Adult Social Care,Adult u65 Mental Health Needs,MH ResidentialCare Ext - Wim,Third Party Payments,Private Contractors,Miscellaneous Agency Services,Revenue,14/01/2011,737,3632,CARE MANAGEMENT GROUP
Adult Social Care,Adult u65 Phys/Sensory Impair,PD WEST TEAM-Hostels,Third Party Payments,Private Contractors,Miscellaneous Agency Services,Revenue,14/01/2011,738,5520,CARE MANAGEMENT GROUP
Adult Social Care,Adult u65 Phys/Sensory Impair,PD EAST TEAM-Hostel,Third Party Payments,Private Contractors,Miscellaneous Agency Services,Revenue,14/01/2011,739,4168,CARE MANAGEMENT GROUP
Adult Social Care,Adlt u65 Learning Disabilities,LD Residential Care External,Third Party Payments,Private Contractors,Miscellaneous Agency Services,Revenue,14/01/2011,740,5044,CARE MANAGEMENT GROUP
Adult Social Care,Adlt u65 Learning Disabilities,LD Residential Care External,Third Party Payments,Private Contractors,Miscellaneous Agency Services,Revenue,14/01/2011,741,3336,CARE MANAGEMENT GROUP
Adult Social Care,Adlt u65 Learning Disabilities,LD Comm-Residential-Surrey Oak,Third Party Payments,Private Contractors,Miscellaneous Agency Services,Revenue,14/01/2011,742,4610.56,COTTISBRAINE HOUSE
Adult Social Care,Adlt u65 Learning Disabilities,LD Residential Care External,Third Party Payments,Private Contractors,Miscellaneous Agency Services,Revenue,14/01/2011,743,2352.24,COTTISBRAINE HOUSE
Adult Social Care,Older People 65&Over inc OP-MH,OP West - Residential Care Ext,Third Party Payments,Private Contractors,Miscellaneous Agency Services,Revenue,14/01/2011,744,1812.4,THE ELDERS
Adult Social Care,Adult u65 Phys/Sensory Impair,PD WEST TEAM-Residential Care,Third Party Payments,Private Contractors,Miscellaneous Agency Services,Revenue,14/01/2011,745,3399.76,THE FRANCES TAYLOR FOUNDATION
Adult Social Care,Adlt u65 Learning Disabilities,LD Residential Care External,Third Party Payments,Private Contractors,Miscellaneous Agency Services,Revenue,17/01/2011,746,5707.84,THE GRANGE & WALTON COTTAGE
Adult Social Care,Adlt u65 Learning Disabilities,LD Residential Care External,Customer and client receipts,Charges,Bd&Acc-contrib coll by home X,Revenue,17/01/2011,747,-569.2,THE GRANGE & WALTON COTTAGE
Adult Social Care,Older People 65&Over inc OP-MH,OP Hosp - Nursing Care,Third Party Payments,Private Contractors,Miscellaneous Agency Services,Revenue,14/01/2011,748,2406.6,GROSVENOR PARK NURSING HOME
Adult Social Care,Older People 65&Over inc OP-MH,OP East - Residential Care Ext,Third Party Payments,Private Contractors,Miscellaneous Agency Services,Revenue,14/01/2011,749,1522.36,CHICHESTER HALL CARE HOME LTD
Adult Social Care,Older People 65&Over inc OP-MH,OP West - Nursing Care,Third Party Payments,Private Contractors,Miscellaneous Agency Services,Revenue,14/01/2011,750,2341.84,LYNTON HALL NURSING HOME
Adult Social Care,Older People 65&Over inc OP-MH,OP Hosp - Residential Care Ext,Third Party Payments,Private Contractors,Miscellaneous Agency Services,Revenue,14/01/2011,751,2200,HASLINGTON RESIDENTIAL HOME
Adult Social Care,Older People 65&Over inc OP-MH,OP East - Residential Care Ext,Third Party Payments,Private Contractors,Miscellaneous Agency Services,Revenue,14/01/2011,752,1881,KOLBE HOUSE SOCIETY
Adult Social Care,Adlt u65 Learning Disabilities,LD Residential Care External,Third Party Payments,Private Contractors,Miscellaneous Agency Services,Revenue,17/01/2011,753,3021.84,L'ARCHE
Adult Social Care,Adlt u65 Learning Disabilities,LD Residential Care External,Third Party Payments,Private Contractors,Miscellaneous Agency Services,Revenue,14/01/2011,754,3406.6,L'ARCHE
Adult Social Care,Adlt u65 Learning Disabilities,LD Residential Care External,Third Party Payments,Private Contractors,Miscellaneous Agency Services,Revenue,14/01/2011,755,3406.6,L'ARCHE
Adult Social Care,Older People 65&Over inc OP-MH,OP West - Residential Care Ext,Third Party Payments,Private Contractors,Miscellaneous Agency Services,Revenue,14/01/2011,756,1692,METHODIST HOMES FOR THE AGED
Adult Social Care,Adlt u65 Learning Disabilities,LD Residential Care External,Third Party Payments,Private Contractors,Miscellaneous Agency Services,Revenue,14/01/2011,757,2904.56,ST MICHAEL'S ADULT SERVICES
Adult Social Care,Older People 65&Over inc OP-MH,OP Hosp - Nursing Care,Third Party Payments,Private Contractors,Miscellaneous Agency Services,Revenue,14/01/2011,758,2233,MOWBRAY NURSING HOME
Adult Social Care,Older People 65&Over inc OP-MH,OP Hosp - Residential Care Ext,Third Party Payments,Private Contractors,Miscellaneous Agency Services,Revenue,17/01/2011,759,1976.6,NIGHTINGALE HOUSE
Adult Social Care,Older People 65&Over inc OP-MH,OP East - Nursing Care,Third Party Payments,Private Contractors,Miscellaneous Agency Services,Revenue,17/01/2011,760,2420.24,NIGHTINGALE HOUSE
Adult Social Care,Adlt u65 Learning Disabilities,LD Residential Care External,Third Party Payments,Private Contractors,Miscellaneous Agency Services,Revenue,14/01/2011,761,2697.04,REDACTED
Adult Social Care,Adlt u65 Learning Disabilities,LD Residential Care External,Third Party Payments,Private Contractors,Miscellaneous Agency Services,Revenue,14/01/2011,762,5288.04,REDACTED
Adult Social Care,Adlt u65 Learning Disabilities,LD Residential Care External,Third Party Payments,Private Contractors,Miscellaneous Agency Services,Revenue,14/01/2011,763,5288.04,REDACTED
Adult Social Care,Older People 65&Over inc OP-MH,OP Hosp - Nursing Care,Third Party Payments,Private Contractors,Miscellaneous Agency Services,Revenue,14/01/2011,764,2341.84,SUTTON NURSING HOMES LTD
Adult Social Care,Adlt u65 Learning Disabilities,LD Nursing Care,Third Party Payments,Private Contractors,Miscellaneous Agency Services,Revenue,14/01/2011,765,3000,SUTTON NURSING HOMES LTD
Adult Social Care,Older People 65&Over inc OP-MH,OP West - Nursing Care,Third Party Payments,Private Contractors,Miscellaneous Agency Services,Revenue,14/01/2011,766,2255.16,SUTTON NURSING HOMES LTD
Adult Social Care,Older People 65&Over inc OP-MH,OP Hosp - Nursing Care,Third Party Payments,Private Contractors,Miscellaneous Agency Services,Revenue,14/01/2011,767,2221.84,SUTTON NURSING HOMES LTD
Adult Social Care,Older People 65&Over inc OP-MH,OP Hosp - Nursing Care,Third Party Payments,Private Contractors,Miscellaneous Agency Services,Revenue,14/01/2011,768,2767.04,SUTTON NURSING HOMES LTD
Adult Social Care,Older People 65&Over inc OP-MH,OP East - Residential Care Ext,Third Party Payments,Private Contractors,Miscellaneous Agency Services,Revenue,14/01/2011,769,3308.92,RNID
Adult Social Care,Adult u65 Phys/Sensory Impair,PD EAST TEAM-Residential,Third Party Payments,Private Contractors,Miscellaneous Agency Services,Revenue,14/01/2011,770,8384.84,RNID
Adult Social Care,Older People 65&Over inc OP-MH,OP West - Nursing Care,Third Party Payments,Private Contractors,Miscellaneous Agency Services,Revenue,17/01/2011,771,2258.16,RUKBA
Adult Social Care,Older People 65&Over inc OP-MH,OP Hosp - Residential Care Ext,Third Party Payments,Private Contractors,Miscellaneous Agency Services,Revenue,14/01/2011,772,2400,RUTLAND HOME
Adult Social Care,Older People 65&Over inc OP-MH,OP West - Nursing Care,Third Party Payments,Private Contractors,Miscellaneous Agency Services,Revenue,14/01/2011,773,2300,SOUTHDOWN NURSING + RES.HOME
Adult Social Care,Older People 65&Over inc OP-MH,OP West - Nursing Care,Third Party Payments,Private Contractors,Miscellaneous Agency Services,Revenue,14/01/2011,774,2300,SOUTHDOWN NURSING + RES.HOME
Adult Social Care,Older People 65&Over inc OP-MH,OP West - Nursing Care,Third Party Payments,Private Contractors,Miscellaneous Agency Services,Revenue,14/01/2011,775,2237.64,SOUTHERN CROSS HEALTHCARE LTD
Adult Social Care,Older People 65&Over inc OP-MH,OP West - Nursing Care,Third Party Payments,Private Contractors,Miscellaneous Agency Services,Revenue,14/01/2011,776,2237.64,SOUTHERN CROSS HEALTHCARE LTD
Adult Social Care,Older People 65&Over inc OP-MH,OP Hosp - Residential Care Ext,Third Party Payments,Private Contractors,Miscellaneous Agency Services,Revenue,14/01/2011,777,1812.4,SOUTHPARK RESIDENTIAL HOME
Adult Social Care,Older People 65&Over inc OP-MH,OP East - Residential Care Ext,Third Party Payments,Private Contractors,Miscellaneous Agency Services,Revenue,14/01/2011,778,1703.44,SOUTHPARK RESIDENTIAL HOME
Adult Social Care,Older People 65&Over inc OP-MH,OP West - Residential Care Ext,Third Party Payments,Private Contractors,Miscellaneous Agency Services,Revenue,14/01/2011,779,1784.2,SOUTHPARK RESIDENTIAL HOME
Adult Social Care,Older People 65&Over inc OP-MH,OP Hosp - Residential Care Ext,Third Party Payments,Private Contractors,Miscellaneous Agency Services,Revenue,17/01/2011,780,2160.4,SOUTHVIEW CARE HOME
Adult Social Care,Adlt u65 Learning Disabilities,LD Residential Care External,Third Party Payments,Private Contractors,Miscellaneous Agency Services,Revenue,14/01/2011,781,10995.68,AIMS CARE PARTNERSHIP
Adult Social Care,Older People 65&Over inc OP-MH,OP East - Residential Care Ext,Third Party Payments,Private Contractors,Miscellaneous Agency Services,Revenue,17/01/2011,782,1632.64,LANGLEY HOUSE TRUST
Adult Social Care,Older People 65&Over inc OP-MH,OP East - Residential Care Ext,Customer and client receipts,Charges,Bd&Acc-contrib coll by home X,Revenue,17/01/2011,783,-586.12,LANGLEY HOUSE TRUST
Adult Social Care,Older People 65&Over inc OP-MH,OP East - Residential Care Ext,Third Party Payments,Private Contractors,Miscellaneous Agency Services,Revenue,14/01/2011,784,1806.12,THORNTON LODGE
Adult Social Care,Older People 65&Over inc OP-MH,OP West - Nursing Care,Third Party Payments,Private Contractors,Miscellaneous Agency Services,Revenue,17/01/2011,785,2842,TRINITY COURT NURSING HOME
Adult Social Care,Adlt u65 Learning Disabilities,LD Residential Care External,Third Party Payments,Private Contractors,Miscellaneous Agency Services,Revenue,14/01/2011,786,26279.04,UNITED RESPONSE
Adult Social Care,Adlt u65 Learning Disabilities,LD Residential Care External,Customer and client receipts,Charges,Bd&Acc-contrib coll by home X,Revenue,14/01/2011,787,-1579.6,UNITED RESPONSE
Adult Social Care,Adlt u65 Learning Disabilities,LD Residential Care External,Third Party Payments,Private Contractors,Miscellaneous Agency Services,Revenue,14/01/2011,788,21791.48,UNITED RESPONSE
Adult Social Care,Adlt u65 Learning Disabilities,LD Comm -Residential-Orch Hill,Third Party Payments,Private Contractors,Miscellaneous Agency Services,Revenue,14/01/2011,789,4359.44,UNITED RESPONSE
Adult Social Care,Adlt u65 Learning Disabilities,LD Residential Care External,Customer and client receipts,Charges,Bd&Acc-contrib coll by home X,Revenue,14/01/2011,790,-2334.44,UNITED RESPONSE
Adult Social Care,Adult u65 Mental Health Needs,MH Other Servs - Mitcham West,Third Party Payments,Private Contractors,Miscellaneous Agency Services,Revenue,17/01/2011,791,919.6,RNID
Adult Social Care,Adlt u65 Learning Disabilities,LD Home Care External,Third Party Payments,Private Contractors,Miscellaneous Agency Services,Revenue,14/01/2011,792,56954.12,WANDLE HOUSING ASSOCIATION LTD
Adult Social Care,Older People 65&Over inc OP-MH,OP West - Nursing Care,Third Party Payments,Private Contractors,Miscellaneous Agency Services,Revenue,17/01/2011,793,2007.29,KELSTONE COURT NURSING HOME
Adult Social Care,Adlt u65 Learning Disabilities,LD Direct Payment Scheme,Third Party Payments,Private Contractors,Direct Payments,Revenue,18/01/2011,794,1200,REDACTED
Adult Social Care,Adult u65 Phys/Sensory Impair,PD WEST TEAM-Direct Payment,Third Party Payments,Private Contractors,Direct Payments,Revenue,18/01/2011,795,1062,REDACTED
Adult Social Care,Older People 65&Over inc OP-MH,OP - Hosp Misc Services,Third Party Payments,Private Contractors,Miscellaneous Agency Services,Revenue,19/01/2011,796,520,TOTAL PROPERTY SERVICES
Adult Social Care,Older People 65&Over inc OP-MH,OP - Hosp Misc Services,Third Party Payments,Private Contractors,Miscellaneous Agency Services,Revenue,19/01/2011,797,585,WOODLANDS ANIMAL CARE LIMITED
Adult Social Care,Older People 65&Over inc OP-MH,OP West - Home Care External,Third Party Payments,Private Contractors,Miscellaneous Agency Services,Revenue,18/01/2011,798,14284.6,ANCHOR CARE
Adult Social Care,Older People 65&Over inc OP-MH,OP East - Home Care External,Third Party Payments,Private Contractors,Miscellaneous Agency Services,Revenue,18/01/2011,799,11475.01,ANCHOR CARE
Adult Social Care,Older People 65&Over inc OP-MH,OP East - Carer Services,Third Party Payments,Private Contractors,Miscellaneous Agency Services,Revenue,18/01/2011,800,2976.13,ANCHOR CARE
Adult Social Care,Adult u65 Phys/Sensory Impair,PD EAST TEAM-Homecare,Third Party Payments,Private Contractors,Miscellaneous Agency Services,Revenue,18/01/2011,801,1765.31,ANCHOR CARE
Adult Social Care,Adult u65 Mental Health Needs,MH Home Care External - Wim,Third Party Payments,Private Contractors,Miscellaneous Agency Services,Revenue,18/01/2011,802,983.91,ANCHOR CARE
Adult Social Care,Adult u65 Phys/Sensory Impair,PD WEST TEAM-Homecare,Third Party Payments,Private Contractors,Miscellaneous Agency Services,Revenue,18/01/2011,803,939.36,ANCHOR CARE
Adult Social Care,Older People 65&Over inc OP-MH,OP West - Home Care External,Third Party Payments,Private Contractors,Miscellaneous Agency Services,Revenue,18/01/2011,804,12488.18,ANCHOR CARE
Adult Social Care,Older People 65&Over inc OP-MH,OP East - Home Care External,Third Party Payments,Private Contractors,Miscellaneous Agency Services,Revenue,18/01/2011,805,11179.69,ANCHOR CARE
Adult Social Care,Older People 65&Over inc OP-MH,OP East - Carer Services,Third Party Payments,Private Contractors,Miscellaneous Agency Services,Revenue,18/01/2011,806,2808.67,ANCHOR CARE
Adult Social Care,Adult u65 Phys/Sensory Impair,PD EAST TEAM-Homecare,Third Party Payments,Private Contractors,Miscellaneous Agency Services,Revenue,18/01/2011,807,1662.41,ANCHOR CARE
Adult Social Care,Adult u65 Mental Health Needs,MH Home Care External - Wim,Third Party Payments,Private Contractors,Miscellaneous Agency Services,Revenue,18/01/2011,808,998.97,ANCHOR CARE
Adult Social Care,Adult u65 Phys/Sensory Impair,PD WEST TEAM-Homecare,Third Party Payments,Private Contractors,Miscellaneous Agency Services,Revenue,18/01/2011,809,807.25,ANCHOR CARE
Adult Social Care,Adult u65 Mental Health Needs,MH Home Care External-MitWest,Third Party Payments,Private Contractors,Miscellaneous Agency Services,Revenue,18/01/2011,810,506.25,ANCHOR CARE
Adult Social Care,Adlt u65 Learning Disabilities,LD Comm -Home Care-Campus Hm,Third Party Payments,Private Contractors,Miscellaneous Agency Services,Revenue,18/01/2011,811,77189.85,CHOICE SUPPORT
Adult Social Care,Adlt u65 Learning Disabilities,LD Comm -Home Care-Orch Hill,Third Party Payments,Private Contractors,Miscellaneous Agency Services,Revenue,18/01/2011,812,27704.96,CHOICE SUPPORT
Adult Social Care,Older People 65&Over inc OP-MH,OP West - Home Care External,Third Party Payments,Private Contractors,Miscellaneous Agency Services,Revenue,18/01/2011,813,9634.48,HOLISTIC COMMUNITY CARE LTD
Adult Social Care,Older People 65&Over inc OP-MH,OP East - Home Care External,Third Party Payments,Private Contractors,Miscellaneous Agency Services,Revenue,18/01/2011,814,8230.06,HOLISTIC COMMUNITY CARE LTD
Adult Social Care,Older People 65&Over inc OP-MH,OP West - Carer Services,Third Party Payments,Private Contractors,Miscellaneous Agency Services,Revenue,18/01/2011,815,2893.76,HOLISTIC COMMUNITY CARE LTD
Adult Social Care,Adult u65 Phys/Sensory Impair,PD WEST TEAM-Homecare,Third Party Payments,Private Contractors,Miscellaneous Agency Services,Revenue,18/01/2011,816,1857.28,HOLISTIC COMMUNITY CARE LTD
Adult Social Care,Adult u65 Phys/Sensory Impair,PS Home Care External - NRTPF,Third Party Payments,Private Contractors,Miscellaneous Agency Services,Revenue,18/01/2011,817,1179.98,HOLISTIC COMMUNITY CARE LTD
Adult Social Care,Older People 65&Over inc OP-MH,OP East - Carer Services,Third Party Payments,Private Contractors,Miscellaneous Agency Services,Revenue,18/01/2011,818,616.59,HOLISTIC COMMUNITY CARE LTD
Adult Social Care,Older People 65&Over inc OP-MH,OP East - Home Care External,Third Party Payments,Private Contractors,Miscellaneous Agency Services,Revenue,18/01/2011,819,3373.46,HFH HOMECARE LTD
Adult Social Care,Older People 65&Over inc OP-MH,OP West - Home Care External,Third Party Payments,Private Contractors,Miscellaneous Agency Services,Revenue,18/01/2011,820,944.55,HFH HOMECARE LTD
Adult Social Care,Older People 65&Over inc OP-MH,OP East - Home Care External,Third Party Payments,Private Contractors,Miscellaneous Agency Services,Revenue,18/01/2011,821,2067.14,THE SQUIRRELS DIRECT CARE LTD
Adult Social Care,Older People 65&Over inc OP-MH,OP Hosp - Nursing Care,Third Party Payments,Private Contractors,Miscellaneous Agency Services,Revenue,18/01/2011,822,2592.75,ST AUBYNS NURSING HOME
Adult Social Care,Older People 65&Over inc OP-MH,OP Hosp - Nursing Care,Third Party Payments,Private Contractors,Miscellaneous Agency Services,Revenue,18/01/2011,823,2341.84,ST AUBYNS NURSING HOME
Adult Social Care,Older People 65&Over inc OP-MH,OP West - Residential Care Ext,Third Party Payments,Private Contractors,Miscellaneous Agency Services,Revenue,18/01/2011,824,1940,CHERRY TREE HOUSE
Adult Social Care,Older People 65&Over inc OP-MH,OP Hosp - Residential Care Ext,Third Party Payments,Private Contractors,Miscellaneous Agency Services,Revenue,18/01/2011,825,1812.4,CHERRY TREE HOUSE
Adult Social Care,Older People 65&Over inc OP-MH,OP East - Residential Care Ext,Third Party Payments,Private Contractors,Miscellaneous Agency Services,Revenue,18/01/2011,826,1717.8,CHERRY TREE HOUSE
Adult Social Care,Older People 65&Over inc OP-MH,OP West - Nursing Care,Third Party Payments,Private Contractors,Miscellaneous Agency Services,Revenue,18/01/2011,827,2341.84,KELSTONE COURT NURSING HOME
Adult Social Care,Adult u65 Phys/Sensory Impair,PD WEST TEAM-Nursing,Third Party Payments,Private Contractors,Miscellaneous Agency Services,Revenue,18/01/2011,828,4254.28,LEONARD CHESHIRE
Adult Social Care,Adult u65 Phys/Sensory Impair,PD WEST TEAM-Nursing,Customer and client receipts,Charges,Bd&Acc-contrib coll by home X,Revenue,18/01/2011,829,-774,LEONARD CHESHIRE
Adult Social Care,Older People 65&Over inc OP-MH,OP Hosp - Nursing Care,Third Party Payments,Private Contractors,Miscellaneous Agency Services,Revenue,18/01/2011,830,879.07,SOUTHERN CROSS HEALTHCARE LTD
Adult Social Care,Adult u65 Mental Health Needs,MH Adult PlacementCont-MitWest,Third Party Payments,Private Contractors,Accommodation Based Support,Revenue,18/01/2011,831,778.4,REDACTED
Adult Social Care,Adlt u65 Learning Disabilities,LD AdultPlacementCont,Third Party Payments,Private Contractors,Accommodation Based Support,Revenue,18/01/2011,832,606.4,REDACTED
Adult Social Care,Adult u65 Mental Health Needs,HS Adult Placements,Third Party Payments,Private Contractors,Accommodation Based Support,Revenue,18/01/2011,833,636.72,REDACTED
Adult Social Care,Adult u65 Mental Health Needs,MH Adult PlacementCont-MitWest,Third Party Payments,Private Contractors,Accommodation Based Support,Revenue,18/01/2011,834,620.2,REDACTED
Adult Social Care,Adult u65 Mental Health Needs,HS Adult Placements,Third Party Payments,Private Contractors,Accommodation Based Support,Revenue,18/01/2011,835,1167.6,REDACTED
Adult Social Care,Adult u65 Mental Health Needs,HS Adult Placements,Third Party Payments,Private Contractors,Accommodation Based Support,Revenue,19/01/2011,836,806.2,REDACTED
Adult Social Care,Adlt u65 Learning Disabilities,LD Adult Placements - HST,Third Party Payments,Private Contractors,Accommodation Based Support,Revenue,18/01/2011,837,1121.84,REDACTED
Adult Social Care,Adult u65 Mental Health Needs,HS Adult Placements,Third Party Payments,Private Contractors,Accommodation Based Support,Revenue,18/01/2011,838,973,REDACTED
Childrens & Education Services,Other Ch's & Family Services,CL Leaving Care/Supp Lodgings,Third Party Payments,Private Contractors,Supported Lodgings,Revenue,19/01/2011,839,1178.52,REDACTED
Childrens & Education Services,Family Support Services,CS Children in Need Section 17,Transfer Payments,Adult Soc Servs Clients,Childr Act 1989 S17,Revenue,18/01/2011,840,3672,THE NEW LEVEL OF LIFE
Childrens & Education Services,Children Looked After (24hrs+),CL Fostering Services,Supplies and Services,Services,Task Based Fostering,Revenue,18/01/2011,841,780.44,REDACTED
Childrens & Education Services,Children Looked After (24hrs+),CL Fostering Services,Supplies and Services,Services,Task Based Fostering,Revenue,18/01/2011,842,780.44,REDACTED
Childrens & Education Services,Children Looked After (24hrs+),CL Fostering Services,Supplies and Services,Services,Task Based Fostering,Revenue,18/01/2011,843,1672.4,REDACTED
Childrens & Education Services,Children Looked After (24hrs+),CL Fostering Services,Supplies and Services,Services,Task Based Fostering,Revenue,18/01/2011,844,739.2,REDACTED
Childrens & Education Services,Children Looked After (24hrs+),CL Fostering Services,Supplies and Services,Services,Task Based Fostering,Revenue,18/01/2011,845,2300.08,REDACTED
Childrens & Education Services,Children Looked After (24hrs+),CL Fostering Services,Supplies and Services,Services,Task Based Fostering,Revenue,18/01/2011,846,2435.86,REDACTED
Childrens & Education Services,Children Looked After (24hrs+),CL Fostering Services,Supplies and Services,Services,Task Based Fostering,Revenue,18/01/2011,847,1854.12,REDACTED
Childrens & Education Services,Children Looked After (24hrs+),CL Fostering Services,Supplies and Services,Services,Task Based Fostering,Revenue,18/01/2011,848,1560.88,REDACTED
Adult Social Care,Asylum seekers,AS Child - Foster Care(Grant),Supplies and Services,Services,Task Based Fostering,Revenue,18/01/2011,849,-1337.9,REDACTED
Childrens & Education Services,Children Looked After (24hrs+),CL Fostering Services,Supplies and Services,Services,Task Based Fostering,Revenue,18/01/2011,850,739.2,REDACTED
Childrens & Education Services,Children Looked After (24hrs+),CL Fostering Services,Supplies and Services,Services,Task Based Fostering,Revenue,18/01/2011,851,2324.34,REDACTED
Childrens & Education Services,Children Looked After (24hrs+),CL Fostering Services,Supplies and Services,Services,Task Based Fostering,Revenue,18/01/2011,852,2101.36,REDACTED
Childrens & Education Services,Children Looked After (24hrs+),CL Fostering Services,Supplies and Services,Services,Task Based Fostering,Revenue,18/01/2011,853,2006.84,REDACTED
Childrens & Education Services,Children Looked After (24hrs+),CL Fostering Services,Supplies and Services,Services,Task Based Fostering,Revenue,18/01/2011,854,2290.38,REDACTED
Childrens & Education Services,Children Looked After (24hrs+),CL Fostering Services,Supplies and Services,Services,Task Based Fostering,Revenue,18/01/2011,855,1560.88,REDACTED
Childrens & Education Services,Children Looked After (24hrs+),CL Fostering Services,Supplies and Services,Services,Task Based Fostering,Revenue,18/01/2011,856,1519.64,REDACTED
Childrens & Education Services,Children Looked After (24hrs+),CL Fostering Services,Supplies and Services,Services,Task Based Fostering,Revenue,18/01/2011,857,1560.88,REDACTED
Childrens & Education Services,Children Looked After (24hrs+),CL Fostering Services,Supplies and Services,Services,Task Based Fostering,Revenue,18/01/2011,858,1080.44,REDACTED
Childrens & Education Services,Children Looked After (24hrs+),CL Fostering Services,Supplies and Services,Services,Task Based Fostering,Revenue,18/01/2011,859,1478.4,REDACTED
Childrens & Education Services,Children Looked After (24hrs+),CL Fostering Services,Supplies and Services,Services,Task Based Fostering,Revenue,18/01/2011,860,1478.4,REDACTED
Childrens & Education Services,Children Looked After (24hrs+),CL Fostering Services,Supplies and Services,Services,Task Based Fostering,Revenue,18/01/2011,861,780.44,REDACTED
Childrens & Education Services,Children Looked After (24hrs+),CL Fostering Services,Supplies and Services,Services,Task Based Fostering,Revenue,18/01/2011,862,1502.66,REDACTED
Childrens & Education Services,Children Looked After (24hrs+),CL Fostering Services,Supplies and Services,Services,Task Based Fostering,Revenue,18/01/2011,863,780.44,REDACTED
Childrens & Education Services,Children Looked After (24hrs+),CL Fostering Services,Supplies and Services,Services,Task Based Fostering,Revenue,18/01/2011,864,739.2,REDACTED
Childrens & Education Services,Children Looked After (24hrs+),CL Fostering Services,Supplies and Services,Services,Task Based Fostering,Revenue,18/01/2011,865,739.2,REDACTED
Childrens & Education Services,Children Looked After (24hrs+),CL Fostering Services,Supplies and Services,Services,Task Based Fostering,Revenue,18/01/2011,866,780.44,REDACTED
Childrens & Education Services,Children Looked After (24hrs+),CL Fostering Services,Supplies and Services,Services,Task Based Fostering,Revenue,18/01/2011,867,739.2,REDACTED
Childrens & Education Services,Children Looked After (24hrs+),CL Fostering Services,Supplies and Services,Services,Task Based Fostering,Revenue,18/01/2011,868,2387.34,REDACTED
Childrens & Education Services,Children Looked After (24hrs+),CL Fostering Services,Supplies and Services,Services,Task Based Fostering,Revenue,18/01/2011,869,780.44,REDACTED
Childrens & Education Services,Family Support Services,CL Travel E-Parent Visiting T1,Third Party Payments,Private Contractors,Miscellaneous Agency Services,Revenue,19/01/2011,870,619.88,ESSEX COUNTY COUNCIL
Adult Social Care,Asylum seekers,AS Child - Res Care (Grant),Third Party Payments,Private Contractors,Supported Lodgings,Revenue,19/01/2011,871,600,REDACTED
Childrens & Education Services,Other Ch's & Family Services,CL Leaving Care/Supp Lodgings,Third Party Payments,Private Contractors,Supported Lodgings,Revenue,19/01/2011,872,600,REDACTED
Childrens & Education Services,Family Support Services,CS Children in Need Section 17,Transfer Payments,Adult Soc Servs Clients,Childr Act 1989 S17,Revenue,19/01/2011,873,784,SW LONDON ST GEORGES NHS TRUST
Childrens & Education Services,Other Ch's & Family Services,CL Leaving Care/Supp Lodgings,Third Party Payments,Private Contractors,Miscellaneous Agency Services,Revenue,19/01/2011,874,1199.8,ON BEHALF SP HOMES LTD NO2 ACC
Childrens & Education Services,Other Ch's & Family Services,CL Leaving Care/Supp Lodgings,Third Party Payments,Private Contractors,Miscellaneous Agency Services,Revenue,19/01/2011,875,1199.8,ON BEHALF SP HOMES LTD NO2 ACC
Childrens & Education Services,Other Ch's & Family Services,CL Leaving Care/Supp Lodgings,Third Party Payments,Private Contractors,Miscellaneous Agency Services,Revenue,19/01/2011,876,600,ON BEHALF SP HOMES LTD NO2 ACC
Adult Social Care,Older People 65&Over inc OP-MH,OP East - Home Care External,Third Party Payments,Private Contractors,Miscellaneous Agency Services,Revenue,19/01/2011,877,13498.77,ANCHOR CARE
Adult Social Care,Older People 65&Over inc OP-MH,OP West - Home Care External,Third Party Payments,Private Contractors,Miscellaneous Agency Services,Revenue,19/01/2011,878,12363.35,ANCHOR CARE
Adult Social Care,Adult u65 Phys/Sensory Impair,PD EAST TEAM-Homecare,Third Party Payments,Private Contractors,Miscellaneous Agency Services,Revenue,19/01/2011,879,1719.39,ANCHOR CARE
Adult Social Care,Older People 65&Over inc OP-MH,OP East - Carer Services,Third Party Payments,Private Contractors,Miscellaneous Agency Services,Revenue,19/01/2011,880,1697.79,ANCHOR CARE
Adult Social Care,Adult u65 Mental Health Needs,MH Home Care External - Wim,Third Party Payments,Private Contractors,Miscellaneous Agency Services,Revenue,19/01/2011,881,1206.93,ANCHOR CARE
Adult Social Care,Adult u65 Phys/Sensory Impair,PD WEST TEAM-Homecare,Third Party Payments,Private Contractors,Miscellaneous Agency Services,Revenue,19/01/2011,882,572.66,ANCHOR CARE
Adult Social Care,Adult u65 Mental Health Needs,MH Home Care External-MitWest,Third Party Payments,Private Contractors,Miscellaneous Agency Services,Revenue,19/01/2011,883,540,ANCHOR CARE
Adult Social Care,Adult u65 Phys/Sensory Impair,PD EAST TEAM-Direct Payment,Third Party Payments,Private Contractors,Direct Payments,Revenue,20/01/2011,884,4616.22,REDACTED
Adult Social Care,Older People 65&Over inc OP-MH,OP East -Direct Payment Scheme,Third Party Payments,Private Contractors,Direct Payments,Revenue,20/01/2011,885,-4396.56,REDACTED
Childrens & Education Services,Other Ch's & Family Services,CL Leaving Care/Supp Lodgings,Third Party Payments,Private Contractors,Supported Lodgings,Revenue,20/01/2011,886,600,REDACTED
Adult Social Care,Older People 65&Over inc OP-MH,OP East - Residential Care Ext,Third Party Payments,Private Contractors,Miscellaneous Agency Services,Revenue,20/01/2011,887,1717.8,REDACTED
Adult Social Care,Older People 65&Over inc OP-MH,OP East - Residential Care Ext,Third Party Payments,Private Contractors,Miscellaneous Agency Services,Revenue,20/01/2011,888,6195.55,REDACTED
Adult Social Care,Older People 65&Over inc OP-MH,OP Mitcham-Residential CareExt,Third Party Payments,Private Contractors,Miscellaneous Agency Services,Revenue,20/01/2011,889,-6379.6,REDACTED
Adult Social Care,Older People 65&Over inc OP-MH,OP West - Residential Care Ext,Third Party Payments,Private Contractors,Miscellaneous Agency Services,Revenue,20/01/2011,890,1812.4,LAVENDER LODGE
Adult Social Care,Older People 65&Over inc OP-MH,OP East - Nursing Care,Third Party Payments,Private Contractors,Miscellaneous Agency Services,Revenue,20/01/2011,891,37804.56,WOODLANDS
Adult Social Care,Older People 65&Over inc OP-MH,OP East - Residential Care Ext,Third Party Payments,Private Contractors,Miscellaneous Agency Services,Revenue,20/01/2011,892,34444.72,WOODLANDS
Adult Social Care,Older People 65&Over inc OP-MH,OP West - Residential Care Ext,Third Party Payments,Private Contractors,Miscellaneous Agency Services,Revenue,20/01/2011,893,18401.04,WOODLANDS
Adult Social Care,Older People 65&Over inc OP-MH,OP Hosp - Residential Care Ext,Third Party Payments,Private Contractors,Miscellaneous Agency Services,Revenue,20/01/2011,894,14228.54,WOODLANDS
Adult Social Care,Older People 65&Over inc OP-MH,OP West - Nursing Care,Third Party Payments,Private Contractors,Miscellaneous Agency Services,Revenue,20/01/2011,895,7658.64,WOODLANDS
Adult Social Care,Older People 65&Over inc OP-MH,OP East - Residential Care Ext,Customer and client receipts,Charges,Bd&Acc-contrib coll by home X,Revenue,20/01/2011,896,-1124.16,WOODLANDS
Childrens & Education Services,Other Ch's & Family Services,CL Adoption Allowances,Transfer Payments,Adult Soc Servs Clients,Adodption Allowances,Revenue,20/01/2011,897,1441.44,REDACTED
Childrens & Education Services,Children Looked After (24hrs+),CL Residential Care Homes CLA,Third Party Payments,Private Contractors,Miscellaneous Agency Services,Revenue,21/01/2011,898,11548.8,REDACTED
Childrens & Education Services,Children Looked After (24hrs+),CL Independent Fostering,Supplies and Services,Services,Task Based Fostering,Revenue,21/01/2011,899,3296.64,CROHAM SERV.FOR CHILDREN LTD
Childrens & Education Services,Children Looked After (24hrs+),CL Secure Accommodation,Third Party Payments,Private Contractors,Miscellaneous Agency Services,Revenue,21/01/2011,900,20860.2,ESSEX COUNTY COUNCIL
Childrens & Education Services,Children Looked After (24hrs+),CL Independent Fostering,Supplies and Services,Services,Task Based Fostering,Revenue,21/01/2011,901,10185.72,CARE TECH FOSTER CARE LTD
Childrens & Education Services,Children Looked After (24hrs+),CL Independent Fostering,Supplies and Services,Services,Long Term Fostering,Revenue,21/01/2011,902,635.85,FOSTER CARE ASSOCIATES LTD
Childrens & Education Services,Children Looked After (24hrs+),CL Independent Fostering,Supplies and Services,Services,Task Based Fostering,Revenue,21/01/2011,903,7702.26,THE FOSTER CARE AGENCY
Childrens & Education Services,Children Looked After (24hrs+),CL Independent Fostering,Supplies and Services,Services,Task Based Fostering,Revenue,24/01/2011,904,14861.28,HEATH FARM FAMILY SVS LTD.
Childrens & Education Services,Children Looked After (24hrs+),CL Residential Care Homes CLA,Third Party Payments,Private Contractors,Miscellaneous Agency Services,Revenue,21/01/2011,905,9282.48,REDACTED
Childrens & Education Services,Other Ch's & Family Services,CL Leaving Care/Supp Lodgings,Third Party Payments,Private Contractors,Miscellaneous Agency Services,Revenue,21/01/2011,906,1280,KEYA SUPPORT LTD
,No FE Detail,CS Residential Care School CWD,Third Party Payments,Private Contractors,Miscellaneous Agency Services,Revenue,21/01/2011,907,1260,MIGHOUSE
Childrens & Education Services,Children Looked After (24hrs+),CL Independent Fostering,Supplies and Services,Services,Task Based Fostering,Revenue,21/01/2011,908,6399.68,ORCHIDS FOSTERING FOR CHILDREN
Childrens & Education Services,Children Looked After (24hrs+),CL Independent Fostering,Supplies and Services,Services,Task Based Fostering,Revenue,21/01/2011,909,10185.36,OUTLOOK FOSTERING SERVICES LTD
Childrens & Education Services,Children Looked After (24hrs+),CL Independent Fostering,Supplies and Services,Services,Task Based Fostering,Revenue,21/01/2011,910,1569.26,CORNERWAYS FOSTERING SERV.LTD
Childrens & Education Services,Children Looked After (24hrs+),CL Independent Fostering,Supplies and Services,Services,Task Based Fostering,Revenue,21/01/2011,911,1569.26,CORNERWAYS FOSTERING SERV.LTD
Childrens & Education Services,Children Looked After (24hrs+),CL Independent Fostering,Supplies and Services,Services,Task Based Fostering,Revenue,21/01/2011,912,1569.26,CORNERWAYS FOSTERING SERV.LTD
Childrens & Education Services,Children Looked After (24hrs+),CL Independent Fostering,Supplies and Services,Services,Task Based Fostering,Revenue,21/01/2011,913,6068.8,SAFEHOUSES
Adult Social Care,Older People 65&Over inc OP-MH,OP East - Residential Care Ext,Third Party Payments,Private Contractors,Miscellaneous Agency Services,Revenue,21/01/2011,914,1884.24,ABBEYFIELD PEABODY S.LOND.LTD
Adult Social Care,Older People 65&Over inc OP-MH,OP East - Residential Care Ext,Third Party Payments,Private Contractors,Miscellaneous Agency Services,Revenue,21/01/2011,915,1812.4,ABBEYFIELD PEABODY S.LOND.LTD
Adult Social Care,Older People 65&Over inc OP-MH,OP Hosp - Residential Care Ext,Third Party Payments,Private Contractors,Miscellaneous Agency Services,Revenue,21/01/2011,916,2094.4,ABBEYFIELD PEABODY S.LOND.LTD
Adult Social Care,Older People 65&Over inc OP-MH,OP Hosp - Residential Care Ext,Third Party Payments,Private Contractors,Miscellaneous Agency Services,Revenue,21/01/2011,917,2094.4,ABBEYFIELD PEABODY S.LOND.LTD
Adult Social Care,Adult u65 Mental Health Needs,MH Res Care Ext- Mitcham West,Third Party Payments,Private Contractors,Miscellaneous Agency Services,Revenue,21/01/2011,918,2074.72,ASTRA HOMES
Adult Social Care,Older People 65&Over inc OP-MH,OP West - Nursing Care,Third Party Payments,Private Contractors,Miscellaneous Agency Services,Revenue,21/01/2011,919,2492.12,LONDON RESIDENTIAL H/CARE LTD
Adult Social Care,Older People 65&Over inc OP-MH,OP East - Nursing Care,Third Party Payments,Private Contractors,Miscellaneous Agency Services,Revenue,21/01/2011,920,2254.92,BEVERLEY LODGE NURSING HOME
Adult Social Care,Older People 65&Over inc OP-MH,OP East - Nursing Care,Third Party Payments,Private Contractors,Miscellaneous Agency Services,Revenue,21/01/2011,921,5067.44,CARE UK
Adult Social Care,Older People 65&Over inc OP-MH,OP East - Nursing Care,Third Party Payments,Private Contractors,Miscellaneous Agency Services,Revenue,24/01/2011,922,2741.13,CLAREMONT CARE SVS LTD
Adult Social Care,Older People 65&Over inc OP-MH,OP East - Nursing Care,Customer and client receipts,Charges,Bd&Acc-contrib coll by home X,Revenue,24/01/2011,923,-543.5,CLAREMONT CARE SVS LTD
Adult Social Care,Older People 65&Over inc OP-MH,OP Hosp - Nursing Care,Third Party Payments,Private Contractors,Miscellaneous Agency Services,Revenue,21/01/2011,924,2337.2,CLARENDON LS
Adult Social Care,Adlt u65 Learning Disabilities,LD Residential Care External,Third Party Payments,Private Contractors,Miscellaneous Agency Services,Revenue,21/01/2011,925,5500,CARE MANAGEMENT GROUP
Adult Social Care,Adlt u65 Learning Disabilities,LD Residential Care External,Third Party Payments,Private Contractors,Miscellaneous Agency Services,Revenue,21/01/2011,926,5981.2,CARE MANAGEMENT GROUP
Adult Social Care,Adlt u65 Learning Disabilities,LD Residential Care External,Third Party Payments,Private Contractors,Miscellaneous Agency Services,Revenue,21/01/2011,927,5980,CARE MANAGEMENT GROUP
Adult Social Care,Older People 65&Over inc OP-MH,OP West - Residential Care Ext,Third Party Payments,Private Contractors,Miscellaneous Agency Services,Revenue,24/01/2011,928,1717.4,THE ELMS REST HOME LTD
Adult Social Care,Older People 65&Over inc OP-MH,OP Hosp - Residential Care Ext,Third Party Payments,Private Contractors,Miscellaneous Agency Services,Revenue,24/01/2011,929,1880,THE ELMS REST HOME LTD
Adult Social Care,Older People 65&Over inc OP-MH,OP East - Residential Care Ext,Third Party Payments,Private Contractors,Miscellaneous Agency Services,Revenue,24/01/2011,930,1880,THE ELMS REST HOME LTD
Adult Social Care,Older People 65&Over inc OP-MH,OP Hosp - Residential Care Ext,Third Party Payments,Private Contractors,Miscellaneous Agency Services,Revenue,21/01/2011,931,1800,GABLE LODGE
Adult Social Care,Older People 65&Over inc OP-MH,OP West - Residential Care Ext,Third Party Payments,Private Contractors,Miscellaneous Agency Services,Revenue,21/01/2011,932,1812,KAL-TAN LTD
Adult Social Care,Adlt u65 Learning Disabilities,LD Residential Care External,Third Party Payments,Private Contractors,Miscellaneous Agency Services,Revenue,21/01/2011,933,5535.52,THE REGARD PARTNERSHIP LTD
Adult Social Care,Adlt u65 Learning Disabilities,LD Residential Care External,Third Party Payments,Private Contractors,Miscellaneous Agency Services,Revenue,21/01/2011,934,5536,THE REGARD PARTNERSHIP LTD
Adult Social Care,Adlt u65 Learning Disabilities,LD Residential Care External,Third Party Payments,Private Contractors,Miscellaneous Agency Services,Revenue,21/01/2011,935,5200,THE REGARD PARTNERSHIP LTD
Adult Social Care,Adlt u65 Learning Disabilities,LD Residential Care External,Third Party Payments,Private Contractors,Miscellaneous Agency Services,Revenue,21/01/2011,936,4417.92,THE REGARD PARTNERSHIP LTD
Adult Social Care,Adlt u65 Learning Disabilities,LD Residential Care External,Third Party Payments,Private Contractors,Miscellaneous Agency Services,Revenue,21/01/2011,937,4832,THE REGARD PARTNERSHIP LTD
Adult Social Care,Adult u65 Phys/Sensory Impair,PD EAST TEAM-Residential,Third Party Payments,Private Contractors,Miscellaneous Agency Services,Revenue,21/01/2011,938,7507.16,THE RICHARDSON PARTNERSHIP FOR
Adult Social Care,Older People 65&Over inc OP-MH,OP East - Nursing Care,Third Party Payments,Private Contractors,Miscellaneous Agency Services,Revenue,21/01/2011,939,1051.22,SOUTHERN CROSS HEALTHCARE LTD
Adult Social Care,Older People 65&Over inc OP-MH,OP West - Nursing Care,Third Party Payments,Private Contractors,Miscellaneous Agency Services,Revenue,21/01/2011,940,2431.96,SOUTHERN CROSS HEALTHCARE LTD
Adult Social Care,Older People 65&Over inc OP-MH,OP Hosp - Nursing Care,Third Party Payments,Private Contractors,Miscellaneous Agency Services,Revenue,21/01/2011,941,2593,SOUTHERN CROSS HEALTHCARE LTD
Adult Social Care,Older People 65&Over inc OP-MH,OP West - Nursing Care,Third Party Payments,Private Contractors,Miscellaneous Agency Services,Revenue,21/01/2011,942,2593,SOUTHERN CROSS HEALTHCARE LTD
Adult Social Care,Older People 65&Over inc OP-MH,OP Hosp - Nursing Care,Third Party Payments,Private Contractors,Miscellaneous Agency Services,Revenue,21/01/2011,943,1358.88,SOUTHERN CROSS HEALTHCARE LTD
Adult Social Care,Older People 65&Over inc OP-MH,OP Hosp - Nursing Care,Third Party Payments,Private Contractors,Miscellaneous Agency Services,Revenue,21/01/2011,944,2717.76,SOUTHERN CROSS HEALTHCARE LTD
Adult Social Care,Older People 65&Over inc OP-MH,OP Hosp - Nursing Care,Third Party Payments,Private Contractors,Miscellaneous Agency Services,Revenue,21/01/2011,945,2717.76,SOUTHERN CROSS HEALTHCARE LTD
Adult Social Care,Older People 65&Over inc OP-MH,OP Hosp - Nursing Care,Third Party Payments,Private Contractors,Miscellaneous Agency Services,Revenue,21/01/2011,946,2717.76,SOUTHERN CROSS HEALTHCARE LTD
Adult Social Care,Older People 65&Over inc OP-MH,OP Hosp - Nursing Care,Third Party Payments,Private Contractors,Miscellaneous Agency Services,Revenue,21/01/2011,947,2717.76,SOUTHERN CROSS HEALTHCARE LTD
Adult Social Care,Older People 65&Over inc OP-MH,OP West - Nursing Care,Third Party Payments,Private Contractors,Miscellaneous Agency Services,Revenue,24/01/2011,948,2400,ST TERESA`S HOME FORTHE ELDER
Adult Social Care,Older People 65&Over inc OP-MH,OP West - Residential Care Ext,Third Party Payments,Private Contractors,Miscellaneous Agency Services,Revenue,24/01/2011,949,2341.84,ST TERESA`S HOME FORTHE ELDER
Adult Social Care,Older People 65&Over inc OP-MH,OP West - Nursing Care,Third Party Payments,Private Contractors,Miscellaneous Agency Services,Revenue,24/01/2011,950,2199.12,ST TERESA`S HOME FORTHE ELDER
Adult Social Care,Older People 65&Over inc OP-MH,OP Hosp - Nursing Care,Third Party Payments,Private Contractors,Miscellaneous Agency Services,Revenue,24/01/2011,951,2341.84,REDACTED
Adult Social Care,Older People 65&Over inc OP-MH,OP East - Nursing Care,Third Party Payments,Private Contractors,Miscellaneous Agency Services,Revenue,24/01/2011,952,2221.84,REDACTED
Adult Social Care,Older People 65&Over inc OP-MH,OP Hosp - Nursing Care,Third Party Payments,Private Contractors,Miscellaneous Agency Services,Revenue,24/01/2011,953,2400,REDACTED
Adult Social Care,Older People 65&Over inc OP-MH,OP Hosp - Nursing Care,Third Party Payments,Private Contractors,Miscellaneous Agency Services,Revenue,24/01/2011,954,2341.84,REDACTED
Adult Social Care,Older People 65&Over inc OP-MH,OP Hosp - Residential Care Ext,Third Party Payments,Private Contractors,Miscellaneous Agency Services,Revenue,24/01/2011,955,2000,LINK HOUSE
Adult Social Care,Older People 65&Over inc OP-MH,OP West - Residential Care Ext,Third Party Payments,Private Contractors,Miscellaneous Agency Services,Revenue,24/01/2011,956,2730,LINK HOUSE
Adult Social Care,Older People 65&Over inc OP-MH,OP West - Residential Care Ext,Third Party Payments,Private Contractors,Miscellaneous Agency Services,Revenue,24/01/2011,957,2200,LINK HOUSE
Adult Social Care,Older People 65&Over inc OP-MH,OP East - Residential Care Ext,Third Party Payments,Private Contractors,Miscellaneous Agency Services,Revenue,24/01/2011,958,1386.08,REDACTED
Adult Social Care,Older People 65&Over inc OP-MH,OP Hosp - Residential Care Ext,Third Party Payments,Private Contractors,Miscellaneous Agency Services,Revenue,24/01/2011,959,1610.16,SOUTHERN CROSS HEALTHCARE LTD
Adult Social Care,Older People 65&Over inc OP-MH,OP East - Nursing Care,Third Party Payments,Private Contractors,Miscellaneous Agency Services,Revenue,24/01/2011,960,4683.68,ST JOHNS NURSING HOME
Adult Social Care,Older People 65&Over inc OP-MH,OP Hosp - Nursing Care,Customer and client receipts,Charges,Bd&Acc-contrib coll by home X,Revenue,24/01/2011,961,-1211.22,ST JOHNS NURSING HOME
Adult Social Care,Older People 65&Over inc OP-MH,OP East - Nursing Care,Customer and client receipts,Charges,Bd&Acc-contrib coll by home X,Revenue,24/01/2011,962,-2220.59,ST JOHNS NURSING HOME
Adult Social Care,Older People 65&Over inc OP-MH,OP Hosp - Nursing Care,Third Party Payments,Private Contractors,Miscellaneous Agency Services,Revenue,24/01/2011,963,2341.84,SUTTON COURT CARE CENTRE
Adult Social Care,Older People 65&Over inc OP-MH,OP Hosp - Nursing Care,Third Party Payments,Private Contractors,Miscellaneous Agency Services,Revenue,24/01/2011,964,2341.84,SUTTON COURT CARE CENTRE
Adult Social Care,Older People 65&Over inc OP-MH,OP Hosp - Nursing Care,Third Party Payments,Private Contractors,Miscellaneous Agency Services,Revenue,24/01/2011,965,2892.86,SUTTON COURT CARE CENTRE
Adult Social Care,Older People 65&Over inc OP-MH,OP Hosp - Nursing Care,Third Party Payments,Private Contractors,Miscellaneous Agency Services,Revenue,24/01/2011,966,3000,SUTTON COURT CARE CENTRE
Adult Social Care,Older People 65&Over inc OP-MH,OP West - Residential Care Ext,Third Party Payments,Private Contractors,Miscellaneous Agency Services,Revenue,24/01/2011,967,2000,WOODLANDS
Adult Social Care,Older People 65&Over inc OP-MH,OP Hosp - Residential Care Ext,Third Party Payments,Private Contractors,Miscellaneous Agency Services,Revenue,24/01/2011,968,2200,WOODLANDS
Adult Social Care,Older People 65&Over inc OP-MH,OP East - Nursing Care,Third Party Payments,Private Contractors,Miscellaneous Agency Services,Revenue,24/01/2011,969,2552.88,WOODLANDS
Adult Social Care,Older People 65&Over inc OP-MH,OP West - Residential Care Ext,Third Party Payments,Private Contractors,Miscellaneous Agency Services,Revenue,24/01/2011,970,2044.56,WOODLANDS
Adult Social Care,Adult u65 Mental Health Needs,HS Adult Placements,Third Party Payments,Private Contractors,Accommodation Based Support,Revenue,25/01/2011,971,2055.04,TRISWIT LIMITED
Adult Social Care,Adult u65 Mental Health Needs,HS Adult Placements,Third Party Payments,Private Contractors,Accommodation Based Support,Revenue,25/01/2011,972,1167.6,REDACTED
Adult Social Care,Adult u65 Mental Health Needs,MH Adult Placement Cont- NRTPF,Third Party Payments,Private Contractors,Accommodation Based Support,Revenue,25/01/2011,973,1118.92,REDACTED
Adult Social Care,Adult u65 Mental Health Needs,HS Adult Placements,Third Party Payments,Private Contractors,Accommodation Based Support,Revenue,25/01/2011,974,879.28,REDACTED
Adult Social Care,Adult u65 Mental Health Needs,MH Adult Placement Cont-Morden,Third Party Payments,Private Contractors,Accommodation Based Support,Revenue,25/01/2011,975,879.28,REDACTED
Adult Social Care,Adult u65 Mental Health Needs,MH Adult Placement Cont- NRTPF,Third Party Payments,Private Contractors,Accommodation Based Support,Revenue,26/01/2011,976,2542.4,REDACTED
Adult Social Care,Adult u65 Mental Health Needs,HS Adult Placements,Third Party Payments,Private Contractors,Accommodation Based Support,Revenue,26/01/2011,977,778.4,REDACTED
Adult Social Care,Adult u65 Mental Health Needs,HS Adult Placements,Third Party Payments,Private Contractors,Accommodation Based Support,Revenue,26/01/2011,978,1220.52,REDACTED
Adult Social Care,Adlt u65 Learning Disabilities,LD Adult Placements - HST,Third Party Payments,Private Contractors,Accommodation Based Support,Revenue,25/01/2011,979,1238.16,REDACTED
Adult Social Care,Adult u65 Mental Health Needs,HS Adult Placements,Third Party Payments,Private Contractors,Accommodation Based Support,Revenue,25/01/2011,980,1432.76,REDACTED
Adult Social Care,Adlt u65 Learning Disabilities,LD Day Care Agency,Third Party Payments,Private Contractors,Miscellaneous Agency Services,Revenue,25/01/2011,981,2953.44,ACT TOO
Adult Social Care,Older People 65&Over inc OP-MH,OP East - Nursing Care,Third Party Payments,Private Contractors,Miscellaneous Agency Services,Revenue,25/01/2011,982,2254.92,BEVERLEY LODGE NURSING HOME
Adult Social Care,Adlt u65 Learning Disabilities,LD Residential Care External,Third Party Payments,Private Contractors,Miscellaneous Agency Services,Revenue,25/01/2011,983,7468.76,CORICH COMMUNITY CARE LTD
Adult Social Care,Adlt u65 Learning Disabilities,LD Residential Care External,Third Party Payments,Private Contractors,Miscellaneous Agency Services,Revenue,25/01/2011,984,2633.52,THE NAK CENTRE
Adult Social Care,Adlt u65 Learning Disabilities,LD Residential Care External,Third Party Payments,Private Contractors,Miscellaneous Agency Services,Revenue,26/01/2011,985,1940.56,OAKDOWN HOUSE LTD
Adult Social Care,Older People 65&Over inc OP-MH,OP West - Residential Care Ext,Third Party Payments,Private Contractors,Miscellaneous Agency Services,Revenue,25/01/2011,986,785.71,SOUTHPARK RESIDENTIAL HOME
Adult Social Care,Older People 65&Over inc OP-MH,OP Hosp - Residential Care Ext,Third Party Payments,Private Contractors,Miscellaneous Agency Services,Revenue,26/01/2011,987,1812.4,ST MARY'S LODGE
Adult Social Care,Older People 65&Over inc OP-MH,OP Hosp - Residential Care Ext,Third Party Payments,Private Contractors,Miscellaneous Agency Services,Revenue,26/01/2011,988,1812.4,ST MARY'S LODGE
Adult Social Care,Older People 65&Over inc OP-MH,OP East - Residential Care Ext,Third Party Payments,Private Contractors,Miscellaneous Agency Services,Revenue,26/01/2011,989,1812.4,ST MARY'S LODGE
Adult Social Care,Older People 65&Over inc OP-MH,OP Hosp - Residential Care Ext,Third Party Payments,Private Contractors,Miscellaneous Agency Services,Revenue,26/01/2011,990,1812.4,ST MARY'S LODGE
Adult Social Care,Asylum seekers,AS Child Res Care  (No Grant),Third Party Payments,Private Contractors,Private Tenant/Landlord,Revenue,25/01/2011,991,784.56,REDACTED
Adult Social Care,Adlt u65 Learning Disabilities,LD Direct Payment Scheme,Third Party Payments,Private Contractors,Direct Payments,Revenue,25/01/2011,992,852,REDACTED
Adult Social Care,Older People 65&Over inc OP-MH,OP East -Direct Payment Scheme,Third Party Payments,Private Contractors,Direct Payments,Revenue,25/01/2011,993,913.76,REDACTED
Adult Social Care,Older People 65&Over inc OP-MH,OP East -Direct Payment Scheme,Third Party Payments,Private Contractors,Direct Payments,Revenue,25/01/2011,994,1300,REDACTED
Adult Social Care,Adult u65 Phys/Sensory Impair,PD EAST TEAM-Direct Payment,Third Party Payments,Private Contractors,Direct Payments,Revenue,25/01/2011,995,915.88,REDACTED
Adult Social Care,Older People 65&Over inc OP-MH,OP East -Direct Payment Scheme,Third Party Payments,Private Contractors,Direct Payments,Revenue,25/01/2011,996,2103.8,REDACTED
Adult Social Care,Older People 65&Over inc OP-MH,OP East -Direct Payment Scheme,Third Party Payments,Private Contractors,Direct Payments,Revenue,25/01/2011,997,742.16,REDACTED
Adult Social Care,Older People 65&Over inc OP-MH,OP West -Direct Payment Scheme,Third Party Payments,Private Contractors,Direct Payments,Revenue,25/01/2011,998,511.2,REDACTED
Adult Social Care,Adult u65 Phys/Sensory Impair,PD EAST TEAM-Direct Payment,Third Party Payments,Private Contractors,Direct Payments,Revenue,25/01/2011,999,1319.2,REDACTED
Adult Social Care,Adult u65 Phys/Sensory Impair,PD EAST TEAM-Direct Payment,Third Party Payments,Private Contractors,Direct Payments,Revenue,25/01/2011,1000,532.48,REDACTED
Adult Social Care,Adult u65 Mental Health Needs,MH Direct Payment Scheme-MSAOR,Third Party Payments,Private Contractors,Direct Payments,Revenue,25/01/2011,1001,718.48,REDACTED
Adult Social Care,Adult u65 Phys/Sensory Impair,PD WEST TEAM-Direct Payment,Third Party Payments,Private Contractors,Direct Payments,Revenue,25/01/2011,1002,958.48,REDACTED
Adult Social Care,Older People 65&Over inc OP-MH,OP West -Direct Payment Scheme,Third Party Payments,Private Contractors,Direct Payments,Revenue,25/01/2011,1003,502.56,REDACTED
Adult Social Care,Older People 65&Over inc OP-MH,OP West -Direct Payment Scheme,Third Party Payments,Private Contractors,Direct Payments,Revenue,25/01/2011,1004,649.64,REDACTED
Adult Social Care,Adult u65 Phys/Sensory Impair,PD EAST TEAM-Direct Payment,Third Party Payments,Private Contractors,Direct Payments,Revenue,25/01/2011,1005,2283,REDACTED
Adult Social Care,Adult u65 Mental Health Needs,MH Direct Payment Scheme- West,Third Party Payments,Private Contractors,Direct Payments,Revenue,25/01/2011,1006,838,REDACTED
Adult Social Care,Adult u65 Phys/Sensory Impair,PD EAST TEAM-Direct Payment,Third Party Payments,Private Contractors,Direct Payments,Revenue,25/01/2011,1007,511.2,REDACTED
Adult Social Care,Adult u65 Phys/Sensory Impair,PD WEST TEAM-Direct Payment,Third Party Payments,Private Contractors,Direct Payments,Revenue,25/01/2011,1008,1456.4,REDACTED
Adult Social Care,Adult u65 Phys/Sensory Impair,PD WEST TEAM-Direct Payment,Third Party Payments,Private Contractors,Direct Payments,Revenue,25/01/2011,1009,711.96,REDACTED
Adult Social Care,Older People 65&Over inc OP-MH,OP East -Direct Payment Scheme,Third Party Payments,Private Contractors,Direct Payments,Revenue,25/01/2011,1010,1435.44,REDACTED
Adult Social Care,Older People 65&Over inc OP-MH,OP East -Direct Payment Scheme,Third Party Payments,Private Contractors,Direct Payments,Revenue,25/01/2011,1011,701.48,REDACTED
Adult Social Care,Adult u65 Phys/Sensory Impair,PD EAST TEAM-Direct Payment,Third Party Payments,Private Contractors,Direct Payments,Revenue,25/01/2011,1012,2308.11,REDACTED
Adult Social Care,Older People 65&Over inc OP-MH,OP East -Direct Payment Scheme,Third Party Payments,Private Contractors,Direct Payments,Revenue,25/01/2011,1013,969.76,REDACTED
Adult Social Care,Older People 65&Over inc OP-MH,OP West -Direct Payment Scheme,Third Party Payments,Private Contractors,Direct Payments,Revenue,25/01/2011,1014,1773.44,REDACTED
Adult Social Care,Older People 65&Over inc OP-MH,OP East -Direct Payment Scheme,Third Party Payments,Private Contractors,Direct Payments,Revenue,25/01/2011,1015,1341.88,REDACTED
Childrens & Education Services,Children Looked After (24hrs+),CL Fostering Services,Supplies and Services,Services,Task Based Fostering,Revenue,25/01/2011,1016,3153.7,REDACTED
Childrens & Education Services,Children Looked After (24hrs+),CL Fostering Services,Supplies and Services,Services,Task Based Fostering,Revenue,25/01/2011,1017,780.44,REDACTED
Childrens & Education Services,Children Looked After (24hrs+),CL Fostering Services,Supplies and Services,Services,Task Based Fostering,Revenue,25/01/2011,1018,1502.66,REDACTED
Childrens & Education Services,Children Looked After (24hrs+),CL Fostering Services,Supplies and Services,Services,Task Based Fostering,Revenue,25/01/2011,1019,739.2,REDACTED
Childrens & Education Services,Children Looked After (24hrs+),CL Fostering Services,Supplies and Services,Services,Task Based Fostering,Revenue,25/01/2011,1020,2300.08,REDACTED
Childrens & Education Services,Children Looked After (24hrs+),CL Fostering Services,Supplies and Services,Services,Task Based Fostering,Revenue,25/01/2011,1021,2266.12,REDACTED
Childrens & Education Services,Children Looked After (24hrs+),CL Fostering Services,Supplies and Services,Services,Task Based Fostering,Revenue,25/01/2011,1022,739.2,REDACTED
Childrens & Education Services,Children Looked After (24hrs+),CL Fostering Services,Supplies and Services,Services,Task Based Fostering,Revenue,25/01/2011,1023,4270.54,REDACTED
Childrens & Education Services,Children Looked After (24hrs+),CL Fostering Services,Supplies and Services,Services,Task Based Fostering,Revenue,25/01/2011,1024,739.2,REDACTED
Childrens & Education Services,Children Looked After (24hrs+),CL Fostering Services,Supplies and Services,Services,Task Based Fostering,Revenue,25/01/2011,1025,2324.34,REDACTED
Childrens & Education Services,Children Looked After (24hrs+),CL Fostering Services,Supplies and Services,Services,Task Based Fostering,Revenue,25/01/2011,1026,1543.9,REDACTED
Childrens & Education Services,Children Looked After (24hrs+),CL Fostering Services,Supplies and Services,Services,Task Based Fostering,Revenue,25/01/2011,1027,2042.88,REDACTED
Childrens & Education Services,Children Looked After (24hrs+),CL Fostering Services,Supplies and Services,Services,Task Based Fostering,Revenue,25/01/2011,1028,2290.38,REDACTED
Childrens & Education Services,Children Looked After (24hrs+),CL Fostering Services,Supplies and Services,Services,Task Based Fostering,Revenue,25/01/2011,1029,1560.88,REDACTED
Childrens & Education Services,Children Looked After (24hrs+),CL Fostering Services,Supplies and Services,Services,Task Based Fostering,Revenue,25/01/2011,1030,1519.64,REDACTED
Childrens & Education Services,Children Looked After (24hrs+),CL Fostering Services,Supplies and Services,Services,Task Based Fostering,Revenue,25/01/2011,1031,739.2,REDACTED
Childrens & Education Services,Children Looked After (24hrs+),CL Fostering Services,Supplies and Services,Services,Task Based Fostering,Revenue,25/01/2011,1032,1560.88,REDACTED
Childrens & Education Services,Children Looked After (24hrs+),CL Fostering Services,Supplies and Services,Services,Task Based Fostering,Revenue,25/01/2011,1033,1321.44,REDACTED
Childrens & Education Services,Children Looked After (24hrs+),CL Fostering Services,Supplies and Services,Services,Task Based Fostering,Revenue,25/01/2011,1034,1648.14,REDACTED
Childrens & Education Services,Children Looked After (24hrs+),CL Fostering Services,Supplies and Services,Services,Task Based Fostering,Revenue,25/01/2011,1035,1478.4,REDACTED
Childrens & Education Services,Children Looked After (24hrs+),CL Fostering Services,Supplies and Services,Services,Task Based Fostering,Revenue,25/01/2011,1036,780.44,REDACTED
Childrens & Education Services,Children Looked After (24hrs+),CL Fostering Services,Supplies and Services,Services,Task Based Fostering,Revenue,25/01/2011,1037,1502.66,REDACTED
Childrens & Education Services,Children Looked After (24hrs+),CL Fostering Services,Supplies and Services,Services,Task Based Fostering,Revenue,25/01/2011,1038,739.2,REDACTED
Childrens & Education Services,Children Looked After (24hrs+),CL Fostering Services,Supplies and Services,Services,Task Based Fostering,Revenue,25/01/2011,1039,739.2,REDACTED
Childrens & Education Services,Children Looked After (24hrs+),CL Fostering Services,Supplies and Services,Services,Task Based Fostering,Revenue,25/01/2011,1040,780.44,REDACTED
Childrens & Education Services,Children Looked After (24hrs+),CL Fostering Services,Supplies and Services,Services,Task Based Fostering,Revenue,25/01/2011,1041,2217.6,REDACTED
Childrens & Education Services,Children Looked After (24hrs+),CL Fostering Services,Supplies and Services,Services,Task Based Fostering,Revenue,25/01/2011,1042,780.44,REDACTED
Adult Social Care,Older People 65&Over inc OP-MH,OP West - Residential Care Ext,Third Party Payments,Private Contractors,Miscellaneous Agency Services,Revenue,26/01/2011,1043,1907.04,ABBEYFIELD PEABODY S.LOND.LTD
Adult Social Care,Older People 65&Over inc OP-MH,OP Hosp - Residential Care Ext,Third Party Payments,Private Contractors,Miscellaneous Agency Services,Revenue,26/01/2011,1044,2094.4,ABBEYFIELD PEABODY S.LOND.LTD
Adult Social Care,Older People 65&Over inc OP-MH,OP West - Residential Care Ext,Third Party Payments,Private Contractors,Miscellaneous Agency Services,Revenue,26/01/2011,1045,1907.04,ABBEYFIELD PEABODY S.LOND.LTD
Adult Social Care,Older People 65&Over inc OP-MH,OP East - Residential Care Ext,Third Party Payments,Private Contractors,Miscellaneous Agency Services,Revenue,26/01/2011,1046,1884.24,ABBEYFIELD PEABODY S.LOND.LTD
Adult Social Care,Older People 65&Over inc OP-MH,OP Hosp - Residential Care Ext,Third Party Payments,Private Contractors,Miscellaneous Agency Services,Revenue,26/01/2011,1047,1904,ABBEYFIELD PEABODY S.LOND.LTD
Adult Social Care,Older People 65&Over inc OP-MH,OP East - Residential Care Ext,Third Party Payments,Private Contractors,Miscellaneous Agency Services,Revenue,26/01/2011,1048,1812.4,ABBEYFIELD PEABODY S.LOND.LTD
Adult Social Care,Adult u65 Phys/Sensory Impair,PS Hostel Ext- NRTPF,Third Party Payments,Private Contractors,Miscellaneous Agency Services,Revenue,26/01/2011,1049,892.08,ADMINLAND LTD
Adult Social Care,Adult u65 Mental Health Needs,MH Hostels/B & B - NRTPF,Third Party Payments,Private Contractors,Miscellaneous Agency Services,Revenue,26/01/2011,1050,892.08,ADMINLAND LTD
Adult Social Care,Adult u65 Phys/Sensory Impair,PS Hostel Ext- NRTPF,Third Party Payments,Private Contractors,Miscellaneous Agency Services,Revenue,26/01/2011,1051,1115.1,ADMINLAND LTD
Adult Social Care,Adult u65 Mental Health Needs,MH Hostels/B & B - NRTPF,Third Party Payments,Private Contractors,Miscellaneous Agency Services,Revenue,26/01/2011,1052,1115.1,ADMINLAND LTD
Adult Social Care,Adult u65 Mental Health Needs,MH ResidentialCare Ext - Wim,Third Party Payments,Private Contractors,Miscellaneous Agency Services,Revenue,26/01/2011,1053,1524.76,ALDWICK RESIDENTIAL CARE HOME
Adult Social Care,Older People 65&Over inc OP-MH,OP West - Residential Care Ext,Third Party Payments,Private Contractors,Miscellaneous Agency Services,Revenue,26/01/2011,1054,1380,ASHMOUNT RESIDENTIAL & NURSING
Adult Social Care,Adlt u65 Learning Disabilities,LD Supported Housing,Third Party Payments,Private Contractors,Miscellaneous Agency Services,Revenue,26/01/2011,1055,965.68,ASTRA HOMES
Adult Social Care,Adlt u65 Learning Disabilities,LD Supported Housing,Third Party Payments,Private Contractors,Miscellaneous Agency Services,Revenue,26/01/2011,1056,1287.68,ASTRA HOMES
Adult Social Care,Adlt u65 Learning Disabilities,LD Nursing Care,Third Party Payments,Private Contractors,Miscellaneous Agency Services,Revenue,26/01/2011,1057,3696.28,BARONS LODGE NURSING HOME
Adult Social Care,Adult u65 Phys/Sensory Impair,PD EAST TEAM-Nursing,Third Party Payments,Private Contractors,Miscellaneous Agency Services,Revenue,26/01/2011,1058,3237.64,BRITISH HOME & HOSP.INCURABLE
Adult Social Care,Adult u65 Phys/Sensory Impair,PD WEST TEAM-Nursing,Third Party Payments,Private Contractors,Miscellaneous Agency Services,Revenue,26/01/2011,1059,2775.76,BRITISH HOME & HOSP.INCURABLE
Adult Social Care,Adult u65 Phys/Sensory Impair,PD WEST TEAM-Nursing,Customer and client receipts,Charges,Bd&Acc-contrib coll by home X,Revenue,26/01/2011,1060,-876,BRITISH HOME & HOSP.INCURABLE
Adult Social Care,Adult u65 Phys/Sensory Impair,PD WEST TEAM-Nursing,Third Party Payments,Private Contractors,Miscellaneous Agency Services,Revenue,26/01/2011,1061,2935.68,BRITISH HOME & HOSP.INCURABLE
